Body Name,Body,Service Label,Service Code,CIPFA Detailed Expenditure Type,CIPFA Detailed Expenditure Code,Date,Transaction Number,Net Amount,Supplier Name
Nottinghamshire County Council,1111/1001,Surplus or Deficit from Trading Undertak,TRADING,Premises Related,BJA,07/09/2018,06-10001,"7,909.29",Robert Scott & Sons Ltd
Nottinghamshire County Council,1111/1001,Surplus or Deficit from Trading Undertak,TRADING,Supplies & Services,DAA,07/09/2018,06-10001,737.8,Flipfile Ltd
Nottinghamshire County Council,1111/1001,Surplus or Deficit from Trading Undertak,TRADING,Supplies & Services,DDA,07/09/2018,06-10001,"3,567.55",Antalis Ltd
Nottinghamshire County Council,1111/1001,Surplus or Deficit from Trading Undertak,TRADING,Supplies & Services,DDA,07/09/2018,06-10001,591.44,Bic Uk Ltd
Nottinghamshire County Council,1111/1001,Surplus or Deficit from Trading Undertak,TRADING,Supplies & Services,DAA,07/09/2018,06-10001,"1,311.31",Wv Howe Ltd
Nottinghamshire County Council,1111/1001,Surplus or Deficit from Trading Undertak,TRADING,Supplies & Services,DDA,07/09/2018,06-10001,"1,120.51",Edding Uk Ltd
Nottinghamshire County Council,1111/1001,Surplus or Deficit from Trading Undertak,TRADING,Premises Related,BJA,07/09/2018,06-10001,"2,484.13",Scot Young Research Ltd
Nottinghamshire County Council,1111/1001,Surplus or Deficit from Trading Undertak,TRADING,Premises Related,BJA,07/09/2018,06-10001,962.4,Multex Chemicals Ltd
Nottinghamshire County Council,1111/1001,Surplus or Deficit from Trading Undertak,TRADING,Supplies & Services,DDA,07/09/2018,06-10001,"2,275.20",Grosvenor House Papers Ltd
Nottinghamshire County Council,1111/1001,Surplus or Deficit from Trading Undertak,TRADING,Supplies & Services,DAA,07/09/2018,06-10001,"25,595.00",Butler & Willow Ltd
Nottinghamshire County Council,1111/1001,Surplus or Deficit from Trading Undertak,TRADING,Supplies & Services,DAA,07/09/2018,06-10001,650,Butler & Willow Ltd
Nottinghamshire County Council,1111/1001,Surplus or Deficit from Trading Undertak,TRADING,Premises Related,BJA,07/09/2018,06-10001,"2,716.87",Freudenberg Household Products Lp
Nottinghamshire County Council,1111/1001,Surplus or Deficit from Trading Undertak,TRADING,Supplies & Services,DDA,07/09/2018,06-10001,583.51,Snopake Ltd
Nottinghamshire County Council,1111/1001,Surplus or Deficit from Trading Undertak,TRADING,Supplies & Services,DDA,07/09/2018,06-10001,"1,540.40",Acco Uk Ltd Services Division
Nottinghamshire County Council,1111/1001,Surplus or Deficit from Trading Undertak,TRADING,Supplies & Services,DDA,07/09/2018,06-10001,531.16,Acco Uk Ltd Services Division
Nottinghamshire County Council,1111/1001,Surplus or Deficit from Trading Undertak,TRADING,Supplies & Services,DAA,07/09/2018,06-10001,639.45,Major Brushes Ltd
Nottinghamshire County Council,1111/1001,Surplus or Deficit from Trading Undertak,TRADING,Supplies & Services,DAA,07/09/2018,06-10001,523.2,Eastpoint
Nottinghamshire County Council,1111/1001,Surplus or Deficit from Trading Undertak,TRADING,Premises Related,BJA,07/09/2018,06-10001,"1,889.83",Bunzl Cleaning & Hygiene Supplies
Nottinghamshire County Council,1111/1001,Surplus or Deficit from Trading Undertak,TRADING,Premises Related,BJA,07/09/2018,06-10001,"14,065.18",Bunzl Cleaning & Hygiene Supplies
Nottinghamshire County Council,1111/1001,Surplus or Deficit from Trading Undertak,TRADING,Supplies & Services,DAA,07/09/2018,06-10001,"2,670.90",Hille Educational Products Ltd
Nottinghamshire County Council,1111/1001,Surplus or Deficit from Trading Undertak,TRADING,Transport Related,CCA,07/09/2018,06-10001,759,Langley Mechanical Services Ltd
Nottinghamshire County Council,1111/1001,Surplus or Deficit from Trading Undertak,TRADING,Supplies & Services,DAA,07/09/2018,06-10001,732.5,Reliance Medical Ltd
Nottinghamshire County Council,1111/1001,Surplus or Deficit from Trading Undertak,TRADING,Employee Related,AAA,07/09/2018,06-10001,546.64,Advanced Business Software & Soluti
Nottinghamshire County Council,1111/1001,Surplus or Deficit from Trading Undertak,TRADING,Supplies & Services,DAA,07/09/2018,06-10001,"5,047.92",Ww (Uk) Ltd T/A Tc Group
Nottinghamshire County Council,1111/1001,Surplus or Deficit from Trading Undertak,TRADING,Supplies & Services,DAA,07/09/2018,06-10001,"6,491.52",Metalliform Holdings Ltd
Nottinghamshire County Council,1111/1001,Surplus or Deficit from Trading Undertak,TRADING,Supplies & Services,DAA,07/09/2018,06-10001,"1,279.88",Furniture Resource Centre Ltd
Nottinghamshire County Council,1111/1001,Surplus or Deficit from Trading Undertak,TRADING,Supplies & Services,DDA,12/09/2018,06-10001,536.57,Stabilo International Gmbh
Nottinghamshire County Council,1111/1001,Surplus or Deficit from Trading Undertak,TRADING,Supplies & Services,DAA,12/09/2018,06-10001,826.35,Nycomm Ltd
Nottinghamshire County Council,1111/1001,Surplus or Deficit from Trading Undertak,TRADING,Supplies & Services,DAA,12/09/2018,06-10001,630,Gratnells Ltd
Nottinghamshire County Council,1111/1001,Surplus or Deficit from Trading Undertak,TRADING,Supplies & Services,DDA,12/09/2018,06-10001,791.4,Bostik Ltd
Nottinghamshire County Council,1111/1001,Surplus or Deficit from Trading Undertak,TRADING,Supplies & Services,DDA,12/09/2018,06-10001,"1,793.45",Hamelin Brands Ltd
Nottinghamshire County Council,1111/1001,Surplus or Deficit from Trading Undertak,TRADING,Supplies & Services,DAA,12/09/2018,06-10001,523.35,Office Innovations
Nottinghamshire County Council,1111/1001,Surplus or Deficit from Trading Undertak,TRADING,Supplies & Services,DAA,12/09/2018,06-10001,650.43,Office Innovations
Nottinghamshire County Council,1111/1001,Surplus or Deficit from Trading Undertak,TRADING,Supplies & Services,DAA,12/09/2018,06-10001,"1,179.90",Morleys (Bicester) Ltd
Nottinghamshire County Council,1111/1001,Surplus or Deficit from Trading Undertak,TRADING,Supplies & Services,DAA,12/09/2018,06-10001,608.6,Morleys (Bicester) Ltd
Nottinghamshire County Council,1111/1001,Surplus or Deficit from Trading Undertak,TRADING,Supplies & Services,DAA,12/09/2018,06-10001,732.8,Morleys (Bicester) Ltd
Nottinghamshire County Council,1111/1001,Surplus or Deficit from Trading Undertak,TRADING,Premises Related,BJA,12/09/2018,06-10001,657.38,Creativity International Ltd
Nottinghamshire County Council,1111/1001,Surplus or Deficit from Trading Undertak,TRADING,Supplies & Services,DDA,12/09/2018,06-10001,"1,477.93",Slater Harrison & Company Ltd
Nottinghamshire County Council,1111/1001,Surplus or Deficit from Trading Undertak,TRADING,Supplies & Services,DDA,12/09/2018,06-10001,"1,233.20",Slater Harrison & Company Ltd
Nottinghamshire County Council,1111/1001,Surplus or Deficit from Trading Undertak,TRADING,Supplies & Services,DDA,12/09/2018,06-10001,778.4,Slater Harrison & Company Ltd
Nottinghamshire County Council,1111/1001,Surplus or Deficit from Trading Undertak,TRADING,Supplies & Services,DDA,12/09/2018,06-10001,676.22,Slater Harrison & Company Ltd
Nottinghamshire County Council,1111/1001,Surplus or Deficit from Trading Undertak,TRADING,Supplies & Services,DAA,12/09/2018,06-10001,"1,466.14",Eastpoint
Nottinghamshire County Council,1111/1001,Surplus or Deficit from Trading Undertak,TRADING,Supplies & Services,DAA,12/09/2018,06-10001,841.17,Commercial Ltd
Nottinghamshire County Council,1111/1001,Surplus or Deficit from Trading Undertak,TRADING,Supplies & Services,DAA,12/09/2018,06-10001,972.8,Metalliform Holdings Ltd
Nottinghamshire County Council,1111/1001,Surplus or Deficit from Trading Undertak,TRADING,Supplies & Services,DAA,12/09/2018,06-10001,"1,238.62",Metalliform Holdings Ltd
Nottinghamshire County Council,1111/1001,Surplus or Deficit from Trading Undertak,TRADING,Supplies & Services,DAA,19/09/2018,06-10001,893.55,Nycomm Ltd
Nottinghamshire County Council,1111/1001,Surplus or Deficit from Trading Undertak,TRADING,Supplies & Services,DDA,19/09/2018,06-10001,"1,178.10",Antalis Ltd
Nottinghamshire County Council,1111/1001,Surplus or Deficit from Trading Undertak,TRADING,Supplies & Services,DAA,19/09/2018,06-10001,509.22,Gratnells Ltd
Nottinghamshire County Council,1111/1001,Surplus or Deficit from Trading Undertak,TRADING,Premises Related,BJA,19/09/2018,06-10001,"6,378.28",Henkel Ltd
Nottinghamshire County Council,1111/1001,Surplus or Deficit from Trading Undertak,TRADING,Supplies & Services,DKA,19/09/2018,06-10001,741.3,Essity Uk Ltd
Nottinghamshire County Council,1111/1001,Surplus or Deficit from Trading Undertak,TRADING,Supplies & Services,DKA,19/09/2018,06-10001,"15,680.56",Essity Uk Ltd
Nottinghamshire County Council,1111/1001,Surplus or Deficit from Trading Undertak,TRADING,Supplies & Services,DDA,19/09/2018,06-10001,570.29,Banner Group Limited
Nottinghamshire County Council,1111/1001,Surplus or Deficit from Trading Undertak,TRADING,Supplies & Services,DDA,19/09/2018,06-10001,"2,709.98",Higher Kings Mill Ltd
Nottinghamshire County Council,1111/1001,Surplus or Deficit from Trading Undertak,TRADING,Supplies & Services,DAA,19/09/2018,06-10001,925.04,Creative Art Products Ltd
Nottinghamshire County Council,1111/1001,Surplus or Deficit from Trading Undertak,TRADING,Premises Related,BJA,19/09/2018,06-10001,"3,055.80",Newell Rubbermaid Uk Ltd
Nottinghamshire County Council,1111/1001,Surplus or Deficit from Trading Undertak,TRADING,Supplies & Services,DAA,19/09/2018,06-10001,913.68,Combined Office Interiors Ltd
Nottinghamshire County Council,1111/1001,Surplus or Deficit from Trading Undertak,TRADING,Supplies & Services,DAA,19/09/2018,06-10001,524.16,Combined Office Interiors Ltd
Nottinghamshire County Council,1111/1001,Surplus or Deficit from Trading Undertak,TRADING,Supplies & Services,DAA,19/09/2018,06-10001,"3,042.83",Eastpoint
Nottinghamshire County Council,1111/1001,Surplus or Deficit from Trading Undertak,TRADING,Supplies & Services,DAA,19/09/2018,06-10001,"2,033.72",Eastpoint
Nottinghamshire County Council,1111/1001,Surplus or Deficit from Trading Undertak,TRADING,Supplies & Services,DAA,19/09/2018,06-10001,"3,656.69",Eastpoint
Nottinghamshire County Council,1111/1001,Surplus or Deficit from Trading Undertak,TRADING,Supplies & Services,DAA,19/09/2018,06-10001,"1,056.72",Hille Educational Products Ltd
Nottinghamshire County Council,1111/1001,Surplus or Deficit from Trading Undertak,TRADING,Premises Related,BJA,19/09/2018,06-10001,591.96,Cromwell Polythene Ltd
Nottinghamshire County Council,1111/1001,Surplus or Deficit from Trading Undertak,TRADING,Supplies & Services,DDA,19/09/2018,06-10001,"1,583.62",Rapesco Office Products Plc
Nottinghamshire County Council,1111/1001,Surplus or Deficit from Trading Undertak,TRADING,Supplies & Services,DDA,19/09/2018,06-10001,745.16,Plastoreg Smidt Gmbh
Nottinghamshire County Council,1111/1001,Surplus or Deficit from Trading Undertak,TRADING,Supplies & Services,DAA,19/09/2018,06-10001,"1,208.70",Metalliform Holdings Ltd
Nottinghamshire County Council,1111/1001,Surplus or Deficit from Trading Undertak,TRADING,Supplies & Services,DAA,19/09/2018,06-10001,650,Furniture Resource Centre Ltd
Nottinghamshire County Council,1111/1001,Surplus or Deficit from Trading Undertak,TRADING,Supplies & Services,DAA,26/09/2018,06-10001,537.31,Daler Rowney Ltd
Nottinghamshire County Council,1111/1001,Surplus or Deficit from Trading Undertak,TRADING,Supplies & Services,DDA,26/09/2018,06-10001,"4,390.65",Staedtler Uk Ltd
Nottinghamshire County Council,1111/1001,Surplus or Deficit from Trading Undertak,TRADING,Supplies & Services,DDA,26/09/2018,06-10001,655.79,Allen Glenold Ltd
Nottinghamshire County Council,1111/1001,Surplus or Deficit from Trading Undertak,TRADING,Supplies & Services,DDA,26/09/2018,06-10001,"1,360.84",Allen Glenold Ltd
Nottinghamshire County Council,1111/1001,Surplus or Deficit from Trading Undertak,TRADING,Supplies & Services,DDA,26/09/2018,06-10001,797.29,Allen Glenold Ltd
Nottinghamshire County Council,1111/1001,Surplus or Deficit from Trading Undertak,TRADING,Supplies & Services,DDA,26/09/2018,06-10001,616.71,Evans Vanodine International Ltd
Nottinghamshire County Council,1111/1001,Surplus or Deficit from Trading Undertak,TRADING,Supplies & Services,DAA,26/09/2018,06-10001,666.32,Brian Clegg (Educational Products)
Nottinghamshire County Council,1111/1001,Surplus or Deficit from Trading Undertak,TRADING,Supplies & Services,DDA,26/09/2018,06-10001,"1,008.00",Grosvenor House Papers Ltd
Nottinghamshire County Council,1111/1001,Surplus or Deficit from Trading Undertak,TRADING,Supplies & Services,DAA,26/09/2018,06-10001,"2,773.04",Catering Supplies Wakefield Ltd
Nottinghamshire County Council,1111/1001,Surplus or Deficit from Trading Undertak,TRADING,Supplies & Services,DAA,26/09/2018,06-10001,958.8,Morleys (Bicester) Ltd
Nottinghamshire County Council,1111/1001,Surplus or Deficit from Trading Undertak,TRADING,Supplies & Services,DAA,26/09/2018,06-10001,"1,357.41",Valentine Clays Ltd
Nottinghamshire County Council,1111/1001,Surplus or Deficit from Trading Undertak,TRADING,Supplies & Services,DAA,26/09/2018,06-10001,963.8,Creative Art Products Ltd
Nottinghamshire County Council,1111/1001,Surplus or Deficit from Trading Undertak,TRADING,Supplies & Services,DAA,26/09/2018,06-10001,632.44,Creative Art Products Ltd
Nottinghamshire County Council,1111/1001,Surplus or Deficit from Trading Undertak,TRADING,Premises Related,BJA,26/09/2018,06-10001,870.33,Creativity International Ltd
Nottinghamshire County Council,1111/1001,Surplus or Deficit from Trading Undertak,TRADING,Supplies & Services,DAA,26/09/2018,06-10001,589.06,Coptrin Ltd
Nottinghamshire County Council,1111/1001,Surplus or Deficit from Trading Undertak,TRADING,Supplies & Services,DDA,26/09/2018,06-10001,773.62,Slater Harrison & Company Ltd
Nottinghamshire County Council,1111/1001,Surplus or Deficit from Trading Undertak,TRADING,Premises Related,BJA,26/09/2018,06-10001,"1,311.20",Bunzl Retail & Healthcare Supp Ltd
Nottinghamshire County Council,1111/1001,Surplus or Deficit from Trading Undertak,TRADING,Premises Related,BJA,26/09/2018,06-10001,655.6,Bunzl Retail & Healthcare Supp Ltd
Nottinghamshire County Council,1111/1001,Surplus or Deficit from Trading Undertak,TRADING,Premises Related,BJA,26/09/2018,06-10001,702.02,Bunzl Retail & Healthcare Supp Ltd
Nottinghamshire County Council,1111/1001,Surplus or Deficit from Trading Undertak,TRADING,Premises Related,BJA,26/09/2018,06-10001,"3,634.73",Bunzl Retail & Healthcare Supp Ltd
Nottinghamshire County Council,1111/1001,Surplus or Deficit from Trading Undertak,TRADING,Premises Related,BJA,26/09/2018,06-10001,"2,362.99",Bunzl Retail & Healthcare Supp Ltd
Nottinghamshire County Council,1111/1001,Surplus or Deficit from Trading Undertak,TRADING,Premises Related,BJA,26/09/2018,06-10001,"1,364.24",Bunzl Cleaning & Hygiene Supplies
Nottinghamshire County Council,1111/1001,Surplus or Deficit from Trading Undertak,TRADING,Supplies & Services,DAA,26/09/2018,06-10001,646.8,Hille Educational Products Ltd
Nottinghamshire County Council,1111/1001,Surplus or Deficit from Trading Undertak,TRADING,Supplies & Services,DBA,26/09/2018,06-10001,591.56,North West Tea Service Ltd
Nottinghamshire County Council,1111/1001,Surplus or Deficit from Trading Undertak,TRADING,Premises Related,BJA,26/09/2018,06-10001,"1,179.36",Cromwell Polythene Ltd
Nottinghamshire County Council,1111/1001,Surplus or Deficit from Trading Undertak,TRADING,Supplies & Services,DAA,26/09/2018,06-10001,668.77,Reliance Medical Ltd
Nottinghamshire County Council,1111/1001,Surplus or Deficit from Trading Undertak,TRADING,Supplies & Services,DAA,26/09/2018,06-10001,"1,817.00",Reliance Medical Ltd
Nottinghamshire County Council,1111/1001,Surplus or Deficit from Trading Undertak,TRADING,Premises Related,BJA,26/09/2018,06-10001,977,G & S Corporate Supplies
Nottinghamshire County Council,1111/1001,Surplus or Deficit from Trading Undertak,TRADING,Premises Related,BJA,26/09/2018,06-10001,747,G & S Corporate Supplies
Nottinghamshire County Council,1111/1001,Surplus or Deficit from Trading Undertak,TRADING,Supplies & Services,DKA,26/09/2018,06-10001,"3,696.20",Kimberly Clark European Services Lt
Nottinghamshire County Council,1111/1001,Surplus or Deficit from Trading Undertak,TRADING,Supplies & Services,DAA,26/09/2018,06-10001,"1,629.40",Kent County Supplies
Nottinghamshire County Council,1111/1001,Surplus or Deficit from Trading Undertak,TRADING,Supplies & Services,DAA,26/09/2018,06-10001,"6,073.20",Kent County Supplies
Nottinghamshire County Council,1111/1001,Surplus or Deficit from Trading Undertak,TRADING,Premises Related,BJA,26/09/2018,06-10001,"1,055.78",Selden Research Ltd
Nottinghamshire County Council,1111/1001,Surplus or Deficit from Trading Undertak,TRADING,Supplies & Services,DAA,26/09/2018,06-10001,738.72,Ww (Uk) Ltd T/A Tc Group
Nottinghamshire County Council,1111/1001,Surplus or Deficit from Trading Undertak,TRADING,Supplies & Services,DFA,29/09/2018,06-10001,787,Royal Mail
Nottinghamshire County Council,1111/1001,Surplus or Deficit from Trading Undertak,TRADING,Employee Related,ABA,29/09/2018,06-10001,"1,991.35",Vrf Cash Flo Solution Ltd
Nottinghamshire County Council,1111/1001,Surplus or Deficit from Trading Undertak,TRADING,Employee Related,ABA,29/08/2018,06-10001,"1,494.35",Vrf Cash Flo Solution Ltd
Nottinghamshire County Council,1111/1001,Children and Young People,CYP,Premises Related,BAA,03/09/2018,06-10083,664.8,ARC Property Services Partnership L
Nottinghamshire County Council,1111/1001,Children and Young People,CYP,Premises Related,BAA,03/09/2018,06-10089,9770.51,ARC Property Services Partnership L
Nottinghamshire County Council,1111/1001,Children and Young People,CYP,Premises Related,BAA,07/09/2018,06-11804,"2,831.89",ARC Property Services Partnership L
Nottinghamshire County Council,1111/1001,Children and Young People,CYP,Premises Related,BAA,14/09/2018,06-12309,5588.22,ARC Property Services Partnership L
Nottinghamshire County Council,1111/1001,Children and Young People,CYP,Premises Related,BAA,25/09/2018,06-13937,6733.08,ARC Property Services Partnership L
Nottinghamshire County Council,1111/1001,Children and Young People,CYP,Premises Related,BDA,03/09/2018,06-10010,840.00,High Peak Borough Council
Nottinghamshire County Council,1111/1001,Children and Young People,CYP,Premises Related,BDA,03/09/2018,06-10011,"3,500.00",Diocese of Hallam Trustee
Nottinghamshire County Council,1111/1001,Children and Young People,CYP,Premises Related,BDA,03/09/2018,06-10013,631.00,Derbyshire Dales District Council
Nottinghamshire County Council,1111/1001,Children and Young People,CYP,Premises Related,BDA,03/09/2018,06-10020,805,Bauland Properties Limited
Nottinghamshire County Council,1111/1001,Children and Young People,CYP,Premises Related,BDA,03/09/2018,06-10021,8274.24,Ekmw Summit Centre
Nottinghamshire County Council,1111/1001,Children and Young People,CYP,Premises Related,BDA,03/09/2018,06-10023,575.00,Jillings Estates Ltd
Nottinghamshire County Council,1111/1001,Children and Young People,CYP,Premises Related,BDA,03/09/2018,06-10026,"7,500.00",Capita Property & Infrastructure Lt
Nottinghamshire County Council,1111/1001,Children and Young People,CYP,Premises Related,BDA,03/09/2018,06-10027,565.00,Bairstow Eves Nottingham T/A Countr
Nottinghamshire County Council,1111/1001,Children and Young People,CYP,Premises Related,BDA,19/09/2018,06-10030,756.19,Bauland Properties Limited
Nottinghamshire County Council,1111/1001,Children and Young People,CYP,Premises Related,BDA,27/09/2018,06-11828,870.00,David Blount Ltd
Nottinghamshire County Council,1111/1001,Children and Young People,CYP,Premises Related,BEA,20/09/2018,06-12317,12000,Att Of Earn/Bus Rates Bassetlaw D C
Nottinghamshire County Council,1111/1001,Children and Young People,CYP,Transport Related,CAA,03/09/2018,06-10050,1249,Via East Midlands Ltd
Nottinghamshire County Council,1111/1001,Children and Young People,CYP,Transport Related,CAA,03/09/2018,06-10058,575.06,Via East Midlands Ltd
Nottinghamshire County Council,1111/1001,Children and Young People,CYP,Transport Related,CAA,03/09/2018,06-10066,1514.11,Via East Midlands Ltd
Nottinghamshire County Council,1111/1001,Children and Young People,CYP,Transport Related,CAA,14/09/2018,06-12189,1628.31,Via East Midlands Ltd
Nottinghamshire County Council,1111/1001,Children and Young People,CYP,Transport Related,CAA,14/09/2018,06-12194,299.15,Via East Midlands Ltd
Nottinghamshire County Council,1111/1001,Children and Young People,CYP,Transport Related,CAA,14/09/2018,06-12199,"1,249.00",Via East Midlands Ltd
Nottinghamshire County Council,1111/1001,Children and Young People,CYP,Transport Related,CAA,26/09/2018,06-14331,246.54,Via East Midlands Ltd
Nottinghamshire County Council,1111/1001,Children and Young People,CYP,Transport Related,CAA,26/09/2018,06-14336,"3,650.85",Via East Midlands Ltd
Nottinghamshire County Council,1111/1001,Children and Young People,CYP,Transport Related,CAA,26/09/2018,06-14341,336.56,Via East Midlands Ltd
Nottinghamshire County Council,1111/1001,Children and Young People,CYP,Transport Related,CCA,11/09/2018,06-11844,"1,360.00",Abacus Cars
Nottinghamshire County Council,1111/1001,Children and Young People,CYP,Transport Related,CCA,13/09/2018,06-12098,4359.15,BN Gibson Ltd
Nottinghamshire County Council,1111/1001,Children and Young People,CYP,Transport Related,CCA,13/09/2018,06-12110,"2,380.00",Abacus Cars
Nottinghamshire County Council,1111/1001,Children and Young People,CYP,Transport Related,CCA,13/09/2018,06-12112,"2,908.80",Gem Mini Travel Ltd
Nottinghamshire County Council,1111/1001,Children and Young People,CYP,Transport Related,CCA,13/09/2018,06-12119,"2,006.68",Marshalls Of Sutton On Trent Ltd
Nottinghamshire County Council,1111/1001,Children and Young People,CYP,Transport Related,CCA,13/09/2018,06-12121,"2,068.41",Travel Wright Ltd
Nottinghamshire County Council,1111/1001,Children and Young People,CYP,Transport Related,CCA,14/09/2018,06-12149,"2,753.67",Stagecoach Services Ltd
Nottinghamshire County Council,1111/1001,Children and Young People,CYP,Transport Related,CCA,14/09/2018,06-12153,5846.25,Stagecoach Services Ltd
Nottinghamshire County Council,1111/1001,Children and Young People,CYP,Transport Related,CCA,14/09/2018,06-12155,4690.34,Stagecoach Services Ltd
Nottinghamshire County Council,1111/1001,Children and Young People,CYP,Transport Related,CCA,14/09/2018,06-12169,4226.22,Stagecoach Services Ltd
Nottinghamshire County Council,1111/1001,Children and Young People,CYP,Transport Related,CCA,18/09/2018,06-12360,3253.8,Sharpes Of Nottingham
Nottinghamshire County Council,1111/1001,Children and Young People,CYP,Transport Related,CCA,26/09/2018,06-14341,11312.35,Via East Midlands Ltd
Nottinghamshire County Council,1111/1001,Children and Young People,CYP,Transport Related,CCA,26/09/2018,06-14350,"3,388.00",Stagecoach Services Ltd
Nottinghamshire County Council,1111/1001,Children and Young People,CYP,Transport Related,CCA,26/09/2018,06-14352,18660.8,Stagecoach Services Ltd
Nottinghamshire County Council,1111/1001,Children and Young People,CYP,Transport Related,CDA,05/09/2018,06-11105,1140,Kettlewell Retford Ltd
Nottinghamshire County Council,1111/1001,Children and Young People,CYP,Transport Related,CDA,26/09/2018,06-14349,40148,Stagecoach Services Ltd
Nottinghamshire County Council,1111/1001,Children and Young People,CYP,Transport Related,CEA,14/09/2018,06-11815,1709.48,Reed Employment Plc
Nottinghamshire County Council,1111/1001,Children and Young People,CYP,Transport Related,CEA,14/09/2018,06-12185,18629.16,Via East Midlands Ltd
Nottinghamshire County Council,1111/1001,Children and Young People,CYP,Transport Related,CEA,21/09/2018,06-13556,2118.21,Reed Employment Plc
Nottinghamshire County Council,1111/1001,Children and Young People,CYP,Transport Related,CEA,26/09/2018,06-14341,245.07,Via East Midlands Ltd
Nottinghamshire County Council,1111/1001,Children and Young People,CYP,Supplies & Services,DAA,25/09/2018,06-13857,71138.37,Netherfield Primary School (Academy
Nottinghamshire County Council,1111/1001,Children and Young People,CYP,Supplies & Services,DAA,25/09/2018,06-13862,24779.17,Gilthill Primary Academy
Nottinghamshire County Council,1111/1001,Children and Young People,CYP,Supplies & Services,DAA,25/09/2018,06-13930,19000,Alderman Pounder Academy(Flying Hig
Nottinghamshire County Council,1111/1001,Children and Young People,CYP,Supplies & Services,DAA,27/09/2018,06-13929,"257,078.30",Colonel Frank Seeley Academy
Nottinghamshire County Council,1111/1001,Children and Young People,CYP,Supplies & Services,DFA,07/09/2018,06-11382,628.68,Lantec Services Ltd
Nottinghamshire County Council,1111/1001,Children and Young People,CYP,Supplies & Services,DKA,13/09/2018,06-12083,740.74,Mansfield District Council
Nottinghamshire County Council,1111/1001,Children and Young People,CYP,Supplies & Services,DKA,17/09/2018,06-12327,1978.83,Priory Junior School
Nottinghamshire County Council,1111/1001,Children and Young People,CYP,Supplies & Services,DKA,18/09/2018,06-12357,"1,237.26","SSAFA, The Armed Forces Charity"
Nottinghamshire County Council,1111/1001,Children and Young People,CYP,Supplies & Services,DKA,19/09/2018,06-13853,"1,393.00",Bristow & Sutor
Nottinghamshire County Council,1111/1001,Children and Young People,CYP,Supplies & Services,DKA,26/09/2018,06-14341,327.71,Via East Midlands Ltd
Nottinghamshire County Council,1111/1001,Children and Young People,CYP,Supplies & Services,DKA,27/09/2018,06-14604,1500,[Redacted]
Nottinghamshire County Council,1111/1001,Children and Young People,CYP,Third Party Payments,EBA,26/09/2018,06-12135,"1,499,864.65",Transform Schools
Nottinghamshire County Council,1111/1001,Children and Young People,CYP,Third Party Payments,EBA,26/09/2018,06-13858,3891.09,Transform Schools
Nottinghamshire County Council,1111/1001,Children and Young People,CYP,Third Party Payments,EBA,26/09/2018,06-13859,"1,709.91",Transform Schools
Nottinghamshire County Council,1111/1001,Children and Young People,CYP,Third Party Payments,EBA,26/09/2018,06-13860,16785.07,Transform Schools
Nottinghamshire County Council,1111/1001,Children and Young People,CYP,Third Party Payments,EBA,26/09/2018,06-13861,62139.79,Transform Schools
Nottinghamshire County Council,1111/1001,Children and Young People,CYP,Third Party Payments,EBA,26/09/2018,06-13867,"278,324.41",East Leake Schools Ltd
Nottinghamshire County Council,1111/1001,Children and Young People,CYP,Third Party Payments,EDA,11/09/2018,06-11854,"3,255.00",Parkdale Primary Academy
Nottinghamshire County Council,1111/1001,Children and Young People,CYP,Third Party Payments,EDA,11/09/2018,06-11855,48213,Redgate Primary Academy
Nottinghamshire County Council,1111/1001,Children and Young People,CYP,Third Party Payments,EDA,11/09/2018,06-11856,"59,699.00",Beech Academy
Nottinghamshire County Council,1111/1001,Children and Young People,CYP,Third Party Payments,EDA,11/09/2018,06-11857,4167,Beech Academy
Nottinghamshire County Council,1111/1001,Children and Young People,CYP,Third Party Payments,EDA,11/09/2018,06-11858,80408,Foxwood Academy
Nottinghamshire County Council,1111/1001,Children and Young People,CYP,Third Party Payments,EDA,11/09/2018,06-11859,102446,Yeoman Park Academy
Nottinghamshire County Council,1111/1001,Children and Young People,CYP,Third Party Payments,EDA,11/09/2018,06-11860,900,Yeoman Park Academy
Nottinghamshire County Council,1111/1001,Children and Young People,CYP,Third Party Payments,EDA,11/09/2018,06-11861,"51,720.00",Parkdale Primary Academy
Nottinghamshire County Council,1111/1001,Children and Young People,CYP,Third Party Payments,EDA,24/09/2018,06-13881,12789,William Gladstone C of E Primary Ac
Nottinghamshire County Council,1111/1001,Children and Young People,CYP,Third Party Payments,EDA,24/09/2018,06-13882,28007.91,Kirkby Woodhouse Academy School
Nottinghamshire County Council,1111/1001,Children and Young People,CYP,Third Party Payments,EDA,24/09/2018,06-13883,17904.6,Peafield Lane Academy
Nottinghamshire County Council,1111/1001,Children and Young People,CYP,Third Party Payments,EDA,24/09/2018,06-13884,"19,183.50",Mapplewells Primary & Nursery Acada
Nottinghamshire County Council,1111/1001,Children and Young People,CYP,Third Party Payments,EDA,24/09/2018,06-13885,"27,496.35",Leamington Primary & Nursery Academ
Nottinghamshire County Council,1111/1001,Children and Young People,CYP,Third Party Payments,EDA,24/09/2018,06-13886,10870.65,Birklands Primary (Academy)
Nottinghamshire County Council,1111/1001,Children and Young People,CYP,Third Party Payments,EDA,24/09/2018,06-13887,9591.75,Kingston Park Academy
Nottinghamshire County Council,1111/1001,Children and Young People,CYP,Third Party Payments,EDA,24/09/2018,06-13888,"8,312.85",Haddon Primary School (Academy)
Nottinghamshire County Council,1111/1001,Children and Young People,CYP,Third Party Payments,EDA,24/09/2018,06-13889,15346.8,Central Infant Academy
Nottinghamshire County Council,1111/1001,Children and Young People,CYP,Third Party Payments,EDA,24/09/2018,06-13890,9591.75,Sunnyside Spencer Academy
Nottinghamshire County Council,1111/1001,Children and Young People,CYP,Third Party Payments,EDA,24/09/2018,06-13891,21741.3,Thrumpton Primary Academy
Nottinghamshire County Council,1111/1001,Children and Young People,CYP,Third Party Payments,EDA,24/09/2018,06-13892,17776.71,Bracken Lane Primary Academy
Nottinghamshire County Council,1111/1001,Children and Young People,CYP,Third Party Payments,EDA,24/09/2018,06-13893,29414.7,Heymann Primary School
Nottinghamshire County Council,1111/1001,Children and Young People,CYP,Third Party Payments,EDA,24/09/2018,06-13894,"35,169.75",Norbridge Academy Trust
Nottinghamshire County Council,1111/1001,Children and Young People,CYP,Third Party Payments,EDA,24/09/2018,06-13895,20462.4,Samuel Barlow Primary Academy
Nottinghamshire County Council,1111/1001,Children and Young People,CYP,Third Party Payments,EDA,24/09/2018,06-13896,"17,265.15",The Parkgate Academy
Nottinghamshire County Council,1111/1001,Children and Young People,CYP,Third Party Payments,EDA,24/09/2018,06-13897,17265.15,KImberely Primary & Nursery School
Nottinghamshire County Council,1111/1001,Children and Young People,CYP,Third Party Payments,EDA,24/09/2018,06-13898,21741.3,Greenwood Primary & Nursery School
Nottinghamshire County Council,1111/1001,Children and Young People,CYP,Third Party Payments,EDA,24/09/2018,06-13899,"16,625.70",West Park Academy
Nottinghamshire County Council,1111/1001,Children and Young People,CYP,Third Party Payments,EDA,24/09/2018,06-13900,"7,289.73",Keyworth Primary & Nursery School
Nottinghamshire County Council,1111/1001,Children and Young People,CYP,Third Party Payments,EDA,24/09/2018,06-13901,35169.75,Barnby Road Academy Prim & Nursery
Nottinghamshire County Council,1111/1001,Children and Young People,CYP,Third Party Payments,EDA,24/09/2018,06-13902,"24,938.55",Sparken Hill Academy
Nottinghamshire County Council,1111/1001,Children and Young People,CYP,Third Party Payments,EDA,24/09/2018,06-13903,"17,904.60",Flying High Trust Bilsthorpe High A
Nottinghamshire County Council,1111/1001,Children and Young People,CYP,Third Party Payments,EDA,24/09/2018,06-13904,14067.9,Flying High Trust Beeston Fields Pr
Nottinghamshire County Council,1111/1001,Children and Young People,CYP,Third Party Payments,EDA,24/09/2018,06-13905,"4,175.61",St Peters C of E Academy
Nottinghamshire County Council,1111/1001,Children and Young People,CYP,Third Party Payments,EDA,24/09/2018,06-13906,"23,020.20",Sir Donald Bailey Academy
Nottinghamshire County Council,1111/1001,Children and Young People,CYP,Third Party Payments,EDA,24/09/2018,06-13907,5115.6,St Swithuns C of E Primary Academy
Nottinghamshire County Council,1111/1001,Children and Young People,CYP,Third Party Payments,EDA,24/09/2018,06-13908,"3,280.38",Gunthorpe C OF E Primary Academy
Nottinghamshire County Council,1111/1001,Children and Young People,CYP,Third Party Payments,EDA,24/09/2018,06-13909,15986.25,Sacred Heart Catholic Voluntary Aca
Nottinghamshire County Council,1111/1001,Children and Young People,CYP,Third Party Payments,EDA,24/09/2018,06-13910,12149.55,St Joseph's RC Primary Academy
Nottinghamshire County Council,1111/1001,Children and Young People,CYP,Third Party Payments,EDA,24/09/2018,06-13911,22380.75,Holy Trinity Catholic Voluntary Aca
Nottinghamshire County Council,1111/1001,Children and Young People,CYP,Third Party Payments,EDA,24/09/2018,06-13912,14707.35,St Patricks Catholic Voluntary Acad
Nottinghamshire County Council,1111/1001,Children and Young People,CYP,Third Party Payments,EDA,24/09/2018,06-13913,"28,775.25",St Philip Neri with St Bede Vol Aca
Nottinghamshire County Council,1111/1001,Children and Young People,CYP,Third Party Payments,EDA,24/09/2018,06-13914,19183.5,St Josephs Catholic Primary Sch Aca
Nottinghamshire County Council,1111/1001,Children and Young People,CYP,Third Party Payments,EDA,24/09/2018,06-13915,"21,741.30",Worksop Priory CE Primary Academy
Nottinghamshire County Council,1111/1001,Children and Young People,CYP,Third Party Payments,EDA,24/09/2018,06-13916,18544.05,Awsworth Primary & Nursery Sch (Aca
Nottinghamshire County Council,1111/1001,Children and Young People,CYP,Third Party Payments,EDA,24/09/2018,06-13917,8952.3,Arnbrook Primary Academy
Nottinghamshire County Council,1111/1001,Children and Young People,CYP,Third Party Payments,EDA,24/09/2018,06-13918,"32,611.95",Netherfield Primary School (Academy
Nottinghamshire County Council,1111/1001,Children and Young People,CYP,Third Party Payments,EDA,24/09/2018,06-13919,"23,659.65",Hillside Academy
Nottinghamshire County Council,1111/1001,Children and Young People,CYP,Third Party Payments,EDA,24/09/2018,06-13920,26217.45,The Flying High Academy
Nottinghamshire County Council,1111/1001,Children and Young People,CYP,Third Party Payments,EDA,24/09/2018,06-13921,29798.37,Candleby Lane School
Nottinghamshire County Council,1111/1001,Children and Young People,CYP,Third Party Payments,EDA,24/09/2018,06-13922,"12,149.55",The Bramble Academy
Nottinghamshire County Council,1111/1001,Children and Young People,CYP,Third Party Payments,EDA,24/09/2018,06-13923,"30,054.15",Serlby Park Academy
Nottinghamshire County Council,1111/1001,Children and Young People,CYP,Third Party Payments,EDA,24/09/2018,06-13924,"23,020.20",Robert Mellors Primary & Nursery Ac
Nottinghamshire County Council,1111/1001,Children and Young People,CYP,Third Party Payments,EDA,24/09/2018,06-13925,"17,265.15",Mansfield Primary Academy
Nottinghamshire County Council,1111/1001,Children and Young People,CYP,Third Party Payments,EDA,24/09/2018,06-13926,"21,101.85",Wainwright Primary Academy
Nottinghamshire County Council,1111/1001,Children and Young People,CYP,Third Party Payments,EDA,24/09/2018,06-13927,13428.45,Bishop Alexander LEAD Academy
Nottinghamshire County Council,1111/1001,Children and Young People,CYP,Third Party Payments,EDA,24/09/2018,06-13928,20462.4,Tuxford Primary Academy
Nottinghamshire County Council,1111/1001,Children and Young People,CYP,Third Party Payments,EDA,27/09/2018,06-11106,"19,493.00",Kirkby College
Nottinghamshire County Council,1111/1001,Children and Young People,CYP,Third Party Payments,EGA,03/09/2018,06-17200,668,Longdale Nursery School
Nottinghamshire County Council,1111/1001,Children and Young People,CYP,Third Party Payments,EGA,04/09/2018,06-10758,2343.27,Speckled Frogs Pre-School
Nottinghamshire County Council,1111/1001,Children and Young People,CYP,Third Party Payments,EGA,04/09/2018,06-10759,32802.84,Papermoon Day Nursery Sutton In Ash
Nottinghamshire County Council,1111/1001,Children and Young People,CYP,Third Party Payments,EGA,04/09/2018,06-10760,4149.02,Sparkle Daycare
Nottinghamshire County Council,1111/1001,Children and Young People,CYP,Third Party Payments,EGA,04/09/2018,06-10761,11557.14,Papermoon Day Nursery
Nottinghamshire County Council,1111/1001,Children and Young People,CYP,Third Party Payments,EGA,04/09/2018,06-10762,21198.19,Papermoon Day Nursery
Nottinghamshire County Council,1111/1001,Children and Young People,CYP,Third Party Payments,EGA,04/09/2018,06-10763,10535.23,Staunton Montessori Nursery School
Nottinghamshire County Council,1111/1001,Children and Young People,CYP,Third Party Payments,EGA,04/09/2018,06-10764,"10,040.94",Stapleford Day Nursery
Nottinghamshire County Council,1111/1001,Children and Young People,CYP,Third Party Payments,EGA,04/09/2018,06-10765,615.89,Taylor -Made Childcare
Nottinghamshire County Council,1111/1001,Children and Young People,CYP,Third Party Payments,EGA,04/09/2018,06-10766,1869.51,Sutton Bonington Playgroup
Nottinghamshire County Council,1111/1001,Children and Young People,CYP,Third Party Payments,EGA,04/09/2018,06-10767,853.02,Sunbeams Pre-School
Nottinghamshire County Council,1111/1001,Children and Young People,CYP,Third Party Payments,EGA,04/09/2018,06-10768,"9,177.84",Papermoon Day Nursery
Nottinghamshire County Council,1111/1001,Children and Young People,CYP,Third Party Payments,EGA,04/09/2018,06-10769,"3,292.89",Tracey Streeter Childminding Servic
Nottinghamshire County Council,1111/1001,Children and Young People,CYP,Third Party Payments,EGA,04/09/2018,06-10770,10710,Sunnydale Nursery Ltd
Nottinghamshire County Council,1111/1001,Children and Young People,CYP,Third Party Payments,EGA,04/09/2018,06-10771,853.02,G Parnill T/A Imaginations Childmin
Nottinghamshire County Council,1111/1001,Children and Young People,CYP,Third Party Payments,EGA,04/09/2018,06-10772,"5,688.48",St Mary's Pre-School
Nottinghamshire County Council,1111/1001,Children and Young People,CYP,Third Party Payments,EGA,04/09/2018,06-10773,"6,557.04",St Johns Playgroup
Nottinghamshire County Council,1111/1001,Children and Young People,CYP,Third Party Payments,EGA,04/09/2018,06-10774,"5,909.28",St Giles Pre-school
Nottinghamshire County Council,1111/1001,Children and Young People,CYP,Third Party Payments,EGA,04/09/2018,06-10775,"2,363.76",Yew Tree Childcare
Nottinghamshire County Council,1111/1001,Children and Young People,CYP,Third Party Payments,EGA,04/09/2018,06-10776,681.41,A E Shaw (Childminder)
Nottinghamshire County Council,1111/1001,Children and Young People,CYP,Third Party Payments,EGA,04/09/2018,06-10777,1639.26,Small People Ltd
Nottinghamshire County Council,1111/1001,Children and Young People,CYP,Third Party Payments,EGA,04/09/2018,06-10778,4571.06,Smarties Private Day Nursery
Nottinghamshire County Council,1111/1001,Children and Young People,CYP,Third Party Payments,EGA,04/09/2018,06-10779,"4,794.30",Penguin Palace Nursery CIC
Nottinghamshire County Council,1111/1001,Children and Young People,CYP,Third Party Payments,EGA,04/09/2018,06-10780,3398.31,Southfields Pre-School
Nottinghamshire County Council,1111/1001,Children and Young People,CYP,Third Party Payments,EGA,04/09/2018,06-10781,760.03,Southwell Pre-School
Nottinghamshire County Council,1111/1001,Children and Young People,CYP,Third Party Payments,EGA,04/09/2018,06-10782,524.16,Kate's Childminding
Nottinghamshire County Council,1111/1001,Children and Young People,CYP,Third Party Payments,EGA,04/09/2018,06-10783,"1,007.16",L & K's Little Kingdom
Nottinghamshire County Council,1111/1001,Children and Young People,CYP,Third Party Payments,EGA,04/09/2018,06-10784,787.25,Sweet Pea's Childminding
Nottinghamshire County Council,1111/1001,Children and Young People,CYP,Third Party Payments,EGA,04/09/2018,06-10785,786.24,N Stevenson (Childminder)
Nottinghamshire County Council,1111/1001,Children and Young People,CYP,Third Party Payments,EGA,04/09/2018,06-10786,"1,310.40",Little House Childcare of Brinsley
Nottinghamshire County Council,1111/1001,Children and Young People,CYP,Third Party Payments,EGA,04/09/2018,06-10787,873.60,Belvoir House Childminding
Nottinghamshire County Council,1111/1001,Children and Young People,CYP,Third Party Payments,EGA,04/09/2018,06-10788,1115.1,Jammie Dodgers Childminding Group
Nottinghamshire County Council,1111/1001,Children and Young People,CYP,Third Party Payments,EGA,04/09/2018,06-10789,"1,033.20",[Redacted]
Nottinghamshire County Council,1111/1001,Children and Young People,CYP,Third Party Payments,EGA,04/09/2018,06-10790,995.91,[Redacted]
Nottinghamshire County Council,1111/1001,Children and Young People,CYP,Third Party Payments,EGA,04/09/2018,06-10791,"2,674.10",Orchard School Nursery
Nottinghamshire County Council,1111/1001,Children and Young People,CYP,Third Party Payments,EGA,04/09/2018,06-10792,"23,968.73",The Orchard Day Nursery
Nottinghamshire County Council,1111/1001,Children and Young People,CYP,Third Party Payments,EGA,04/09/2018,06-10793,524.16,[Redacted]
Nottinghamshire County Council,1111/1001,Children and Young People,CYP,Third Party Payments,EGA,04/09/2018,06-10794,16928.02,Oceans Day Nursery
Nottinghamshire County Council,1111/1001,Children and Young People,CYP,Third Party Payments,EGA,04/09/2018,06-10795,851.76,Fionas Childminding Services
Nottinghamshire County Council,1111/1001,Children and Young People,CYP,Third Party Payments,EGA,04/09/2018,06-10796,6552,Wolds Childcare Ltd
Nottinghamshire County Council,1111/1001,Children and Young People,CYP,Third Party Payments,EGA,04/09/2018,06-10797,3292.88,Wellin Lane Playgroup
Nottinghamshire County Council,1111/1001,Children and Young People,CYP,Third Party Payments,EGA,04/09/2018,06-10798,13124.16,Tiny World Mansfield
Nottinghamshire County Council,1111/1001,Children and Young People,CYP,Third Party Payments,EGA,04/09/2018,06-10799,"6,094.62",Tiny Talkers Day Nursery
Nottinghamshire County Council,1111/1001,Children and Young People,CYP,Third Party Payments,EGA,04/09/2018,06-10800,800.61,[Redacted]
Nottinghamshire County Council,1111/1001,Children and Young People,CYP,Third Party Payments,EGA,04/09/2018,06-10801,919.8,[Redacted]
Nottinghamshire County Council,1111/1001,Children and Young People,CYP,Third Party Payments,EGA,04/09/2018,06-10802,524.16,[Redacted]
Nottinghamshire County Council,1111/1001,Children and Young People,CYP,Third Party Payments,EGA,04/09/2018,06-10803,3508.77,North Muskham Playgroup
Nottinghamshire County Council,1111/1001,Children and Young People,CYP,Third Party Payments,EGA,04/09/2018,06-10804,818.08,[Redacted]
Nottinghamshire County Council,1111/1001,Children and Young People,CYP,Third Party Payments,EGA,04/09/2018,06-10805,21028.8,Grosvenor House Day Nursery
Nottinghamshire County Council,1111/1001,Children and Young People,CYP,Third Party Payments,EGA,04/09/2018,06-10806,4715.03,The West Bridgford Day Nursery
Nottinghamshire County Council,1111/1001,Children and Young People,CYP,Third Party Payments,EGA,04/09/2018,06-10807,10918.02,The Secret Garden Private Day Nurse
Nottinghamshire County Council,1111/1001,Children and Young People,CYP,Third Party Payments,EGA,04/09/2018,06-10808,22541.32,The Orange Tree Day Nursery
Nottinghamshire County Council,1111/1001,Children and Young People,CYP,Third Party Payments,EGA,04/09/2018,06-10809,7783.18,Noahs Ark Playgroup
Nottinghamshire County Council,1111/1001,Children and Young People,CYP,Third Party Payments,EGA,04/09/2018,06-10810,"3,740.94",The Lime Trees (Forest Town)
Nottinghamshire County Council,1111/1001,Children and Young People,CYP,Third Party Payments,EGA,04/09/2018,06-10811,"4,385.47",The Lime Trees
Nottinghamshire County Council,1111/1001,Children and Young People,CYP,Third Party Payments,EGA,04/09/2018,06-10812,"3,104.39",Netherfield Pre School Ltd
Nottinghamshire County Council,1111/1001,Children and Young People,CYP,Third Party Payments,EGA,04/09/2018,06-10813,7118.43,The Lime Trees
Nottinghamshire County Council,1111/1001,Children and Young People,CYP,Third Party Payments,EGA,04/09/2018,06-10814,"5,385.24",The Lime Trees
Nottinghamshire County Council,1111/1001,Children and Young People,CYP,Third Party Payments,EGA,04/09/2018,06-10815,934.75,[Redacted]
Nottinghamshire County Council,1111/1001,Children and Young People,CYP,Third Party Payments,EGA,04/09/2018,06-10816,"10,585.26",The Learning Tree Day Nursery 2
Nottinghamshire County Council,1111/1001,Children and Young People,CYP,Third Party Payments,EGA,04/09/2018,06-10817,25187.4,The Learning Tree Nursery
Nottinghamshire County Council,1111/1001,Children and Young People,CYP,Third Party Payments,EGA,04/09/2018,06-10818,"9,401.87",The Enchanted Garden Day Nursery
Nottinghamshire County Council,1111/1001,Children and Young People,CYP,Third Party Payments,EGA,04/09/2018,06-10819,3526.46,Thrumpton Kids Clubs
Nottinghamshire County Council,1111/1001,Children and Young People,CYP,Third Party Payments,EGA,04/09/2018,06-10820,"1,048.32",[Redacted]
Nottinghamshire County Council,1111/1001,Children and Young People,CYP,Third Party Payments,EGA,04/09/2018,06-10821,853.02,Little Tots
Nottinghamshire County Council,1111/1001,Children and Young People,CYP,Third Party Payments,EGA,04/09/2018,06-10822,524.16,V Gill (Childminder)
Nottinghamshire County Council,1111/1001,Children and Young People,CYP,Third Party Payments,EGA,04/09/2018,06-10823,"7,119.25",St Peter's Early Years
Nottinghamshire County Council,1111/1001,Children and Young People,CYP,Third Party Payments,EGA,04/09/2018,06-10824,611.52,S Ellis (Childminder)
Nottinghamshire County Council,1111/1001,Children and Young People,CYP,Third Party Payments,EGA,04/09/2018,06-10825,657.72,S Easpinoza (Childminder)
Nottinghamshire County Council,1111/1001,Children and Young People,CYP,Third Party Payments,EGA,04/09/2018,06-10826,590.94,[Redacted]
Nottinghamshire County Council,1111/1001,Children and Young People,CYP,Third Party Payments,EGA,04/09/2018,06-10827,1377.18,Rachel & Philip's Home From Home Ch
Nottinghamshire County Council,1111/1001,Children and Young People,CYP,Third Party Payments,EGA,04/09/2018,06-10828,611.52,[Redacted]
Nottinghamshire County Council,1111/1001,Children and Young People,CYP,Third Party Payments,EGA,04/09/2018,06-10829,786.24,[Redacted]
Nottinghamshire County Council,1111/1001,Children and Young People,CYP,Third Party Payments,EGA,04/09/2018,06-10830,6275.47,Luan's Little People Ltd
Nottinghamshire County Council,1111/1001,Children and Young People,CYP,Third Party Payments,EGA,04/09/2018,06-10831,"4,604.04",Luan's Little People
Nottinghamshire County Council,1111/1001,Children and Young People,CYP,Third Party Payments,EGA,04/09/2018,06-10832,1181.88,Laura's Childminding
Nottinghamshire County Council,1111/1001,Children and Young People,CYP,Third Party Payments,EGA,04/09/2018,06-10833,524.16,Ladybird Childminding
Nottinghamshire County Council,1111/1001,Children and Young People,CYP,Third Party Payments,EGA,04/09/2018,06-10834,7296.84,Lowdham & Epperstone Pre-School
Nottinghamshire County Council,1111/1001,Children and Young People,CYP,Third Party Payments,EGA,04/09/2018,06-10835,"18,860.32",Discovery Day Nursery
Nottinghamshire County Council,1111/1001,Children and Young People,CYP,Third Party Payments,EGA,04/09/2018,06-10836,"4,923.96",Lowater Street Play  & Pre School
Nottinghamshire County Council,1111/1001,Children and Young People,CYP,Third Party Payments,EGA,04/09/2018,06-10837,576.58,[Redacted]
Nottinghamshire County Council,1111/1001,Children and Young People,CYP,Third Party Payments,EGA,04/09/2018,06-10838,2034.9,Gognas Day Nursery Ltd
Nottinghamshire County Council,1111/1001,Children and Young People,CYP,Third Party Payments,EGA,04/09/2018,06-10839,786.24,[Redacted]
Nottinghamshire County Council,1111/1001,Children and Young People,CYP,Third Party Payments,EGA,04/09/2018,06-10840,657.72,[Redacted]
Nottinghamshire County Council,1111/1001,Children and Young People,CYP,Third Party Payments,EGA,04/09/2018,06-10841,902.33,[Redacted]
Nottinghamshire County Council,1111/1001,Children and Young People,CYP,Third Party Payments,EGA,04/09/2018,06-10842,524.16,[Redacted]
Nottinghamshire County Council,1111/1001,Children and Young People,CYP,Third Party Payments,EGA,04/09/2018,06-10843,11968.32,Millfield Nursery School
Nottinghamshire County Council,1111/1001,Children and Young People,CYP,Third Party Payments,EGA,04/09/2018,06-10844,5364.15,Misson Pre-School
Nottinghamshire County Council,1111/1001,Children and Young People,CYP,Third Party Payments,EGA,04/09/2018,06-10845,986.58,Tinas Childminding
Nottinghamshire County Council,1111/1001,Children and Young People,CYP,Third Party Payments,EGA,04/09/2018,06-10846,4927.78,Toddlers University (Bee)
Nottinghamshire County Council,1111/1001,Children and Young People,CYP,Third Party Payments,EGA,04/09/2018,06-10847,"6,012.89",Tollerton Playgroup
Nottinghamshire County Council,1111/1001,Children and Young People,CYP,Third Party Payments,EGA,04/09/2018,06-10848,10031.45,Daisies Day Nursery
Nottinghamshire County Council,1111/1001,Children and Young People,CYP,Third Party Payments,EGA,04/09/2018,06-10849,18426.76,Daisies Day Nursery
Nottinghamshire County Council,1111/1001,Children and Young People,CYP,Third Party Payments,EGA,04/09/2018,06-10850,786.24,[Redacted]
Nottinghamshire County Council,1111/1001,Children and Young People,CYP,Third Party Payments,EGA,04/09/2018,06-10851,"6,198.01",Creative Hands Childcare
Nottinghamshire County Council,1111/1001,Children and Young People,CYP,Third Party Payments,EGA,04/09/2018,06-10852,8087.64,Cranmer Pre-School
Nottinghamshire County Council,1111/1001,Children and Young People,CYP,Third Party Payments,EGA,04/09/2018,06-10853,"1,572.48",Mini-me Childcare
Nottinghamshire County Council,1111/1001,Children and Young People,CYP,Third Party Payments,EGA,04/09/2018,06-10854,"5,446.98",Mulberry Bush Day Nursery
Nottinghamshire County Council,1111/1001,Children and Young People,CYP,Third Party Payments,EGA,04/09/2018,06-10855,10100.16,Country Kids Day Nursery
Nottinghamshire County Council,1111/1001,Children and Young People,CYP,Third Party Payments,EGA,04/09/2018,06-10856,"10,719.66",Coteswood House School
Nottinghamshire County Council,1111/1001,Children and Young People,CYP,Third Party Payments,EGA,04/09/2018,06-10857,698.88,[Redacted]
Nottinghamshire County Council,1111/1001,Children and Young People,CYP,Third Party Payments,EGA,04/09/2018,06-10858,1472.02,Costock Pre School
Nottinghamshire County Council,1111/1001,Children and Young People,CYP,Third Party Payments,EGA,04/09/2018,06-10859,"2,497.32",[Redacted]
Nottinghamshire County Council,1111/1001,Children and Young People,CYP,Third Party Payments,EGA,04/09/2018,06-10860,776.29,[Redacted]
Nottinghamshire County Council,1111/1001,Children and Young People,CYP,Third Party Payments,EGA,04/09/2018,06-10861,511.81,Ami Wallington Childminding Service
Nottinghamshire County Council,1111/1001,Children and Young People,CYP,Third Party Payments,EGA,04/09/2018,06-10862,1292.93,[Redacted]
Nottinghamshire County Council,1111/1001,Children and Young People,CYP,Third Party Payments,EGA,04/09/2018,06-10863,524.16,[Redacted]
Nottinghamshire County Council,1111/1001,Children and Young People,CYP,Third Party Payments,EGA,04/09/2018,06-10864,"5,237.32",Early Learners Centre Day Nursery
Nottinghamshire County Council,1111/1001,Children and Young People,CYP,Third Party Payments,EGA,04/09/2018,06-10865,5352.49,Early Years Playgroup
Nottinghamshire County Council,1111/1001,Children and Young People,CYP,Third Party Payments,EGA,04/09/2018,06-10866,"5,844.08",East Leake Pre-School Playgroup
Nottinghamshire County Council,1111/1001,Children and Young People,CYP,Third Party Payments,EGA,04/09/2018,06-10867,11618.93,Edwalton Day Nursery
Nottinghamshire County Council,1111/1001,Children and Young People,CYP,Third Party Payments,EGA,04/09/2018,06-10868,5811.69,Farnsfield Pre-School
Nottinghamshire County Council,1111/1001,Children and Young People,CYP,Third Party Payments,EGA,04/09/2018,06-10869,"21,920.57",Fernwood Day Nursery Ltd
Nottinghamshire County Council,1111/1001,Children and Young People,CYP,Third Party Payments,EGA,04/09/2018,06-10870,"5,389.53",Fledglings Playgroup
Nottinghamshire County Council,1111/1001,Children and Young People,CYP,Third Party Payments,EGA,04/09/2018,06-10871,3914.39,Good Shepherd Pre-School
Nottinghamshire County Council,1111/1001,Children and Young People,CYP,Third Party Payments,EGA,04/09/2018,06-10872,2821.73,Gotham Pre-School Playgroup
Nottinghamshire County Council,1111/1001,Children and Young People,CYP,Third Party Payments,EGA,04/09/2018,06-10873,"10,883.88",Granby House Nursery
Nottinghamshire County Council,1111/1001,Children and Young People,CYP,Third Party Payments,EGA,04/09/2018,06-10874,751.30,[Redacted]
Nottinghamshire County Council,1111/1001,Children and Young People,CYP,Third Party Payments,EGA,04/09/2018,06-10875,"9,439.92",Happy Days Childcare Services Ltd
Nottinghamshire County Council,1111/1001,Children and Young People,CYP,Third Party Payments,EGA,04/09/2018,06-10876,"1,639.26",[Redacted]
Nottinghamshire County Council,1111/1001,Children and Young People,CYP,Third Party Payments,EGA,04/09/2018,06-10877,"2,007.42",Happy Munchkins Pre School
Nottinghamshire County Council,1111/1001,Children and Young People,CYP,Third Party Payments,EGA,04/09/2018,06-10878,838.66,Hayley Williams Childminding Servic
Nottinghamshire County Council,1111/1001,Children and Young People,CYP,Third Party Payments,EGA,04/09/2018,06-10879,4512.98,Haywood Road Pre-School Playgroup
Nottinghamshire County Council,1111/1001,Children and Young People,CYP,Third Party Payments,EGA,04/09/2018,06-10880,"2,363.76",Hermitage Pre-School
Nottinghamshire County Council,1111/1001,Children and Young People,CYP,Third Party Payments,EGA,04/09/2018,06-10881,2026.75,Hickling Pre-School
Nottinghamshire County Council,1111/1001,Children and Young People,CYP,Third Party Payments,EGA,04/09/2018,06-10882,9620.85,Highfields School & Nursery
Nottinghamshire County Council,1111/1001,Children and Young People,CYP,Third Party Payments,EGA,04/09/2018,06-10883,524.16,[Redacted]
Nottinghamshire County Council,1111/1001,Children and Young People,CYP,Third Party Payments,EGA,04/09/2018,06-10884,1310.4,[Redacted]
Nottinghamshire County Council,1111/1001,Children and Young People,CYP,Third Party Payments,EGA,04/09/2018,06-10885,1237.41,Toton Tots Pre-School
Nottinghamshire County Council,1111/1001,Children and Young People,CYP,Third Party Payments,EGA,04/09/2018,06-10886,3879.54,Zoes Childcare Ltd
Nottinghamshire County Council,1111/1001,Children and Young People,CYP,Third Party Payments,EGA,04/09/2018,06-10887,4593.96,Zoe's Childcare Ltd
Nottinghamshire County Council,1111/1001,Children and Young People,CYP,Third Party Payments,EGA,04/09/2018,06-10888,"7,677.18",Young Rascals Day Nursery
Nottinghamshire County Council,1111/1001,Children and Young People,CYP,Third Party Payments,EGA,04/09/2018,06-10889,590.94,[Redacted]
Nottinghamshire County Council,1111/1001,Children and Young People,CYP,Third Party Payments,EGA,04/09/2018,06-10890,8790.92,Worksop College
Nottinghamshire County Council,1111/1001,Children and Young People,CYP,Third Party Payments,EGA,04/09/2018,06-10891,"26,279.82",Woodthorpe Day Nursery Ltd
Nottinghamshire County Council,1111/1001,Children and Young People,CYP,Third Party Payments,EGA,04/09/2018,06-10892,"6,382.58",Woodborough Village Pre School
Nottinghamshire County Council,1111/1001,Children and Young People,CYP,Third Party Payments,EGA,04/09/2018,06-10893,"20,534.22",Wollaton Village Day Nurseries Ltd.
Nottinghamshire County Council,1111/1001,Children and Young People,CYP,Third Party Payments,EGA,04/09/2018,06-10894,7247.77,Wollaton Village Day Nurseries
Nottinghamshire County Council,1111/1001,Children and Young People,CYP,Third Party Payments,EGA,04/09/2018,06-10895,6444.06,Wolds Day Nursery @ Stragglethorpe
Nottinghamshire County Council,1111/1001,Children and Young People,CYP,Third Party Payments,EGA,04/09/2018,06-10896,"13,392.54",Wishing Well Day Nursery
Nottinghamshire County Council,1111/1001,Children and Young People,CYP,Third Party Payments,EGA,04/09/2018,06-10897,"2,918.25",Windmill Kindergarten Playgroup
Nottinghamshire County Council,1111/1001,Children and Young People,CYP,Third Party Payments,EGA,04/09/2018,06-10898,"4,379.76",Willow Pre-School Playgroup
Nottinghamshire County Council,1111/1001,Children and Young People,CYP,Third Party Payments,EGA,04/09/2018,06-10899,"3,302.21",Willow Brook Pre-School
Nottinghamshire County Council,1111/1001,Children and Young People,CYP,Third Party Payments,EGA,04/09/2018,06-10900,"2,861.04",Willoughby On The Wolds Playgroup
Nottinghamshire County Council,1111/1001,Children and Young People,CYP,Third Party Payments,EGA,04/09/2018,06-10901,15811.74,PSLA Newstead Childcare (HO)
Nottinghamshire County Council,1111/1001,Children and Young People,CYP,Third Party Payments,EGA,04/09/2018,06-10902,9589.02,Whitehouse Day Nursery
Nottinghamshire County Council,1111/1001,Children and Young People,CYP,Third Party Payments,EGA,04/09/2018,06-10903,"2,942.68",West Street Pre-School
Nottinghamshire County Council,1111/1001,Children and Young People,CYP,Third Party Payments,EGA,04/09/2018,06-10904,12361.58,Westdale Pre-School
Nottinghamshire County Council,1111/1001,Children and Young People,CYP,Third Party Payments,EGA,04/09/2018,06-10905,657.72,[Redacted]
Nottinghamshire County Council,1111/1001,Children and Young People,CYP,Third Party Payments,EGA,04/09/2018,06-10906,"22,682.52",Village Day Nursery
Nottinghamshire County Council,1111/1001,Children and Young People,CYP,Third Party Payments,EGA,04/09/2018,06-10907,"4,347.42",West Bridgford Out Of School Care L
Nottinghamshire County Council,1111/1001,Children and Young People,CYP,Third Party Payments,EGA,04/09/2018,06-10908,11714.98,Weaverthorpe Pre-School Playgroup
Nottinghamshire County Council,1111/1001,Children and Young People,CYP,Third Party Payments,EGA,04/09/2018,06-10909,"2,660.87",Watnall Pre-School Playgroup
Nottinghamshire County Council,1111/1001,Children and Young People,CYP,Third Party Payments,EGA,04/09/2018,06-10910,"5,488.73",Walesby School Playgroup
Nottinghamshire County Council,1111/1001,Children and Young People,CYP,Third Party Payments,EGA,04/09/2018,06-10911,554.74,[Redacted]
Nottinghamshire County Council,1111/1001,Children and Young People,CYP,Third Party Payments,EGA,04/09/2018,06-10912,524.16,[Redacted]
Nottinghamshire County Council,1111/1001,Children and Young People,CYP,Third Party Payments,EGA,04/09/2018,06-10913,"5,949.22",Upton Crickets Day Nursery
Nottinghamshire County Council,1111/1001,Children and Young People,CYP,Third Party Payments,EGA,04/09/2018,06-10914,"3,229.22",Trowell Pre School
Nottinghamshire County Council,1111/1001,Children and Young People,CYP,Third Party Payments,EGA,04/09/2018,06-10915,"8,513.80",Treetops Nursery
Nottinghamshire County Council,1111/1001,Children and Young People,CYP,Third Party Payments,EGA,04/09/2018,06-10916,590.94,Sharons Childminding
Nottinghamshire County Council,1111/1001,Children and Young People,CYP,Third Party Payments,EGA,04/09/2018,06-10917,"1,048.32",S Cave (Childminding Service)
Nottinghamshire County Council,1111/1001,Children and Young People,CYP,Third Party Payments,EGA,04/09/2018,06-10918,1510.74,[Redacted]
Nottinghamshire County Council,1111/1001,Children and Young People,CYP,Third Party Payments,EGA,04/09/2018,06-10919,550.37,K J Channer (Childminder)
Nottinghamshire County Council,1111/1001,Children and Young People,CYP,Third Party Payments,EGA,04/09/2018,06-10920,7927.46,Crossdale Busy Bees Pre-School
Nottinghamshire County Council,1111/1001,Children and Young People,CYP,Third Party Payments,EGA,04/09/2018,06-10921,3712.17,Collingham & District Pre-School
Nottinghamshire County Council,1111/1001,Children and Young People,CYP,Third Party Payments,EGA,04/09/2018,06-10922,8329.86,Claremont Early Years Ltd
Nottinghamshire County Council,1111/1001,Children and Young People,CYP,Third Party Payments,EGA,04/09/2018,06-10923,"3,232.32",Christchurch Hall Pre-School Playgr
Nottinghamshire County Council,1111/1001,Children and Young People,CYP,Third Party Payments,EGA,04/09/2018,06-10924,6238.91,Childrens House Childcare Ltd
Nottinghamshire County Council,1111/1001,Children and Young People,CYP,Third Party Payments,EGA,04/09/2018,06-10925,13668.91,Children 1st @ Newark Centre
Nottinghamshire County Council,1111/1001,Children and Young People,CYP,Third Party Payments,EGA,04/09/2018,06-10926,13261.64,Children 1st @ Breedon House (Plumt
Nottinghamshire County Council,1111/1001,Children and Young People,CYP,Third Party Payments,EGA,04/09/2018,06-10927,6097.75,Child First (Welbeck) (Childminding
Nottinghamshire County Council,1111/1001,Children and Young People,CYP,Third Party Payments,EGA,04/09/2018,06-10928,8653.68,Cherubs Ryton Park
Nottinghamshire County Council,1111/1001,Children and Young People,CYP,Third Party Payments,EGA,04/09/2018,06-10929,26858.4,Cherubs Day Nursery
Nottinghamshire County Council,1111/1001,Children and Young People,CYP,Third Party Payments,EGA,04/09/2018,06-10930,21937.23,Cherubs Childrens Centre Wynndale
Nottinghamshire County Council,1111/1001,Children and Young People,CYP,Third Party Payments,EGA,04/09/2018,06-10931,8155.14,Cherubs Childrens Centre Pleasley
Nottinghamshire County Council,1111/1001,Children and Young People,CYP,Third Party Payments,EGA,04/09/2018,06-10932,13264.62,Cherubs Childcare Centre Ladybrook
Nottinghamshire County Council,1111/1001,Children and Young People,CYP,Third Party Payments,EGA,04/09/2018,06-10933,9249.66,Cherubs Childcare Centre (Mansfield
Nottinghamshire County Council,1111/1001,Children and Young People,CYP,Third Party Payments,EGA,04/09/2018,06-10934,"7,014.42",Cherubs (Sutton In Ashfield) Childm
Nottinghamshire County Council,1111/1001,Children and Young People,CYP,Third Party Payments,EGA,04/09/2018,06-10935,"7,780.08",Cheeky Monkeys Day Nursery
Nottinghamshire County Council,1111/1001,Children and Young People,CYP,Third Party Payments,EGA,04/09/2018,06-10936,"6,668.09",Cedar House Day Nursery
Nottinghamshire County Council,1111/1001,Children and Young People,CYP,Third Party Payments,EGA,04/09/2018,06-10937,2692.62,Carousel Under 5'S Playgroup
Nottinghamshire County Council,1111/1001,Children and Young People,CYP,Third Party Payments,EGA,04/09/2018,06-10938,"5,041.10",Carlton Preschool Playgroup
Nottinghamshire County Council,1111/1001,Children and Young People,CYP,Third Party Payments,EGA,04/09/2018,06-10939,"17,468.47",Carlton & Gedling Day Nursery
Nottinghamshire County Council,1111/1001,Children and Young People,CYP,Third Party Payments,EGA,04/09/2018,06-10940,"3,607.38",Butterflies Nursery (West Notts Col
Nottinghamshire County Council,1111/1001,Children and Young People,CYP,Third Party Payments,EGA,04/09/2018,06-10941,7972.41,Buttercross Pre School
Nottinghamshire County Council,1111/1001,Children and Young People,CYP,Third Party Payments,EGA,04/09/2018,06-10942,"7,474.91",Busy Bees Nursery
Nottinghamshire County Council,1111/1001,Children and Young People,CYP,Third Party Payments,EGA,04/09/2018,06-10943,11557.98,Busy Bees (Daybrook)
Nottinghamshire County Council,1111/1001,Children and Young People,CYP,Third Party Payments,EGA,04/09/2018,06-10944,"4,769.86",Children 1st @ Breedon House (Toton
Nottinghamshire County Council,1111/1001,Children and Young People,CYP,Third Party Payments,EGA,04/09/2018,06-10945,15646.56,Children 1st @ Breedon House (Toton
Nottinghamshire County Council,1111/1001,Children and Young People,CYP,Third Party Payments,EGA,04/09/2018,06-10946,524.16,[Redacted]
Nottinghamshire County Council,1111/1001,Children and Young People,CYP,Third Party Payments,EGA,05/09/2018,06-11111,"9,768.78",Kingfisher Day Nursery
Nottinghamshire County Council,1111/1001,Children and Young People,CYP,Third Party Payments,EGA,05/09/2018,06-11112,"4,317.26",Kimberley Pre-School Playgroup
Nottinghamshire County Council,1111/1001,Children and Young People,CYP,Third Party Payments,EGA,05/09/2018,06-11113,7065.74,Killisick Pre-School
Nottinghamshire County Council,1111/1001,Children and Young People,CYP,Third Party Payments,EGA,05/09/2018,06-11114,"1,180.92",[Redacted]
Nottinghamshire County Council,1111/1001,Children and Young People,CYP,Third Party Payments,EGA,05/09/2018,06-11115,10431.54,Kidzgrove
Nottinghamshire County Council,1111/1001,Children and Young People,CYP,Third Party Payments,EGA,05/09/2018,06-11116,1180.37,[Redacted]
Nottinghamshire County Council,1111/1001,Children and Young People,CYP,Third Party Payments,EGA,05/09/2018,06-11117,8663.64,Jumacare Ltd T/A Church House Nurse
Nottinghamshire County Council,1111/1001,Children and Young People,CYP,Third Party Payments,EGA,05/09/2018,06-11118,1310.4,[Redacted]
Nottinghamshire County Council,1111/1001,Children and Young People,CYP,Third Party Payments,EGA,05/09/2018,06-11119,"3,053.88",Jesters Childcare Ltd
Nottinghamshire County Council,1111/1001,Children and Young People,CYP,Third Party Payments,EGA,05/09/2018,06-11120,1409.02,Jelly Beans Day Nursery Ltd
Nottinghamshire County Council,1111/1001,Children and Young People,CYP,Third Party Payments,EGA,05/09/2018,06-11121,2712.82,Inham Park Pre School Playgroup
Nottinghamshire County Council,1111/1001,Children and Young People,CYP,Third Party Payments,EGA,05/09/2018,06-11122,524.16,R Hudson (Childminding Service)
Nottinghamshire County Council,1111/1001,Children and Young People,CYP,Third Party Payments,EGA,05/09/2018,06-11123,"5,858.16",Hucknall Pre-School Playgroup
Nottinghamshire County Council,1111/1001,Children and Young People,CYP,Third Party Payments,EGA,05/09/2018,06-11124,"4,245.69",Horsendale Playgroup
Nottinghamshire County Council,1111/1001,Children and Young People,CYP,Third Party Payments,EGA,05/09/2018,06-11125,506.69,Jeanette Hooper Childminding Servic
Nottinghamshire County Council,1111/1001,Children and Young People,CYP,Third Party Payments,EGA,05/09/2018,06-11126,6938.14,Honey Pot Day Private Day Nursery L
Nottinghamshire County Council,1111/1001,Children and Young People,CYP,Third Party Payments,EGA,05/09/2018,06-11127,"11,918.58",Homestead Day Nursery Ltd
Nottinghamshire County Council,1111/1001,Children and Young People,CYP,Third Party Payments,EGA,05/09/2018,06-11128,7631.57,Hollies Day Nursery (Loughborough R
Nottinghamshire County Council,1111/1001,Children and Young People,CYP,Third Party Payments,EGA,05/09/2018,06-11129,11201.39,Hollies Day Nurseries Limited
Nottinghamshire County Council,1111/1001,Children and Young People,CYP,Third Party Payments,EGA,05/09/2018,06-11130,11190.67,Hollies Day Nurseries
Nottinghamshire County Council,1111/1001,Children and Young People,CYP,Third Party Payments,EGA,05/09/2018,06-11131,5822.06,Willow Childcare & Training Ltd
Nottinghamshire County Council,1111/1001,Children and Young People,CYP,Third Party Payments,EGA,05/09/2018,06-11132,853.02,S Roche (Childminder)
Nottinghamshire County Council,1111/1001,Children and Young People,CYP,Third Party Payments,EGA,05/09/2018,06-11133,594.05,S Schneider (Childminder)
Nottinghamshire County Council,1111/1001,Children and Young People,CYP,Third Party Payments,EGA,05/09/2018,06-11134,524.16,R Savage (Childminder)
Nottinghamshire County Council,1111/1001,Children and Young People,CYP,Third Party Payments,EGA,05/09/2018,06-11135,524.16,Karen's Childminding
Nottinghamshire County Council,1111/1001,Children and Young People,CYP,Third Party Payments,EGA,05/09/2018,06-11136,524.16,K Sharp (Childminding Service)
Nottinghamshire County Council,1111/1001,Children and Young People,CYP,Third Party Payments,EGA,05/09/2018,06-11137,13129.62,Scottswood Pdn Ltd
Nottinghamshire County Council,1111/1001,Children and Young People,CYP,Third Party Payments,EGA,05/09/2018,06-11138,"17,109.54",Serendipity's Day Nursery
Nottinghamshire County Council,1111/1001,Children and Young People,CYP,Third Party Payments,EGA,05/09/2018,06-11139,"8,744.15",Serendipity's Day Nursery
Nottinghamshire County Council,1111/1001,Children and Young People,CYP,Third Party Payments,EGA,05/09/2018,06-11140,17729.46,Serendipity's Day Nursery
Nottinghamshire County Council,1111/1001,Children and Young People,CYP,Third Party Payments,EGA,05/09/2018,06-11141,"16,783.62",Serendipity's Day Nursery
Nottinghamshire County Council,1111/1001,Children and Young People,CYP,Third Party Payments,EGA,05/09/2018,06-11142,"10,442.04",Scotts Wood Private Day Nursery
Nottinghamshire County Council,1111/1001,Children and Young People,CYP,Third Party Payments,EGA,05/09/2018,06-11143,13329.54,Shaping Futures Day Nursery
Nottinghamshire County Council,1111/1001,Children and Young People,CYP,Third Party Payments,EGA,05/09/2018,06-11144,"9,731.87",Shaping Futures Day Nursery
Nottinghamshire County Council,1111/1001,Children and Young People,CYP,Third Party Payments,EGA,05/09/2018,06-11147,"17,737.99",Safe Haven Day Nursery
Nottinghamshire County Council,1111/1001,Children and Young People,CYP,Third Party Payments,EGA,05/09/2018,06-11148,24354.37,The Rocking Horse Child Care Centre
Nottinghamshire County Council,1111/1001,Children and Young People,CYP,Third Party Payments,EGA,05/09/2018,06-11242,657.72,Rainbows Childminding
Nottinghamshire County Council,1111/1001,Children and Young People,CYP,Third Party Payments,EGA,05/09/2018,06-11255,11731.86,Radcliffe On Trent Day Nursery
Nottinghamshire County Council,1111/1001,Children and Young People,CYP,Third Party Payments,EGA,05/09/2018,06-11262,5665.91,Ravenshead Pre-School Playgroup
Nottinghamshire County Council,1111/1001,Children and Young People,CYP,Third Party Payments,EGA,05/09/2018,06-11264,13982.22,Rocking Horse Nursery Butlers Hill
Nottinghamshire County Council,1111/1001,Children and Young People,CYP,Third Party Payments,EGA,05/09/2018,06-11265,9121.14,Rainbows Day Nursery
Nottinghamshire County Council,1111/1001,Children and Young People,CYP,Third Party Payments,EGA,05/09/2018,06-11266,"3,412.08",Rainbow Day Nursery
Nottinghamshire County Council,1111/1001,Children and Young People,CYP,Third Party Payments,EGA,05/09/2018,06-11267,1310.4,[Redacted]
Nottinghamshire County Council,1111/1001,Children and Young People,CYP,Third Party Payments,EGA,05/09/2018,06-11268,524.16,[Redacted]
Nottinghamshire County Council,1111/1001,Children and Young People,CYP,Third Party Payments,EGA,05/09/2018,06-11269,2163.42,[Redacted]
Nottinghamshire County Council,1111/1001,Children and Young People,CYP,Third Party Payments,EGA,05/09/2018,06-11270,1563.16,[Redacted]
Nottinghamshire County Council,1111/1001,Children and Young People,CYP,Third Party Payments,EGA,05/09/2018,06-11271,"3,625.44",Ranskill Nursery
Nottinghamshire County Council,1111/1001,Children and Young People,CYP,Third Party Payments,EGA,05/09/2018,06-11272,"7,518.00",Railway Children Playgroup
Nottinghamshire County Council,1111/1001,Children and Young People,CYP,Third Party Payments,EGA,05/09/2018,06-11273,6843.21,Radcliffe On Trent Pre School Playg
Nottinghamshire County Council,1111/1001,Children and Young People,CYP,Third Party Payments,EGA,05/09/2018,06-11274,524.16,[Redacted]
Nottinghamshire County Council,1111/1001,Children and Young People,CYP,Third Party Payments,EGA,05/09/2018,06-11275,"1,123.84",[Redacted]
Nottinghamshire County Council,1111/1001,Children and Young People,CYP,Third Party Payments,EGA,05/09/2018,06-11276,"8,339.19",Pump Farm Day Nursery
Nottinghamshire County Council,1111/1001,Children and Young People,CYP,Third Party Payments,EGA,05/09/2018,06-11277,"7,609.65",Puddleducks Pre-School
Nottinghamshire County Council,1111/1001,Children and Young People,CYP,Third Party Payments,EGA,05/09/2018,06-11278,"4,825.97",Prebend Pre-School Playgroup
Nottinghamshire County Council,1111/1001,Children and Young People,CYP,Third Party Payments,EGA,05/09/2018,06-11279,"5,591.97",Pre-School 345
Nottinghamshire County Council,1111/1001,Children and Young People,CYP,Third Party Payments,EGA,05/09/2018,06-11280,5955.44,Portland Place Pre-School
Nottinghamshire County Council,1111/1001,Children and Young People,CYP,Third Party Payments,EGA,05/09/2018,06-11281,4380.48,Plumtree School
Nottinghamshire County Council,1111/1001,Children and Young People,CYP,Third Party Payments,EGA,05/09/2018,06-11282,"1,048.32",Alison Plant (Childminder)
Nottinghamshire County Council,1111/1001,Children and Young People,CYP,Third Party Payments,EGA,05/09/2018,06-11283,3607.97,Pippins Pre-School
Nottinghamshire County Council,1111/1001,Children and Young People,CYP,Third Party Payments,EGA,05/09/2018,06-11284,1048.32,Samsam Little Minders
Nottinghamshire County Council,1111/1001,Children and Young People,CYP,Third Party Payments,EGA,05/09/2018,06-11285,21171.78,Phoenix Park Nursery
Nottinghamshire County Council,1111/1001,Children and Young People,CYP,Third Party Payments,EGA,05/09/2018,06-11286,2760.58,Lady Bay Pre School Playgroup
Nottinghamshire County Council,1111/1001,Children and Young People,CYP,Third Party Payments,EGA,05/09/2018,06-11287,698.88,Fiona Lamb Childminding Service
Nottinghamshire County Council,1111/1001,Children and Young People,CYP,Third Party Payments,EGA,05/09/2018,06-11288,11919.6,Lambley Day Nursery Ltd
Nottinghamshire County Council,1111/1001,Children and Young People,CYP,Third Party Payments,EGA,05/09/2018,06-11289,5387.85,Leahurst Road Pre-School
Nottinghamshire County Council,1111/1001,Children and Young People,CYP,Third Party Payments,EGA,05/09/2018,06-11290,"5,419.85",Learning Ladder Childcare Ltd
Nottinghamshire County Council,1111/1001,Children and Young People,CYP,Third Party Payments,EGA,05/09/2018,06-11291,15570.74,Leen Mills Pre School Playgroup
Nottinghamshire County Council,1111/1001,Children and Young People,CYP,Third Party Payments,EGA,05/09/2018,06-11292,13952.58,Leos Childrens Nurseries Ltd
Nottinghamshire County Council,1111/1001,Children and Young People,CYP,Third Party Payments,EGA,05/09/2018,06-11293,"7,889.50",Leo's Childrens Nurseries Ltd
Nottinghamshire County Council,1111/1001,Children and Young People,CYP,Third Party Payments,EGA,05/09/2018,06-11294,"3,551.19",North Leverton Pre-School Playgroup
Nottinghamshire County Council,1111/1001,Children and Young People,CYP,Third Party Payments,EGA,05/09/2018,06-11295,853.02,B Lilley (Childminder)
Nottinghamshire County Council,1111/1001,Children and Young People,CYP,Third Party Payments,EGA,05/09/2018,06-11296,9756.18,Lime Trees Day Nursery Ltd (Carlton
Nottinghamshire County Council,1111/1001,Children and Young People,CYP,Third Party Payments,EGA,05/09/2018,06-11297,2574.01,Little Adventures Forest School Ltd
Nottinghamshire County Council,1111/1001,Children and Young People,CYP,Third Party Payments,EGA,05/09/2018,06-11298,"3,959.93",Little Acorns Shireoaks
Nottinghamshire County Council,1111/1001,Children and Young People,CYP,Third Party Payments,EGA,05/09/2018,06-11299,"8,334.90",Little Beans Childcare Ltd
Nottinghamshire County Council,1111/1001,Children and Young People,CYP,Third Party Payments,EGA,05/09/2018,06-11300,"12,284.75",Little Bears Day Nursery
Nottinghamshire County Council,1111/1001,Children and Young People,CYP,Third Party Payments,EGA,05/09/2018,06-11301,"2,230.20",Little Friends Day Nursery
Nottinghamshire County Council,1111/1001,Children and Young People,CYP,Third Party Payments,EGA,05/09/2018,06-11302,"7,069.61",Little Kites Playgroup
Nottinghamshire County Council,1111/1001,Children and Young People,CYP,Third Party Payments,EGA,05/09/2018,06-11303,12589.92,Little Lambs Day Nursery
Nottinghamshire County Council,1111/1001,Children and Young People,CYP,Third Party Payments,EGA,05/09/2018,06-11304,9440.52,Little Millers Day Nursery
Nottinghamshire County Council,1111/1001,Children and Young People,CYP,Third Party Payments,EGA,05/09/2018,06-11305,"13,974.85",Little Nippers Pre-School
Nottinghamshire County Council,1111/1001,Children and Young People,CYP,Third Party Payments,EGA,05/09/2018,06-11306,15837.78,Little Oaks Nursery
Nottinghamshire County Council,1111/1001,Children and Young People,CYP,Third Party Payments,EGA,05/09/2018,06-11307,7682.22,Little Baths Ltd T/A Little PLums D
Nottinghamshire County Council,1111/1001,Children and Young People,CYP,Third Party Payments,EGA,05/09/2018,06-11308,"8,266.78",Longdale Nursery School
Nottinghamshire County Council,1111/1001,Children and Young People,CYP,Third Party Payments,EGA,05/09/2018,06-11309,"1,115.10",Making Memories Childminding
Nottinghamshire County Council,1111/1001,Children and Young People,CYP,Third Party Payments,EGA,05/09/2018,06-11310,5980.47,Bullpit Road Nursery
Nottinghamshire County Council,1111/1001,Children and Young People,CYP,Third Party Payments,EGA,05/09/2018,06-11311,"14,968.59",Brooklyn Day Nursery
Nottinghamshire County Council,1111/1001,Children and Young People,CYP,Third Party Payments,EGA,05/09/2018,06-11312,"2,206.71",PSLA Newstead Childcare (HO)
Nottinghamshire County Council,1111/1001,Children and Young People,CYP,Third Party Payments,EGA,05/09/2018,06-11313,"15,910.19",Cared 4 Ltd T/A Brookhill House Day
Nottinghamshire County Council,1111/1001,Children and Young People,CYP,Third Party Payments,EGA,05/09/2018,06-11314,8066.52,Bright Stars Childcare
Nottinghamshire County Council,1111/1001,Children and Young People,CYP,Third Party Payments,EGA,05/09/2018,06-11315,"10,218.01",Bright Sparks Day Nursery
Nottinghamshire County Council,1111/1001,Children and Young People,CYP,Third Party Payments,EGA,05/09/2018,06-11316,"2,625.84",Pretty Windows Ltd
Nottinghamshire County Council,1111/1001,Children and Young People,CYP,Third Party Payments,EGA,05/09/2018,06-11317,"4,560.19",Bramcote Pre-School Playgroup
Nottinghamshire County Council,1111/1001,Children and Young People,CYP,Third Party Payments,EGA,05/09/2018,06-11318,786.24,[Redacted]
Nottinghamshire County Council,1111/1001,Children and Young People,CYP,Third Party Payments,EGA,05/09/2018,06-11319,524.16,Sunrayz Childcare
Nottinghamshire County Council,1111/1001,Children and Young People,CYP,Third Party Payments,EGA,05/09/2018,06-11320,524.16,[Redacted]
Nottinghamshire County Council,1111/1001,Children and Young People,CYP,Third Party Payments,EGA,05/09/2018,06-11321,22314.6,Bizzy Kidz
Nottinghamshire County Council,1111/1001,Children and Young People,CYP,Third Party Payments,EGA,05/09/2018,06-11322,524.16,[Redacted]
Nottinghamshire County Council,1111/1001,Children and Young People,CYP,Third Party Payments,EGA,05/09/2018,06-11323,6385.99,Bircotes Pre-School
Nottinghamshire County Council,1111/1001,Children and Young People,CYP,Third Party Payments,EGA,05/09/2018,06-11324,6517.06,Bingham Day Nursery & Pre School
Nottinghamshire County Council,1111/1001,Children and Young People,CYP,Third Party Payments,EGA,05/09/2018,06-11325,655.20,The Cornerhouse Childminding
Nottinghamshire County Council,1111/1001,Children and Young People,CYP,Third Party Payments,EGA,05/09/2018,06-11326,8108.94,Beeston Nursery
Nottinghamshire County Council,1111/1001,Children and Young People,CYP,Third Party Payments,EGA,05/09/2018,06-11327,7713.3,Beacon Hill Day Nursery
Nottinghamshire County Council,1111/1001,Children and Young People,CYP,Third Party Payments,EGA,05/09/2018,06-11328,16192.26,Balderton Pre-School
Nottinghamshire County Council,1111/1001,Children and Young People,CYP,Third Party Payments,EGA,05/09/2018,06-11329,524.16,S Baines (Childminder)
Nottinghamshire County Council,1111/1001,Children and Young People,CYP,Third Party Payments,EGA,05/09/2018,06-11330,524.16,[Redacted]
Nottinghamshire County Council,1111/1001,Children and Young People,CYP,Third Party Payments,EGA,05/09/2018,06-11331,660.83,Little Angels Childcare
Nottinghamshire County Council,1111/1001,Children and Young People,CYP,Third Party Payments,EGA,05/09/2018,06-11332,4219.74,Awsworth Schoolhouse Day Nursery
Nottinghamshire County Council,1111/1001,Children and Young People,CYP,Third Party Payments,EGA,05/09/2018,06-11333,11095.48,Aunty Sue's Day Care Ltd
Nottinghamshire County Council,1111/1001,Children and Young People,CYP,Third Party Payments,EGA,05/09/2018,06-11334,8380.27,Attenborough Church Pre-School
Nottinghamshire County Council,1111/1001,Children and Young People,CYP,Third Party Payments,EGA,05/09/2018,06-11335,1048.32,Little House Of Horrors
Nottinghamshire County Council,1111/1001,Children and Young People,CYP,Third Party Payments,EGA,05/09/2018,06-11336,524.16,[Redacted]
Nottinghamshire County Council,1111/1001,Children and Young People,CYP,Third Party Payments,EGA,05/09/2018,06-11337,"4,765.57",Arnold St Mary's Pre-School
Nottinghamshire County Council,1111/1001,Children and Young People,CYP,Third Party Payments,EGA,05/09/2018,06-11338,"14,607.35",Arnold House Day Nursery
Nottinghamshire County Council,1111/1001,Children and Young People,CYP,Third Party Payments,EGA,05/09/2018,06-11339,7738.92,Appleton Childcare Ltd
Nottinghamshire County Council,1111/1001,Children and Young People,CYP,Third Party Payments,EGA,05/09/2018,06-11340,"11,145.96",Applegarth Day Nurseries Ltd
Nottinghamshire County Council,1111/1001,Children and Young People,CYP,Third Party Payments,EGA,05/09/2018,06-11341,"10,179.54",Alphabet House Day Nursery Worksop
Nottinghamshire County Council,1111/1001,Children and Young People,CYP,Third Party Payments,EGA,05/09/2018,06-11342,"14,342.75",Alphabet House Nursery
Nottinghamshire County Council,1111/1001,Children and Young People,CYP,Third Party Payments,EGA,05/09/2018,06-11343,11798.64,Alphabet House Day Nursery WB
Nottinghamshire County Council,1111/1001,Children and Young People,CYP,Third Party Payments,EGA,05/09/2018,06-11344,"8,912.37",Alphabet House Day Nursery
Nottinghamshire County Council,1111/1001,Children and Young People,CYP,Third Party Payments,EGA,05/09/2018,06-11345,4711.22,Alphabet House Day Nursery (Chilwel
Nottinghamshire County Council,1111/1001,Children and Young People,CYP,Third Party Payments,EGA,05/09/2018,06-11346,"5,707.13",Alphabet House Day Nursery
Nottinghamshire County Council,1111/1001,Children and Young People,CYP,Third Party Payments,EGA,05/09/2018,06-11347,1257.99,Allsorts Playgroup
Nottinghamshire County Council,1111/1001,Children and Young People,CYP,Third Party Payments,EGA,05/09/2018,06-11348,786.24,Jelly Tots
Nottinghamshire County Council,1111/1001,Children and Young People,CYP,Third Party Payments,EGA,05/09/2018,06-11349,"12,348.42",All Aboard Nursery Ltd
Nottinghamshire County Council,1111/1001,Children and Young People,CYP,Third Party Payments,EGA,05/09/2018,06-11350,875.87,E Alcin (Childminder)
Nottinghamshire County Council,1111/1001,Children and Young People,CYP,Third Party Payments,EGA,05/09/2018,06-11351,3016.44,[Redacted]
Nottinghamshire County Council,1111/1001,Children and Young People,CYP,Third Party Payments,EGA,05/09/2018,06-17201,"861,741.00",Nottinghamshire Healthcare Nhs F Tr
Nottinghamshire County Council,1111/1001,Children and Young People,CYP,Third Party Payments,EGA,06/09/2018,06-11354,13275.61,Mapperley Day Nursery
Nottinghamshire County Council,1111/1001,Children and Young People,CYP,Third Party Payments,EGA,06/09/2018,06-11356,7399.98,PSLA Newstead Childcare (HO)
Nottinghamshire County Council,1111/1001,Children and Young People,CYP,Third Party Payments,EGA,06/09/2018,06-11357,12059.55,Fun Farm Day Nursery
Nottinghamshire County Council,1111/1001,Children and Young People,CYP,Third Party Payments,EGA,06/09/2018,06-11358,11140.91,PSLA Newstead Childcare (HO)
Nottinghamshire County Council,1111/1001,Children and Young People,CYP,Third Party Payments,EGA,06/09/2018,06-11360,"8,372.95",Treetops Nurseries Ltd
Nottinghamshire County Council,1111/1001,Children and Young People,CYP,Third Party Payments,EGA,06/09/2018,06-11361,5508.72,PSLA Newstead Childcare (HO)
Nottinghamshire County Council,1111/1001,Children and Young People,CYP,Third Party Payments,EGA,06/09/2018,06-11363,590.94,S Hollins (Childminder)
Nottinghamshire County Council,1111/1001,Children and Young People,CYP,Third Party Payments,EGA,06/09/2018,06-11364,1834.56,Old Cooperative Day Nursery
Nottinghamshire County Council,1111/1001,Children and Young People,CYP,Third Party Payments,EGA,06/09/2018,06-11365,"9,050.50",Papplewick Pre-School Playgroup
Nottinghamshire County Council,1111/1001,Children and Young People,CYP,Third Party Payments,EGA,06/09/2018,06-11366,"4,298.99",Rushcliffe Pre-School (Nottingham)
Nottinghamshire County Council,1111/1001,Children and Young People,CYP,Third Party Payments,EGA,06/09/2018,06-11371,5832.54,Ashfield Plaza Day Nursery
Nottinghamshire County Council,1111/1001,Children and Young People,CYP,Third Party Payments,EGA,06/09/2018,06-11373,11161.08,Westbourne House Nursery School
Nottinghamshire County Council,1111/1001,Children and Young People,CYP,Third Party Payments,EGA,06/09/2018,06-11374,"15,799.14",Hucknall Day Nursery
Nottinghamshire County Council,1111/1001,Children and Young People,CYP,Third Party Payments,EGA,07/09/2018,06-11377,10481.48,Secret Garden Childcare Ltd
Nottinghamshire County Council,1111/1001,Children and Young People,CYP,Third Party Payments,EGA,07/09/2018,06-11378,786.24,Luans Little Stars
Nottinghamshire County Council,1111/1001,Children and Young People,CYP,Third Party Payments,EGA,07/09/2018,06-11379,4522.15,PSLA Newstead Childcare (HO)
Nottinghamshire County Council,1111/1001,Children and Young People,CYP,Third Party Payments,EGA,07/09/2018,06-11380,6890.44,PSLA Newstead Childcare (HO)
Nottinghamshire County Council,1111/1001,Children and Young People,CYP,Third Party Payments,EGA,07/09/2018,06-11381,2425.5,Little Toes Day Nursery
Nottinghamshire County Council,1111/1001,Children and Young People,CYP,Third Party Payments,EGA,07/09/2018,06-11383,"1,485.12",Bramley Pips Nursery Ltd
Nottinghamshire County Council,1111/1001,Children and Young People,CYP,Third Party Payments,EGA,07/09/2018,06-11384,2357.26,Old Cooperative Day Nursery
Nottinghamshire County Council,1111/1001,Children and Young People,CYP,Third Party Payments,EGA,10/09/2018,06-11812,"15,131.22",Carnarvon Pre-School
Nottinghamshire County Council,1111/1001,Children and Young People,CYP,Third Party Payments,EGA,10/09/2018,06-11820,590.94,Home From Home Childcare
Nottinghamshire County Council,1111/1001,Children and Young People,CYP,Third Party Payments,EGA,10/09/2018,06-11821,694.51,[Redacted]
Nottinghamshire County Council,1111/1001,Children and Young People,CYP,Third Party Payments,EGA,10/09/2018,06-11822,"1,706.04",Green Tot Childcare
Nottinghamshire County Council,1111/1001,Children and Young People,CYP,Third Party Payments,EGA,10/09/2018,06-11826,"1,653.63",Jenny's Jelly Tots
Nottinghamshire County Council,1111/1001,Children and Young People,CYP,Third Party Payments,EGA,11/09/2018,06-11827,4417.31,Pea Pod Day Nursery Ltd
Nottinghamshire County Council,1111/1001,Children and Young People,CYP,Third Party Payments,EGA,11/09/2018,06-11850,524.16,Sunnybank Childminding
Nottinghamshire County Council,1111/1001,Children and Young People,CYP,Third Party Payments,EGA,11/09/2018,06-11853,559.11,Childcare @ Heathers House
Nottinghamshire County Council,1111/1001,Children and Young People,CYP,Third Party Payments,EGA,11/09/2018,06-11862,887.97,[Redacted]
Nottinghamshire County Council,1111/1001,Children and Young People,CYP,Third Party Payments,EGA,12/09/2018,06-12067,"7,733.88",Tiny Teddies Day Nursery
Nottinghamshire County Council,1111/1001,Children and Young People,CYP,Third Party Payments,EGA,12/09/2018,06-12068,672.00,Safe Haven Day Nursery
Nottinghamshire County Council,1111/1001,Children and Young People,CYP,Third Party Payments,EGA,12/09/2018,06-12069,840,Wollaton Village Day Nurseries Ltd.
Nottinghamshire County Council,1111/1001,Children and Young People,CYP,Third Party Payments,EGA,12/09/2018,06-12070,756.00,The Learning Tree Nursery
Nottinghamshire County Council,1111/1001,Children and Young People,CYP,Third Party Payments,EGA,12/09/2018,06-17219,23368.42,"Culture, Learning & Libraries (Midl"
Nottinghamshire County Council,1111/1001,Children and Young People,CYP,Third Party Payments,EGA,14/09/2018,06-12079,2425.5,Little Toes Day Nursery
Nottinghamshire County Council,1111/1001,Children and Young People,CYP,Third Party Payments,EGA,14/09/2018,06-12184,788.26,[Redacted]
Nottinghamshire County Council,1111/1001,Children and Young People,CYP,Third Party Payments,EGA,17/09/2018,06-12315,524.16,Mornington Childcare Services
Nottinghamshire County Council,1111/1001,Children and Young People,CYP,Third Party Payments,EGA,19/09/2018,06-13552,"1,968.12",Jubilee House Christian School
Nottinghamshire County Council,1111/1001,Children and Young People,CYP,Third Party Payments,EGA,20/09/2018,06-13854,524.16,Appletree House Childminding
Nottinghamshire County Council,1111/1001,Children and Young People,CYP,Third Party Payments,EGA,25/09/2018,06-14177,"4,923.96",Lowater Street Play  & Pre School
Nottinghamshire County Council,1111/1001,Children and Young People,CYP,Third Party Payments,EGA,25/09/2018,06-14178,7296.83,Lowdham & Epperstone Pre-School
Nottinghamshire County Council,1111/1001,Children and Young People,CYP,Third Party Payments,EGA,25/09/2018,06-14179,4604.04,Luan's Little People
Nottinghamshire County Council,1111/1001,Children and Young People,CYP,Third Party Payments,EGA,25/09/2018,06-14180,"6,275.47",Luan's Little People Ltd
Nottinghamshire County Council,1111/1001,Children and Young People,CYP,Third Party Payments,EGA,25/09/2018,06-14181,891.07,Little Wrens Day Nursery & Pre Scho
Nottinghamshire County Council,1111/1001,Children and Young People,CYP,Third Party Payments,EGA,25/09/2018,06-14182,11968.32,Millfield Nursery School
Nottinghamshire County Council,1111/1001,Children and Young People,CYP,Third Party Payments,EGA,25/09/2018,06-14183,5364.15,Misson Pre-School
Nottinghamshire County Council,1111/1001,Children and Young People,CYP,Third Party Payments,EGA,25/09/2018,06-14184,"3,104.39",Netherfield Pre School Ltd
Nottinghamshire County Council,1111/1001,Children and Young People,CYP,Third Party Payments,EGA,25/09/2018,06-14185,"7,783.18",Noahs Ark Playgroup
Nottinghamshire County Council,1111/1001,Children and Young People,CYP,Third Party Payments,EGA,25/09/2018,06-14186,"3,508.76",North Muskham Playgroup
Nottinghamshire County Council,1111/1001,Children and Young People,CYP,Third Party Payments,EGA,25/09/2018,06-14187,"16,928.01",Oceans Day Nursery
Nottinghamshire County Council,1111/1001,Children and Young People,CYP,Third Party Payments,EGA,25/09/2018,06-14188,"2,674.09",Orchard School Nursery
Nottinghamshire County Council,1111/1001,Children and Young People,CYP,Third Party Payments,EGA,25/09/2018,06-14189,9177.84,Papermoon Day Nursery
Nottinghamshire County Council,1111/1001,Children and Young People,CYP,Third Party Payments,EGA,25/09/2018,06-14190,32802.84,Papermoon Day Nursery Sutton In Ash
Nottinghamshire County Council,1111/1001,Children and Young People,CYP,Third Party Payments,EGA,25/09/2018,06-14191,"11,557.14",Papermoon Day Nursery
Nottinghamshire County Council,1111/1001,Children and Young People,CYP,Third Party Payments,EGA,25/09/2018,06-14192,21198.19,Papermoon Day Nursery
Nottinghamshire County Council,1111/1001,Children and Young People,CYP,Third Party Payments,EGA,25/09/2018,06-14193,9050.5,Papplewick Pre-School Playgroup
Nottinghamshire County Council,1111/1001,Children and Young People,CYP,Third Party Payments,EGA,25/09/2018,06-14194,4417.31,Pea Pod Day Nursery Ltd
Nottinghamshire County Council,1111/1001,Children and Young People,CYP,Third Party Payments,EGA,25/09/2018,06-14195,1834.56,Old Cooperative Day Nursery
Nottinghamshire County Council,1111/1001,Children and Young People,CYP,Third Party Payments,EGA,26/09/2018,06-14197,13275.61,Mapperley Day Nursery
Nottinghamshire County Council,1111/1001,Children and Young People,CYP,Third Party Payments,EGA,26/09/2018,06-14229,887.96,[Redacted]
Nottinghamshire County Council,1111/1001,Children and Young People,CYP,Third Party Payments,EGA,26/09/2018,06-14230,524.16,[Redacted]
Nottinghamshire County Council,1111/1001,Children and Young People,CYP,Third Party Payments,EGA,26/09/2018,06-14231,853.02,G Parnill T/A Imaginations Childmin
Nottinghamshire County Council,1111/1001,Children and Young People,CYP,Third Party Payments,EGA,26/09/2018,06-14232,524.16,[Redacted]
Nottinghamshire County Council,1111/1001,Children and Young People,CYP,Third Party Payments,EGA,26/09/2018,06-14233,657.72,[Redacted]
Nottinghamshire County Council,1111/1001,Children and Young People,CYP,Third Party Payments,EGA,26/09/2018,06-14234,902.33,[Redacted]
Nottinghamshire County Council,1111/1001,Children and Young People,CYP,Third Party Payments,EGA,26/09/2018,06-14235,934.75,[Redacted]
Nottinghamshire County Council,1111/1001,Children and Young People,CYP,Third Party Payments,EGA,26/09/2018,06-14236,800.60,[Redacted]
Nottinghamshire County Council,1111/1001,Children and Young People,CYP,Third Party Payments,EGA,26/09/2018,06-14237,786.24,[Redacted]
Nottinghamshire County Council,1111/1001,Children and Young People,CYP,Third Party Payments,EGA,26/09/2018,06-14238,657.72,[Redacted]
Nottinghamshire County Council,1111/1001,Children and Young People,CYP,Third Party Payments,EGA,26/09/2018,06-14239,23968.73,The Orchard Day Nursery
Nottinghamshire County Council,1111/1001,Children and Young People,CYP,Third Party Payments,EGA,26/09/2018,06-14241,1115.1,Jammie Dodgers Childminding Group
Nottinghamshire County Council,1111/1001,Children and Young People,CYP,Third Party Payments,EGA,26/09/2018,06-14242,524.16,[Redacted]
Nottinghamshire County Council,1111/1001,Children and Young People,CYP,Third Party Payments,EGA,26/09/2018,06-14243,657.72,Leah's Childminding
Nottinghamshire County Council,1111/1001,Children and Young People,CYP,Third Party Payments,EGA,26/09/2018,06-14244,"1,834.56",Claire's Childminding
Nottinghamshire County Council,1111/1001,Children and Young People,CYP,Third Party Payments,EGA,26/09/2018,06-14245,787.25,Sweet Pea's Childminding
Nottinghamshire County Council,1111/1001,Children and Young People,CYP,Third Party Payments,EGA,26/09/2018,06-14246,568.92,Lisa's Little Angels
Nottinghamshire County Council,1111/1001,Children and Young People,CYP,Third Party Payments,EGA,26/09/2018,06-14247,1310.4,Little House Childcare of Brinsley
Nottinghamshire County Council,1111/1001,Children and Young People,CYP,Third Party Payments,EGA,26/09/2018,06-14248,18860.32,Discovery Day Nursery
Nottinghamshire County Council,1111/1001,Children and Young People,CYP,Third Party Payments,EGA,26/09/2018,06-14249,"5,237.31",Early Learners Centre Day Nursery
Nottinghamshire County Council,1111/1001,Children and Young People,CYP,Third Party Payments,EGA,26/09/2018,06-14250,"5,352.48",Early Years Playgroup
Nottinghamshire County Council,1111/1001,Children and Young People,CYP,Third Party Payments,EGA,26/09/2018,06-14251,5844.08,East Leake Pre-School Playgroup
Nottinghamshire County Council,1111/1001,Children and Young People,CYP,Third Party Payments,EGA,26/09/2018,06-14252,524.16,[Redacted]
Nottinghamshire County Council,1111/1001,Children and Young People,CYP,Third Party Payments,EGA,26/09/2018,06-14253,11618.92,Edwalton Day Nursery
Nottinghamshire County Council,1111/1001,Children and Young People,CYP,Third Party Payments,EGA,26/09/2018,06-14254,6206.09,Elston Pre-school
Nottinghamshire County Council,1111/1001,Children and Young People,CYP,Third Party Payments,EGA,26/09/2018,06-14255,"5,811.68",Farnsfield Pre-School
Nottinghamshire County Council,1111/1001,Children and Young People,CYP,Third Party Payments,EGA,26/09/2018,06-14256,4326.84,Explorers Childcare
Nottinghamshire County Council,1111/1001,Children and Young People,CYP,Third Party Payments,EGA,26/09/2018,06-14257,"21,920.56",Fernwood Day Nursery Ltd
Nottinghamshire County Council,1111/1001,Children and Young People,CYP,Third Party Payments,EGA,26/09/2018,06-14258,5389.52,Fledglings Playgroup
Nottinghamshire County Council,1111/1001,Children and Young People,CYP,Third Party Payments,EGA,26/09/2018,06-14259,12059.54,Fun Farm Day Nursery
Nottinghamshire County Council,1111/1001,Children and Young People,CYP,Third Party Payments,EGA,26/09/2018,06-14260,3914.38,Good Shepherd Pre-School
Nottinghamshire County Council,1111/1001,Children and Young People,CYP,Third Party Payments,EGA,26/09/2018,06-14261,"2,821.72",Gotham Pre-School Playgroup
Nottinghamshire County Council,1111/1001,Children and Young People,CYP,Third Party Payments,EGA,26/09/2018,06-14262,"10,883.88",Granby House Nursery
Nottinghamshire County Council,1111/1001,Children and Young People,CYP,Third Party Payments,EGA,26/09/2018,06-14263,2007.42,Happy Munchkins Pre School
Nottinghamshire County Council,1111/1001,Children and Young People,CYP,Third Party Payments,EGA,26/09/2018,06-14264,9439.92,Happy Days Childcare Services Ltd
Nottinghamshire County Council,1111/1001,Children and Young People,CYP,Third Party Payments,EGA,26/09/2018,06-14265,4512.98,Haywood Road Pre-School Playgroup
Nottinghamshire County Council,1111/1001,Children and Young People,CYP,Third Party Payments,EGA,26/09/2018,06-14266,2363.76,Hermitage Pre-School
Nottinghamshire County Council,1111/1001,Children and Young People,CYP,Third Party Payments,EGA,26/09/2018,06-14267,2026.75,Hickling Pre-School
Nottinghamshire County Council,1111/1001,Children and Young People,CYP,Third Party Payments,EGA,26/09/2018,06-14268,9620.85,Highfields School & Nursery
Nottinghamshire County Council,1111/1001,Children and Young People,CYP,Third Party Payments,EGA,26/09/2018,06-14269,"11,190.66",Hollies Day Nurseries
Nottinghamshire County Council,1111/1001,Children and Young People,CYP,Third Party Payments,EGA,26/09/2018,06-14270,11201.39,Hollies Day Nurseries Limited
Nottinghamshire County Council,1111/1001,Children and Young People,CYP,Third Party Payments,EGA,26/09/2018,06-14271,"7,631.56",Hollies Day Nursery (Loughborough R
Nottinghamshire County Council,1111/1001,Children and Young People,CYP,Third Party Payments,EGA,26/09/2018,06-14272,1310.4,[Redacted]
Nottinghamshire County Council,1111/1001,Children and Young People,CYP,Third Party Payments,EGA,26/09/2018,06-14273,1181.88,[Redacted]
Nottinghamshire County Council,1111/1001,Children and Young People,CYP,Third Party Payments,EGA,26/09/2018,06-14274,524.16,[Redacted]
Nottinghamshire County Council,1111/1001,Children and Young People,CYP,Third Party Payments,EGA,26/09/2018,06-14275,"2,163.42",[Redacted]
Nottinghamshire County Council,1111/1001,Children and Young People,CYP,Third Party Payments,EGA,26/09/2018,06-14276,"13,982.22",Rocking Horse Nursery Butlers Hill
Nottinghamshire County Council,1111/1001,Children and Young People,CYP,Third Party Payments,EGA,26/09/2018,06-14277,4298.99,Rushcliffe Pre-School (Nottingham)
Nottinghamshire County Council,1111/1001,Children and Young People,CYP,Third Party Payments,EGA,26/09/2018,06-14278,5665.9,Ravenshead Pre-School Playgroup
Nottinghamshire County Council,1111/1001,Children and Young People,CYP,Third Party Payments,EGA,26/09/2018,06-14279,3625.44,Ranskill Nursery
Nottinghamshire County Council,1111/1001,Children and Young People,CYP,Third Party Payments,EGA,26/09/2018,06-14280,"9,121.14",Rainbows Day Nursery
Nottinghamshire County Council,1111/1001,Children and Young People,CYP,Third Party Payments,EGA,26/09/2018,06-14281,"3,412.08",Rainbow Day Nursery
Nottinghamshire County Council,1111/1001,Children and Young People,CYP,Third Party Payments,EGA,26/09/2018,06-14282,7518,Railway Children Playgroup
Nottinghamshire County Council,1111/1001,Children and Young People,CYP,Third Party Payments,EGA,26/09/2018,06-14283,"6,843.21",Radcliffe On Trent Pre School Playg
Nottinghamshire County Council,1111/1001,Children and Young People,CYP,Third Party Payments,EGA,26/09/2018,06-14284,8339.18,Pump Farm Day Nursery
Nottinghamshire County Council,1111/1001,Children and Young People,CYP,Third Party Payments,EGA,26/09/2018,06-14285,7609.64,Puddleducks Pre-School
Nottinghamshire County Council,1111/1001,Children and Young People,CYP,Third Party Payments,EGA,26/09/2018,06-14286,5591.97,Pre-School 345
Nottinghamshire County Council,1111/1001,Children and Young People,CYP,Third Party Payments,EGA,26/09/2018,06-14287,"5,955.44",Portland Place Pre-School
Nottinghamshire County Council,1111/1001,Children and Young People,CYP,Third Party Payments,EGA,26/09/2018,06-14288,4794.3,Penguin Palace Nursery CIC
Nottinghamshire County Council,1111/1001,Children and Young People,CYP,Third Party Payments,EGA,26/09/2018,06-14289,"21,171.78",Phoenix Park Nursery
Nottinghamshire County Council,1111/1001,Children and Young People,CYP,Third Party Payments,EGA,26/09/2018,06-14290,"3,607.96",Pippins Pre-School
Nottinghamshire County Council,1111/1001,Children and Young People,CYP,Third Party Payments,EGA,26/09/2018,06-14291,"4,380.48",Plumtree School
Nottinghamshire County Council,1111/1001,Children and Young People,CYP,Third Party Payments,EGA,26/09/2018,06-14292,"4,825.97",Prebend Pre-School Playgroup
Nottinghamshire County Council,1111/1001,Children and Young People,CYP,Third Party Payments,EGA,26/09/2018,06-14293,"1,123.84",[Redacted]
Nottinghamshire County Council,1111/1001,Children and Young People,CYP,Third Party Payments,EGA,26/09/2018,06-14294,17737.99,Safe Haven Day Nursery
Nottinghamshire County Council,1111/1001,Children and Young People,CYP,Third Party Payments,EGA,26/09/2018,06-14295,"2,253.89",Salterford House School
Nottinghamshire County Council,1111/1001,Children and Young People,CYP,Third Party Payments,EGA,26/09/2018,06-14296,4193.28,Saville House School
Nottinghamshire County Council,1111/1001,Children and Young People,CYP,Third Party Payments,EGA,26/09/2018,06-14297,"17,729.46",Serendipity's Day Nursery
Nottinghamshire County Council,1111/1001,Children and Young People,CYP,Third Party Payments,EGA,26/09/2018,06-14298,8744.15,Serendipity's Day Nursery
Nottinghamshire County Council,1111/1001,Children and Young People,CYP,Third Party Payments,EGA,26/09/2018,06-14299,594.05,S Schneider (Childminder)
Nottinghamshire County Council,1111/1001,Children and Young People,CYP,Third Party Payments,EGA,26/09/2018,06-14300,"24,354.37",The Rocking Horse Child Care Centre
Nottinghamshire County Council,1111/1001,Children and Young People,CYP,Third Party Payments,EGA,26/09/2018,06-14301,611.52,S Ellis (Childminder)
Nottinghamshire County Council,1111/1001,Children and Young People,CYP,Third Party Payments,EGA,26/09/2018,06-14302,657.72,S Easpinoza (Childminder)
Nottinghamshire County Council,1111/1001,Children and Young People,CYP,Third Party Payments,EGA,26/09/2018,06-14303,590.94,[Redacted]
Nottinghamshire County Council,1111/1001,Children and Young People,CYP,Third Party Payments,EGA,26/09/2018,06-14304,611.52,[Redacted]
Nottinghamshire County Council,1111/1001,Children and Young People,CYP,Third Party Payments,EGA,26/09/2018,06-14305,1310.4,[Redacted]
Nottinghamshire County Council,1111/1001,Children and Young People,CYP,Third Party Payments,EGA,26/09/2018,06-14306,786.24,[Redacted]
Nottinghamshire County Council,1111/1001,Children and Young People,CYP,Third Party Payments,EGA,26/09/2018,06-14307,"2,034.90",Gognas Day Nursery Ltd
Nottinghamshire County Council,1111/1001,Children and Young People,CYP,Third Party Payments,EGA,26/09/2018,06-14308,1706.04,Green Tot Childcare
Nottinghamshire County Council,1111/1001,Children and Young People,CYP,Third Party Payments,EGA,26/09/2018,06-14309,524.16,[Redacted]
Nottinghamshire County Council,1111/1001,Children and Young People,CYP,Third Party Payments,EGA,26/09/2018,06-14310,"1,563.15",[Redacted]
Nottinghamshire County Council,1111/1001,Children and Young People,CYP,Third Party Payments,EGA,26/09/2018,06-14311,7119.25,St Peter's Early Years
Nottinghamshire County Council,1111/1001,Children and Young People,CYP,Third Party Payments,EGA,26/09/2018,06-14312,853.02,S Roche (Childminder)
Nottinghamshire County Council,1111/1001,Children and Young People,CYP,Third Party Payments,EGA,26/09/2018,06-14313,17109.54,Serendipity's Day Nursery
Nottinghamshire County Council,1111/1001,Children and Young People,CYP,Third Party Payments,EGA,26/09/2018,06-14314,1292.93,[Redacted]
Nottinghamshire County Council,1111/1001,Children and Young People,CYP,Third Party Payments,EGA,26/09/2018,06-14315,995.91,[Redacted]
Nottinghamshire County Council,1111/1001,Children and Young People,CYP,Third Party Payments,EGA,26/09/2018,06-14316,524.16,[Redacted]
Nottinghamshire County Council,1111/1001,Children and Young People,CYP,Third Party Payments,EGA,26/09/2018,06-14317,1048.32,Alison Plant (Childminder)
Nottinghamshire County Council,1111/1001,Children and Young People,CYP,Third Party Payments,EGA,26/09/2018,06-14318,"1,653.62",Jenny's Jelly Tots
Nottinghamshire County Council,1111/1001,Children and Young People,CYP,Third Party Payments,EGA,26/09/2018,06-14319,524.16,V Gill (Childminder)
Nottinghamshire County Council,1111/1001,Children and Young People,CYP,Third Party Payments,EGA,26/09/2018,06-14320,853.02,Little Tots
Nottinghamshire County Council,1111/1001,Children and Young People,CYP,Third Party Payments,EGA,26/09/2018,06-14321,11140.91,PSLA Newstead Childcare (HO)
Nottinghamshire County Council,1111/1001,Children and Young People,CYP,Third Party Payments,EGA,26/09/2018,06-14322,524.16,Ladybird Childminding
Nottinghamshire County Council,1111/1001,Children and Young People,CYP,Third Party Payments,EGA,26/09/2018,06-14323,1181.88,Laura's Childminding
Nottinghamshire County Council,1111/1001,Children and Young People,CYP,Third Party Payments,EGA,26/09/2018,06-14324,1377.18,Rachel & Philip's Home From Home Ch
Nottinghamshire County Council,1111/1001,Children and Young People,CYP,Third Party Payments,EGA,26/09/2018,06-14325,"1,048.32",Samsam Little Minders
Nottinghamshire County Council,1111/1001,Children and Young People,CYP,Third Party Payments,EGA,26/09/2018,06-14326,"16,783.62",Serendipity's Day Nursery
Nottinghamshire County Council,1111/1001,Children and Young People,CYP,Third Party Payments,EGA,26/09/2018,06-14327,"2,407.86",PSLA Newstead Childcare (HO)
Nottinghamshire County Council,1111/1001,Children and Young People,CYP,Third Party Payments,EGA,26/09/2018,06-14328,"10,481.47",Secret Garden Childcare Ltd
Nottinghamshire County Council,1111/1001,Children and Young People,CYP,Third Party Payments,EGA,26/09/2018,06-14329,5822.06,Willow Childcare & Training Ltd
Nottinghamshire County Council,1111/1001,Children and Young People,CYP,Third Party Payments,EGA,26/09/2018,06-14330,524.16,R Savage (Childminder)
Nottinghamshire County Council,1111/1001,Children and Young People,CYP,Third Party Payments,EGA,26/09/2018,06-14356,13129.62,Scottswood Pdn Ltd
Nottinghamshire County Council,1111/1001,Children and Young People,CYP,Third Party Payments,EGA,26/09/2018,06-14357,"10,442.04",Scotts Wood Private Day Nursery
Nottinghamshire County Council,1111/1001,Children and Young People,CYP,Third Party Payments,EGA,26/09/2018,06-14358,524.16,Karen's Childminding
Nottinghamshire County Council,1111/1001,Children and Young People,CYP,Third Party Payments,EGA,26/09/2018,06-14359,7972.4,Buttercross Pre School
Nottinghamshire County Council,1111/1001,Children and Young People,CYP,Third Party Payments,EGA,26/09/2018,06-14360,"3,607.38",Butterflies Nursery (West Notts Col
Nottinghamshire County Council,1111/1001,Children and Young People,CYP,Third Party Payments,EGA,26/09/2018,06-14361,17468.47,Carlton & Gedling Day Nursery
Nottinghamshire County Council,1111/1001,Children and Young People,CYP,Third Party Payments,EGA,26/09/2018,06-14362,"5,041.09",Carlton Preschool Playgroup
Nottinghamshire County Council,1111/1001,Children and Young People,CYP,Third Party Payments,EGA,26/09/2018,06-14363,2692.62,Carousel Under 5'S Playgroup
Nottinghamshire County Council,1111/1001,Children and Young People,CYP,Third Party Payments,EGA,26/09/2018,06-14364,6668.08,Cedar House Day Nursery
Nottinghamshire County Council,1111/1001,Children and Young People,CYP,Third Party Payments,EGA,26/09/2018,06-14365,"7,780.08",Cheeky Monkeys Day Nursery
Nottinghamshire County Council,1111/1001,Children and Young People,CYP,Third Party Payments,EGA,26/09/2018,06-14366,7014.42,Cherubs (Sutton In Ashfield) Childm
Nottinghamshire County Council,1111/1001,Children and Young People,CYP,Third Party Payments,EGA,26/09/2018,06-14367,9249.66,Cherubs Childcare Centre (Mansfield
Nottinghamshire County Council,1111/1001,Children and Young People,CYP,Third Party Payments,EGA,26/09/2018,06-14368,13264.62,Cherubs Childcare Centre Ladybrook
Nottinghamshire County Council,1111/1001,Children and Young People,CYP,Third Party Payments,EGA,26/09/2018,06-14369,788.25,[Redacted]
Nottinghamshire County Council,1111/1001,Children and Young People,CYP,Third Party Payments,EGA,26/09/2018,06-14370,8155.14,Cherubs Childrens Centre Pleasley
Nottinghamshire County Council,1111/1001,Children and Young People,CYP,Third Party Payments,EGA,26/09/2018,06-14371,"21,937.23",Cherubs Childrens Centre Wynndale
Nottinghamshire County Council,1111/1001,Children and Young People,CYP,Third Party Payments,EGA,26/09/2018,06-14372,26858.4,Cherubs Day Nursery
Nottinghamshire County Council,1111/1001,Children and Young People,CYP,Third Party Payments,EGA,26/09/2018,06-14373,8653.68,Cherubs Ryton Park
Nottinghamshire County Council,1111/1001,Children and Young People,CYP,Third Party Payments,EGA,26/09/2018,06-14374,5951.73,Chetwynd Little Troopers Nursery &
Nottinghamshire County Council,1111/1001,Children and Young People,CYP,Third Party Payments,EGA,26/09/2018,06-14375,"6,097.75",Child First (Welbeck) (Childminding
Nottinghamshire County Council,1111/1001,Children and Young People,CYP,Third Party Payments,EGA,26/09/2018,06-14376,"6,238.90",Childrens House Childcare Ltd
Nottinghamshire County Council,1111/1001,Children and Young People,CYP,Third Party Payments,EGA,26/09/2018,06-14377,"10,031.45",Daisies Day Nursery
Nottinghamshire County Council,1111/1001,Children and Young People,CYP,Third Party Payments,EGA,26/09/2018,06-14378,18426.76,Daisies Day Nursery
Nottinghamshire County Council,1111/1001,Children and Young People,CYP,Third Party Payments,EGA,26/09/2018,06-14379,11918.57,Homestead Day Nursery Ltd
Nottinghamshire County Council,1111/1001,Children and Young People,CYP,Third Party Payments,EGA,26/09/2018,06-14380,6938.13,Honey Pot Day Private Day Nursery L
Nottinghamshire County Council,1111/1001,Children and Young People,CYP,Third Party Payments,EGA,26/09/2018,06-14381,4245.69,Horsendale Playgroup
Nottinghamshire County Council,1111/1001,Children and Young People,CYP,Third Party Payments,EGA,26/09/2018,06-14382,15799.14,Hucknall Day Nursery
Nottinghamshire County Council,1111/1001,Children and Young People,CYP,Third Party Payments,EGA,26/09/2018,06-14383,"5,858.16",Hucknall Pre-School Playgroup
Nottinghamshire County Council,1111/1001,Children and Young People,CYP,Third Party Payments,EGA,26/09/2018,06-14384,"2,712.81",Inham Park Pre School Playgroup
Nottinghamshire County Council,1111/1001,Children and Young People,CYP,Third Party Payments,EGA,26/09/2018,06-14385,"3,712.16",Collingham & District Pre-School
Nottinghamshire County Council,1111/1001,Children and Young People,CYP,Third Party Payments,EGA,26/09/2018,06-14386,576.57,[Redacted]
Nottinghamshire County Council,1111/1001,Children and Young People,CYP,Third Party Payments,EGA,26/09/2018,06-14387,506.69,Jeanette Hooper Childminding Servic
Nottinghamshire County Council,1111/1001,Children and Young People,CYP,Third Party Payments,EGA,26/09/2018,06-14388,"8,329.86",Claremont Early Years Ltd
Nottinghamshire County Council,1111/1001,Children and Young People,CYP,Third Party Payments,EGA,26/09/2018,06-14389,"1,409.02",Jelly Beans Day Nursery Ltd
Nottinghamshire County Council,1111/1001,Children and Young People,CYP,Third Party Payments,EGA,26/09/2018,06-14390,1472.02,Costock Pre School
Nottinghamshire County Council,1111/1001,Children and Young People,CYP,Third Party Payments,EGA,26/09/2018,06-14391,"3,053.88",Jesters Childcare Ltd
Nottinghamshire County Council,1111/1001,Children and Young People,CYP,Third Party Payments,EGA,26/09/2018,06-14392,10719.66,Coteswood House School
Nottinghamshire County Council,1111/1001,Children and Young People,CYP,Third Party Payments,EGA,26/09/2018,06-14393,1968.12,Jubilee House Christian School
Nottinghamshire County Council,1111/1001,Children and Young People,CYP,Third Party Payments,EGA,26/09/2018,06-14394,"10,100.16",Country Kids Day Nursery
Nottinghamshire County Council,1111/1001,Children and Young People,CYP,Third Party Payments,EGA,26/09/2018,06-14395,8663.64,Jumacare Ltd T/A Church House Nurse
Nottinghamshire County Council,1111/1001,Children and Young People,CYP,Third Party Payments,EGA,26/09/2018,06-14396,"8,087.64",Cranmer Pre-School
Nottinghamshire County Council,1111/1001,Children and Young People,CYP,Third Party Payments,EGA,26/09/2018,06-14397,10431.54,Kidzgrove
Nottinghamshire County Council,1111/1001,Children and Young People,CYP,Third Party Payments,EGA,26/09/2018,06-14398,6198.01,Creative Hands Childcare
Nottinghamshire County Council,1111/1001,Children and Young People,CYP,Third Party Payments,EGA,26/09/2018,06-14399,7065.74,Killisick Pre-School
Nottinghamshire County Council,1111/1001,Children and Young People,CYP,Third Party Payments,EGA,26/09/2018,06-14400,"4,317.25",Kimberley Pre-School Playgroup
Nottinghamshire County Council,1111/1001,Children and Young People,CYP,Third Party Payments,EGA,26/09/2018,06-14401,"9,768.78",Kingfisher Day Nursery
Nottinghamshire County Council,1111/1001,Children and Young People,CYP,Third Party Payments,EGA,26/09/2018,06-14402,524.16,[Redacted]
Nottinghamshire County Council,1111/1001,Children and Young People,CYP,Third Party Payments,EGA,26/09/2018,06-14403,524.16,[Redacted]
Nottinghamshire County Council,1111/1001,Children and Young People,CYP,Third Party Payments,EGA,26/09/2018,06-14404,12284.75,Little Bears Day Nursery
Nottinghamshire County Council,1111/1001,Children and Young People,CYP,Third Party Payments,EGA,26/09/2018,06-14405,550.37,K J Channer (Childminder)
Nottinghamshire County Council,1111/1001,Children and Young People,CYP,Third Party Payments,EGA,26/09/2018,06-14406,867.38,[Redacted]
Nottinghamshire County Council,1111/1001,Children and Young People,CYP,Third Party Payments,EGA,26/09/2018,06-14407,1510.74,[Redacted]
Nottinghamshire County Council,1111/1001,Children and Young People,CYP,Third Party Payments,EGA,26/09/2018,06-14408,"9,756.18",Lime Trees Day Nursery Ltd (Carlton
Nottinghamshire County Council,1111/1001,Children and Young People,CYP,Third Party Payments,EGA,26/09/2018,06-14409,3959.93,Little Acorns Shireoaks
Nottinghamshire County Council,1111/1001,Children and Young People,CYP,Third Party Payments,EGA,26/09/2018,06-14410,"2,574.01",Little Adventures Forest School Ltd
Nottinghamshire County Council,1111/1001,Children and Young People,CYP,Third Party Payments,EGA,26/09/2018,06-14411,524.16,[Redacted]
Nottinghamshire County Council,1111/1001,Children and Young People,CYP,Third Party Payments,EGA,26/09/2018,06-14412,7682.22,Little Baths Ltd T/A Little PLums D
Nottinghamshire County Council,1111/1001,Children and Young People,CYP,Third Party Payments,EGA,26/09/2018,06-14413,8334.9,Little Beans Childcare Ltd
Nottinghamshire County Council,1111/1001,Children and Young People,CYP,Third Party Payments,EGA,26/09/2018,06-14414,"2,230.20",Little Friends Day Nursery
Nottinghamshire County Council,1111/1001,Children and Young People,CYP,Third Party Payments,EGA,26/09/2018,06-14415,"7,069.60",Little Kites Playgroup
Nottinghamshire County Council,1111/1001,Children and Young People,CYP,Third Party Payments,EGA,26/09/2018,06-14416,1048.32,S Cave (Childminding Service)
Nottinghamshire County Council,1111/1001,Children and Young People,CYP,Third Party Payments,EGA,26/09/2018,06-14417,12589.92,Little Lambs Day Nursery
Nottinghamshire County Council,1111/1001,Children and Young People,CYP,Third Party Payments,EGA,26/09/2018,06-14418,9440.51,Little Millers Day Nursery
Nottinghamshire County Council,1111/1001,Children and Young People,CYP,Third Party Payments,EGA,26/09/2018,06-14419,"13,974.84",Little Nippers Pre-School
Nottinghamshire County Council,1111/1001,Children and Young People,CYP,Third Party Payments,EGA,26/09/2018,06-14420,"15,837.78",Little Oaks Nursery
Nottinghamshire County Council,1111/1001,Children and Young People,CYP,Third Party Payments,EGA,26/09/2018,06-14421,891.07,Little Wrens Day Nursery & Pre Scho
Nottinghamshire County Council,1111/1001,Children and Young People,CYP,Third Party Payments,EGA,26/09/2018,06-14422,"1,639.26",[Redacted]
Nottinghamshire County Council,1111/1001,Children and Young People,CYP,Third Party Payments,EGA,26/09/2018,06-14423,8266.77,Longdale Nursery School
Nottinghamshire County Council,1111/1001,Children and Young People,CYP,Third Party Payments,EGA,26/09/2018,06-14424,853.02,B Lilley (Childminder)
Nottinghamshire County Council,1111/1001,Children and Young People,CYP,Third Party Payments,EGA,26/09/2018,06-14425,3232.32,Christchurch Hall Pre-School Playgr
Nottinghamshire County Council,1111/1001,Children and Young People,CYP,Third Party Payments,EGA,26/09/2018,06-14426,"1,310.40",[Redacted]
Nottinghamshire County Council,1111/1001,Children and Young People,CYP,Third Party Payments,EGA,26/09/2018,06-14427,524.16,ABC Childminders
Nottinghamshire County Council,1111/1001,Children and Young People,CYP,Third Party Payments,EGA,26/09/2018,06-14428,524.16,Appletree House Childminding
Nottinghamshire County Council,1111/1001,Children and Young People,CYP,Third Party Payments,EGA,26/09/2018,06-14429,613.87,Emma's Enchanted Garden Childcare
Nottinghamshire County Council,1111/1001,Children and Young People,CYP,Third Party Payments,EGA,26/09/2018,06-14430,698.88,Fiona Lamb Childminding Service
Nottinghamshire County Council,1111/1001,Children and Young People,CYP,Third Party Payments,EGA,26/09/2018,06-14431,"13,329.54",Shaping Futures Day Nursery
Nottinghamshire County Council,1111/1001,Children and Young People,CYP,Third Party Payments,EGA,26/09/2018,06-14432,"9,731.87",Shaping Futures Day Nursery
Nottinghamshire County Council,1111/1001,Children and Young People,CYP,Third Party Payments,EGA,26/09/2018,06-14433,1639.26,Small People Ltd
Nottinghamshire County Council,1111/1001,Children and Young People,CYP,Third Party Payments,EGA,26/09/2018,06-14434,"4,571.06",Smarties Private Day Nursery
Nottinghamshire County Council,1111/1001,Children and Young People,CYP,Third Party Payments,EGA,26/09/2018,06-14435,2760.57,Lady Bay Pre School Playgroup
Nottinghamshire County Council,1111/1001,Children and Young People,CYP,Third Party Payments,EGA,26/09/2018,06-14436,"11,919.60",Lambley Day Nursery Ltd
Nottinghamshire County Council,1111/1001,Children and Young People,CYP,Third Party Payments,EGA,26/09/2018,06-14437,3398.3,Southfields Pre-School
Nottinghamshire County Council,1111/1001,Children and Young People,CYP,Third Party Payments,EGA,26/09/2018,06-14438,"4,149.01",Sparkle Daycare
Nottinghamshire County Council,1111/1001,Children and Young People,CYP,Third Party Payments,EGA,26/09/2018,06-14439,"5,387.84",Leahurst Road Pre-School
Nottinghamshire County Council,1111/1001,Children and Young People,CYP,Third Party Payments,EGA,26/09/2018,06-14440,2343.27,Speckled Frogs Pre-School
Nottinghamshire County Council,1111/1001,Children and Young People,CYP,Third Party Payments,EGA,26/09/2018,06-14441,5419.85,Learning Ladder Childcare Ltd
Nottinghamshire County Council,1111/1001,Children and Young People,CYP,Third Party Payments,EGA,26/09/2018,06-14442,15570.74,Leen Mills Pre School Playgroup
Nottinghamshire County Council,1111/1001,Children and Young People,CYP,Third Party Payments,EGA,26/09/2018,06-14443,7889.49,Leo's Childrens Nurseries Ltd
Nottinghamshire County Council,1111/1001,Children and Young People,CYP,Third Party Payments,EGA,26/09/2018,06-14444,5909.28,St Giles Pre-school
Nottinghamshire County Council,1111/1001,Children and Young People,CYP,Third Party Payments,EGA,26/09/2018,06-14445,"13,952.57",Leos Childrens Nurseries Ltd
Nottinghamshire County Council,1111/1001,Children and Young People,CYP,Third Party Payments,EGA,26/09/2018,06-14446,"6,557.04",St Johns Playgroup
Nottinghamshire County Council,1111/1001,Children and Young People,CYP,Third Party Payments,EGA,26/09/2018,06-14447,5688.47,St Mary's Pre-School
Nottinghamshire County Council,1111/1001,Children and Young People,CYP,Third Party Payments,EGA,26/09/2018,06-14448,853.02,Sunbeams Pre-School
Nottinghamshire County Council,1111/1001,Children and Young People,CYP,Third Party Payments,EGA,26/09/2018,06-14449,"10,040.94",Stapleford Day Nursery
Nottinghamshire County Council,1111/1001,Children and Young People,CYP,Third Party Payments,EGA,26/09/2018,06-14450,10535.23,Staunton Montessori Nursery School
Nottinghamshire County Council,1111/1001,Children and Young People,CYP,Third Party Payments,EGA,26/09/2018,06-14451,"3,551.18",North Leverton Pre-School Playgroup
Nottinghamshire County Council,1111/1001,Children and Young People,CYP,Third Party Payments,EGA,26/09/2018,06-14452,1869.5,Sutton Bonington Playgroup
Nottinghamshire County Council,1111/1001,Children and Young People,CYP,Third Party Payments,EGA,26/09/2018,06-14453,6890.44,PSLA Newstead Childcare (HO)
Nottinghamshire County Council,1111/1001,Children and Young People,CYP,Third Party Payments,EGA,26/09/2018,06-14454,"4,522.14",PSLA Newstead Childcare (HO)
Nottinghamshire County Council,1111/1001,Children and Young People,CYP,Third Party Payments,EGA,26/09/2018,06-14455,"9,401.87",The Enchanted Garden Day Nursery
Nottinghamshire County Council,1111/1001,Children and Young People,CYP,Third Party Payments,EGA,26/09/2018,06-14456,524.16,R Hudson (Childminding Service)
Nottinghamshire County Council,1111/1001,Children and Young People,CYP,Third Party Payments,EGA,26/09/2018,06-14457,"10,585.26",The Learning Tree Day Nursery 2
Nottinghamshire County Council,1111/1001,Children and Young People,CYP,Third Party Payments,EGA,26/09/2018,06-14458,25187.4,The Learning Tree Nursery
Nottinghamshire County Council,1111/1001,Children and Young People,CYP,Third Party Payments,EGA,26/09/2018,06-14459,"3,740.94",The Lime Trees (Forest Town)
Nottinghamshire County Council,1111/1001,Children and Young People,CYP,Third Party Payments,EGA,26/09/2018,06-14460,4385.47,The Lime Trees
Nottinghamshire County Council,1111/1001,Children and Young People,CYP,Third Party Payments,EGA,26/09/2018,06-14461,590.94,S Hollins (Childminder)
Nottinghamshire County Council,1111/1001,Children and Young People,CYP,Third Party Payments,EGA,26/09/2018,06-14462,5385.24,The Lime Trees
Nottinghamshire County Council,1111/1001,Children and Young People,CYP,Third Party Payments,EGA,26/09/2018,06-14463,7118.43,The Lime Trees
Nottinghamshire County Council,1111/1001,Children and Young People,CYP,Third Party Payments,EGA,26/09/2018,06-14464,"22,541.32",The Orange Tree Day Nursery
Nottinghamshire County Council,1111/1001,Children and Young People,CYP,Third Party Payments,EGA,26/09/2018,06-14465,"10,918.01",The Secret Garden Private Day Nurse
Nottinghamshire County Council,1111/1001,Children and Young People,CYP,Third Party Payments,EGA,26/09/2018,06-14466,"4,715.02",The West Bridgford Day Nursery
Nottinghamshire County Council,1111/1001,Children and Young People,CYP,Third Party Payments,EGA,26/09/2018,06-14467,"3,526.46",Thrumpton Kids Clubs
Nottinghamshire County Council,1111/1001,Children and Young People,CYP,Third Party Payments,EGA,26/09/2018,06-14468,1180.92,[Redacted]
Nottinghamshire County Council,1111/1001,Children and Young People,CYP,Third Party Payments,EGA,26/09/2018,06-14469,"6,094.62",Tiny Talkers Day Nursery
Nottinghamshire County Council,1111/1001,Children and Young People,CYP,Third Party Payments,EGA,26/09/2018,06-14470,7733.88,Tiny Teddies Day Nursery
Nottinghamshire County Council,1111/1001,Children and Young People,CYP,Third Party Payments,EGA,26/09/2018,06-14471,"13,124.16",Tiny World Mansfield
Nottinghamshire County Council,1111/1001,Children and Young People,CYP,Third Party Payments,EGA,26/09/2018,06-14472,4927.77,Toddlers University (Bee)
Nottinghamshire County Council,1111/1001,Children and Young People,CYP,Third Party Payments,EGA,26/09/2018,06-14473,786.24,Luans Little Stars
Nottinghamshire County Council,1111/1001,Children and Young People,CYP,Third Party Payments,EGA,26/09/2018,06-14474,"6,012.88",Tollerton Playgroup
Nottinghamshire County Council,1111/1001,Children and Young People,CYP,Third Party Payments,EGA,26/09/2018,06-14475,1180.37,[Redacted]
Nottinghamshire County Council,1111/1001,Children and Young People,CYP,Third Party Payments,EGA,26/09/2018,06-14476,"1,237.40",Toton Tots Pre-School
Nottinghamshire County Council,1111/1001,Children and Young People,CYP,Third Party Payments,EGA,26/09/2018,06-14477,3292.88,Tracey Streeter Childminding Servic
Nottinghamshire County Council,1111/1001,Children and Young People,CYP,Third Party Payments,EGA,26/09/2018,06-14478,29282.23,Treetops Nursery (Clipstone)
Nottinghamshire County Council,1111/1001,Children and Young People,CYP,Third Party Payments,EGA,26/09/2018,06-14479,"8,513.79",Treetops Nursery
Nottinghamshire County Council,1111/1001,Children and Young People,CYP,Third Party Payments,EGA,26/09/2018,06-14480,524.16,Sunnybank Childminding
Nottinghamshire County Council,1111/1001,Children and Young People,CYP,Third Party Payments,EGA,26/09/2018,06-14481,554.73,[Redacted]
Nottinghamshire County Council,1111/1001,Children and Young People,CYP,Third Party Payments,EGA,26/09/2018,06-14482,1572.48,Mini-me Childcare
Nottinghamshire County Council,1111/1001,Children and Young People,CYP,Third Party Payments,EGA,26/09/2018,06-14483,6552,Wolds Childcare Ltd
Nottinghamshire County Council,1111/1001,Children and Young People,CYP,Third Party Payments,EGA,26/09/2018,06-14484,818.07,[Redacted]
Nottinghamshire County Council,1111/1001,Children and Young People,CYP,Third Party Payments,EGA,26/09/2018,06-14485,1478.13,New Beginnings Quality Childcare
Nottinghamshire County Council,1111/1001,Children and Young People,CYP,Third Party Payments,EGA,26/09/2018,06-14486,995.9,[Redacted]
Nottinghamshire County Council,1111/1001,Children and Young People,CYP,Third Party Payments,EGA,26/09/2018,06-14487,1048.32,[Redacted]
Nottinghamshire County Council,1111/1001,Children and Young People,CYP,Third Party Payments,EGA,26/09/2018,06-14488,657.72,Rainbows Childminding
Nottinghamshire County Council,1111/1001,Children and Young People,CYP,Third Party Payments,EGA,26/09/2018,06-14489,919.8,[Redacted]
Nottinghamshire County Council,1111/1001,Children and Young People,CYP,Third Party Payments,EGA,26/09/2018,06-14490,986.58,Tinas Childminding
Nottinghamshire County Council,1111/1001,Children and Young People,CYP,Third Party Payments,EGA,26/09/2018,06-14491,694.51,[Redacted]
Nottinghamshire County Council,1111/1001,Children and Young People,CYP,Third Party Payments,EGA,26/09/2018,06-14492,7399.98,PSLA Newstead Childcare (HO)
Nottinghamshire County Council,1111/1001,Children and Young People,CYP,Third Party Payments,EGA,26/09/2018,06-14493,524.16,[Redacted]
Nottinghamshire County Council,1111/1001,Children and Young People,CYP,Third Party Payments,EGA,26/09/2018,06-14494,524.16,K Sharp (Childminding Service)
Nottinghamshire County Council,1111/1001,Children and Young People,CYP,Third Party Payments,EGA,26/09/2018,06-14495,681.4,A E Shaw (Childminder)
Nottinghamshire County Council,1111/1001,Children and Young People,CYP,Third Party Payments,EGA,26/09/2018,06-14496,"10,710.00",Sunnydale Nursery Ltd
Nottinghamshire County Council,1111/1001,Children and Young People,CYP,Third Party Payments,EGA,26/09/2018,06-14497,873.6,Belvoir House Childminding
Nottinghamshire County Council,1111/1001,Children and Young People,CYP,Third Party Payments,EGA,26/09/2018,06-14498,524.16,Kate's Childminding
Nottinghamshire County Council,1111/1001,Children and Young People,CYP,Third Party Payments,EGA,26/09/2018,06-14499,786.24,N Stevenson (Childminder)
Nottinghamshire County Council,1111/1001,Children and Young People,CYP,Third Party Payments,EGA,26/09/2018,06-14500,615.89,Taylor -Made Childcare
Nottinghamshire County Council,1111/1001,Children and Young People,CYP,Third Party Payments,EGA,26/09/2018,06-14501,1033.2,[Redacted]
Nottinghamshire County Council,1111/1001,Children and Young People,CYP,Third Party Payments,EGA,26/09/2018,06-14502,"3,292.88",Wellin Lane Playgroup
Nottinghamshire County Council,1111/1001,Children and Young People,CYP,Third Party Payments,EGA,26/09/2018,06-14503,21028.8,Grosvenor House Day Nursery
Nottinghamshire County Council,1111/1001,Children and Young People,CYP,Third Party Payments,EGA,26/09/2018,06-14504,1007.16,L & K's Little Kingdom
Nottinghamshire County Council,1111/1001,Children and Young People,CYP,Third Party Payments,EGA,26/09/2018,06-14506,29353.82,Good Foundations Day Nursery
Nottinghamshire County Council,1111/1001,Children and Young People,CYP,Third Party Payments,EGA,26/09/2018,06-14507,"3,879.54",Zoes Childcare Ltd
Nottinghamshire County Council,1111/1001,Children and Young People,CYP,Third Party Payments,EGA,26/09/2018,06-14508,12348.42,All Aboard Nursery Ltd
Nottinghamshire County Council,1111/1001,Children and Young People,CYP,Third Party Payments,EGA,26/09/2018,06-14509,15220.8,All Saints C Of E Primary School
Nottinghamshire County Council,1111/1001,Children and Young People,CYP,Third Party Payments,EGA,26/09/2018,06-14510,4593.96,Zoe's Childcare Ltd
Nottinghamshire County Council,1111/1001,Children and Young People,CYP,Third Party Payments,EGA,26/09/2018,06-14511,1257.98,Allsorts Playgroup
Nottinghamshire County Council,1111/1001,Children and Young People,CYP,Third Party Payments,EGA,26/09/2018,06-14512,"4,711.22",Alphabet House Day Nursery (Chilwel
Nottinghamshire County Council,1111/1001,Children and Young People,CYP,Third Party Payments,EGA,26/09/2018,06-14513,"7,677.18",Young Rascals Day Nursery
Nottinghamshire County Council,1111/1001,Children and Young People,CYP,Third Party Payments,EGA,26/09/2018,06-14514,5707.13,Alphabet House Day Nursery
Nottinghamshire County Council,1111/1001,Children and Young People,CYP,Third Party Payments,EGA,26/09/2018,06-14515,590.94,[Redacted]
Nottinghamshire County Council,1111/1001,Children and Young People,CYP,Third Party Payments,EGA,26/09/2018,06-14516,"8,912.36",Alphabet House Day Nursery
Nottinghamshire County Council,1111/1001,Children and Young People,CYP,Third Party Payments,EGA,26/09/2018,06-14517,11798.64,Alphabet House Day Nursery WB
Nottinghamshire County Council,1111/1001,Children and Young People,CYP,Third Party Payments,EGA,26/09/2018,06-14518,"10,179.54",Alphabet House Day Nursery Worksop
Nottinghamshire County Council,1111/1001,Children and Young People,CYP,Third Party Payments,EGA,26/09/2018,06-14519,14342.75,Alphabet House Nursery
Nottinghamshire County Council,1111/1001,Children and Young People,CYP,Third Party Payments,EGA,26/09/2018,06-14520,"8,790.92",Worksop College
Nottinghamshire County Council,1111/1001,Children and Young People,CYP,Third Party Payments,EGA,26/09/2018,06-14521,11145.96,Applegarth Day Nurseries Ltd
Nottinghamshire County Council,1111/1001,Children and Young People,CYP,Third Party Payments,EGA,26/09/2018,06-14522,7738.92,Appleton Childcare Ltd
Nottinghamshire County Council,1111/1001,Children and Young People,CYP,Third Party Payments,EGA,26/09/2018,06-14523,14607.35,Arnold House Day Nursery
Nottinghamshire County Council,1111/1001,Children and Young People,CYP,Third Party Payments,EGA,26/09/2018,06-14524,4765.57,Arnold St Mary's Pre-School
Nottinghamshire County Council,1111/1001,Children and Young People,CYP,Third Party Payments,EGA,26/09/2018,06-14525,"5,832.54",Ashfield Plaza Day Nursery
Nottinghamshire County Council,1111/1001,Children and Young People,CYP,Third Party Payments,EGA,26/09/2018,06-14526,"8,380.26",Attenborough Church Pre-School
Nottinghamshire County Council,1111/1001,Children and Young People,CYP,Third Party Payments,EGA,26/09/2018,06-14527,11095.47,Aunty Sue's Day Care Ltd
Nottinghamshire County Council,1111/1001,Children and Young People,CYP,Third Party Payments,EGA,26/09/2018,06-14528,4219.74,Awsworth Schoolhouse Day Nursery
Nottinghamshire County Council,1111/1001,Children and Young People,CYP,Third Party Payments,EGA,26/09/2018,06-14529,26279.82,Woodthorpe Day Nursery Ltd
Nottinghamshire County Council,1111/1001,Children and Young People,CYP,Third Party Payments,EGA,26/09/2018,06-14530,16192.25,Balderton Pre-School
Nottinghamshire County Council,1111/1001,Children and Young People,CYP,Third Party Payments,EGA,26/09/2018,06-14531,"7,713.30",Beacon Hill Day Nursery
Nottinghamshire County Council,1111/1001,Children and Young People,CYP,Third Party Payments,EGA,26/09/2018,06-14532,"6,382.57",Woodborough Village Pre School
Nottinghamshire County Council,1111/1001,Children and Young People,CYP,Third Party Payments,EGA,26/09/2018,06-14533,"8,108.94",Beeston Nursery
Nottinghamshire County Council,1111/1001,Children and Young People,CYP,Third Party Payments,EGA,26/09/2018,06-14534,20534.22,Wollaton Village Day Nurseries Ltd.
Nottinghamshire County Council,1111/1001,Children and Young People,CYP,Third Party Payments,EGA,26/09/2018,06-14535,"6,517.06",Bingham Day Nursery & Pre School
Nottinghamshire County Council,1111/1001,Children and Young People,CYP,Third Party Payments,EGA,26/09/2018,06-14536,6385.98,Bircotes Pre-School
Nottinghamshire County Council,1111/1001,Children and Young People,CYP,Third Party Payments,EGA,26/09/2018,06-14537,"7,247.77",Wollaton Village Day Nurseries
Nottinghamshire County Council,1111/1001,Children and Young People,CYP,Third Party Payments,EGA,26/09/2018,06-14538,22314.6,Bizzy Kidz
Nottinghamshire County Council,1111/1001,Children and Young People,CYP,Third Party Payments,EGA,26/09/2018,06-14539,6444.06,Wolds Day Nursery @ Stragglethorpe
Nottinghamshire County Council,1111/1001,Children and Young People,CYP,Third Party Payments,EGA,26/09/2018,06-14540,"4,560.19",Bramcote Pre-School Playgroup
Nottinghamshire County Council,1111/1001,Children and Young People,CYP,Third Party Payments,EGA,26/09/2018,06-14541,"13,392.54",Wishing Well Day Nursery
Nottinghamshire County Council,1111/1001,Children and Young People,CYP,Third Party Payments,EGA,26/09/2018,06-14542,"1,485.12",Bramley Pips Nursery Ltd
Nottinghamshire County Council,1111/1001,Children and Young People,CYP,Third Party Payments,EGA,26/09/2018,06-14543,"10,218.01",Bright Sparks Day Nursery
Nottinghamshire County Council,1111/1001,Children and Young People,CYP,Third Party Payments,EGA,26/09/2018,06-14544,"2,918.24",Windmill Kindergarten Playgroup
Nottinghamshire County Council,1111/1001,Children and Young People,CYP,Third Party Payments,EGA,26/09/2018,06-14545,"8,066.52",Bright Stars Childcare
Nottinghamshire County Council,1111/1001,Children and Young People,CYP,Third Party Payments,EGA,26/09/2018,06-14546,14968.58,Brooklyn Day Nursery
Nottinghamshire County Council,1111/1001,Children and Young People,CYP,Third Party Payments,EGA,26/09/2018,06-14547,4379.76,Willow Pre-School Playgroup
Nottinghamshire County Council,1111/1001,Children and Young People,CYP,Third Party Payments,EGA,26/09/2018,06-14548,"5,980.46",Bullpit Road Nursery
Nottinghamshire County Council,1111/1001,Children and Young People,CYP,Third Party Payments,EGA,26/09/2018,06-14549,"3,302.20",Willow Brook Pre-School
Nottinghamshire County Council,1111/1001,Children and Young People,CYP,Third Party Payments,EGA,26/09/2018,06-14550,11557.98,Busy Bees (Daybrook)
Nottinghamshire County Council,1111/1001,Children and Young People,CYP,Third Party Payments,EGA,26/09/2018,06-14551,"2,861.04",Willoughby On The Wolds Playgroup
Nottinghamshire County Council,1111/1001,Children and Young People,CYP,Third Party Payments,EGA,26/09/2018,06-14552,7474.91,Busy Bees Nursery
Nottinghamshire County Council,1111/1001,Children and Young People,CYP,Third Party Payments,EGA,26/09/2018,06-14553,"15,910.18",Cared 4 Ltd T/A Brookhill House Day
Nottinghamshire County Council,1111/1001,Children and Young People,CYP,Third Party Payments,EGA,26/09/2018,06-14554,"15,811.74",PSLA Newstead Childcare (HO)
Nottinghamshire County Council,1111/1001,Children and Young People,CYP,Third Party Payments,EGA,26/09/2018,06-14555,7927.46,Crossdale Busy Bees Pre-School
Nottinghamshire County Council,1111/1001,Children and Young People,CYP,Third Party Payments,EGA,26/09/2018,06-14556,9589.02,Whitehouse Day Nursery
Nottinghamshire County Council,1111/1001,Children and Young People,CYP,Third Party Payments,EGA,26/09/2018,06-14557,1181.88,[Redacted]
Nottinghamshire County Council,1111/1001,Children and Young People,CYP,Third Party Payments,EGA,26/09/2018,06-14558,2942.68,West Street Pre-School
Nottinghamshire County Council,1111/1001,Children and Young People,CYP,Third Party Payments,EGA,26/09/2018,06-14559,875.86,E Alcin (Childminder)
Nottinghamshire County Council,1111/1001,Children and Young People,CYP,Third Party Payments,EGA,26/09/2018,06-14560,12361.57,Westdale Pre-School
Nottinghamshire County Council,1111/1001,Children and Young People,CYP,Third Party Payments,EGA,26/09/2018,06-14561,786.24,[Redacted]
Nottinghamshire County Council,1111/1001,Children and Young People,CYP,Third Party Payments,EGA,26/09/2018,06-14562,"4,347.42",West Bridgford Out Of School Care L
Nottinghamshire County Council,1111/1001,Children and Young People,CYP,Third Party Payments,EGA,26/09/2018,06-14563,524.16,[Redacted]
Nottinghamshire County Council,1111/1001,Children and Young People,CYP,Third Party Payments,EGA,26/09/2018,06-14564,11161.08,Westbourne House Nursery School
Nottinghamshire County Council,1111/1001,Children and Young People,CYP,Third Party Payments,EGA,26/09/2018,06-14565,590.94,Home From Home Childcare
Nottinghamshire County Council,1111/1001,Children and Young People,CYP,Third Party Payments,EGA,26/09/2018,06-14566,"11,714.97",Weaverthorpe Pre-School Playgroup
Nottinghamshire County Council,1111/1001,Children and Young People,CYP,Third Party Payments,EGA,26/09/2018,06-14567,2660.87,Watnall Pre-School Playgroup
Nottinghamshire County Council,1111/1001,Children and Young People,CYP,Third Party Payments,EGA,26/09/2018,06-14568,524.16,[Redacted]
Nottinghamshire County Council,1111/1001,Children and Young People,CYP,Third Party Payments,EGA,26/09/2018,06-14569,5488.73,Walesby School Playgroup
Nottinghamshire County Council,1111/1001,Children and Young People,CYP,Third Party Payments,EGA,26/09/2018,06-14570,657.72,[Redacted]
Nottinghamshire County Council,1111/1001,Children and Young People,CYP,Third Party Payments,EGA,26/09/2018,06-14571,660.83,Little Angels Childcare
Nottinghamshire County Council,1111/1001,Children and Young People,CYP,Third Party Payments,EGA,26/09/2018,06-14572,"22,682.52",Village Day Nursery
Nottinghamshire County Council,1111/1001,Children and Young People,CYP,Third Party Payments,EGA,26/09/2018,06-14573,1048.32,Little House Of Horrors
Nottinghamshire County Council,1111/1001,Children and Young People,CYP,Third Party Payments,EGA,26/09/2018,06-14574,5949.22,Upton Crickets Day Nursery
Nottinghamshire County Council,1111/1001,Children and Young People,CYP,Third Party Payments,EGA,26/09/2018,06-14575,3229.22,Trowell Pre School
Nottinghamshire County Council,1111/1001,Children and Young People,CYP,Third Party Payments,EGA,26/09/2018,06-14576,786.24,[Redacted]
Nottinghamshire County Council,1111/1001,Children and Young People,CYP,Third Party Payments,EGA,26/09/2018,06-14577,524.16,Mornington Childcare Services
Nottinghamshire County Council,1111/1001,Children and Young People,CYP,Third Party Payments,EGA,26/09/2018,06-14578,576.58,[Redacted]
Nottinghamshire County Council,1111/1001,Children and Young People,CYP,Third Party Payments,EGA,26/09/2018,06-14579,786.24,Jelly Tots
Nottinghamshire County Council,1111/1001,Children and Young People,CYP,Third Party Payments,EGA,26/09/2018,06-14580,590.94,Sharons Childminding
Nottinghamshire County Council,1111/1001,Children and Young People,CYP,Third Party Payments,EGA,26/09/2018,06-14581,"1,115.10",Making Memories Childminding
Nottinghamshire County Council,1111/1001,Children and Young People,CYP,Third Party Payments,EGA,26/09/2018,06-14582,698.88,[Redacted]
Nottinghamshire County Council,1111/1001,Children and Young People,CYP,Third Party Payments,EGA,26/09/2018,06-14583,"2,625.84",Pretty Windows Ltd
Nottinghamshire County Council,1111/1001,Children and Young People,CYP,Third Party Payments,EGA,26/09/2018,06-14584,511.81,Ami Wallington Childminding Service
Nottinghamshire County Council,1111/1001,Children and Young People,CYP,Third Party Payments,EGA,26/09/2018,06-14585,"2,206.71",PSLA Newstead Childcare (HO)
Nottinghamshire County Council,1111/1001,Children and Young People,CYP,Third Party Payments,EGA,26/09/2018,06-14586,"3,016.44",[Redacted]
Nottinghamshire County Council,1111/1001,Children and Young People,CYP,Third Party Payments,EGA,26/09/2018,06-14587,524.16,[Redacted]
Nottinghamshire County Council,1111/1001,Children and Young People,CYP,Third Party Payments,EGA,26/09/2018,06-14588,524.16,S Baines (Childminder)
Nottinghamshire County Council,1111/1001,Children and Young People,CYP,Third Party Payments,EGA,26/09/2018,06-14589,838.65,Hayley Williams Childminding Servic
Nottinghamshire County Council,1111/1001,Children and Young People,CYP,Third Party Payments,EGA,26/09/2018,06-14590,524.16,Sunrayz Childcare
Nottinghamshire County Council,1111/1001,Children and Young People,CYP,Third Party Payments,EGA,26/09/2018,06-14591,776.28,[Redacted]
Nottinghamshire County Council,1111/1001,Children and Young People,CYP,Third Party Payments,EGA,26/09/2018,06-14592,655.2,The Cornerhouse Childminding
Nottinghamshire County Council,1111/1001,Children and Young People,CYP,Third Party Payments,EGA,26/09/2018,06-14593,524.16,[Redacted]
Nottinghamshire County Council,1111/1001,Children and Young People,CYP,Third Party Payments,EGA,26/09/2018,06-14594,524.16,[Redacted]
Nottinghamshire County Council,1111/1001,Children and Young People,CYP,Third Party Payments,EGA,26/09/2018,06-14595,524.16,[Redacted]
Nottinghamshire County Council,1111/1001,Children and Young People,CYP,Third Party Payments,EGA,26/09/2018,06-14596,5446.98,Mulberry Bush Day Nursery
Nottinghamshire County Council,1111/1001,Children and Young People,CYP,Third Party Payments,EGA,26/09/2018,06-14597,524.16,[Redacted]
Nottinghamshire County Council,1111/1001,Children and Young People,CYP,Third Party Payments,EGA,26/09/2018,06-14598,2497.32,[Redacted]
Nottinghamshire County Council,1111/1001,Children and Young People,CYP,Third Party Payments,EGA,26/09/2018,06-14599,559.1,Childcare @ Heathers House
Nottinghamshire County Council,1111/1001,Children and Young People,CYP,Third Party Payments,EGA,26/09/2018,06-14600,2363.76,Yew Tree Childcare
Nottinghamshire County Council,1111/1001,Children and Young People,CYP,Third Party Payments,EGA,26/09/2018,06-14601,851.76,Fionas Childminding Services
Nottinghamshire County Council,1111/1001,Children and Young People,CYP,Third Party Payments,EGA,27/09/2018,06-11355,"2,763.18",Nottinghamshire Healthcare Nhs F Tr
Nottinghamshire County Council,1111/1001,Children and Young People,CYP,Third Party Payments,EGA,27/09/2018,06-11359,"1,644.30",Sherwood East Childrens Centre (RNN
Nottinghamshire County Council,1111/1001,Children and Young People,CYP,Third Party Payments,EGA,27/09/2018,06-14196,11369.61,Dragonflies Day Nursery ltd
Nottinghamshire County Council,1111/1001,Children and Young People,CYP,Third Party Payments,EGA,28/09/2018,06-14605,1342.2,Noahs Park Chilminding
Nottinghamshire County Council,1111/1001,Children and Young People,CYP,Third Party Payments,EGA,28/09/2018,06-14606,"8,372.95",Treetops Nurseries Ltd
Nottinghamshire County Council,1111/1001,Children and Young People,CYP,Third Party Payments,EGA,28/09/2018,06-14607,"5,508.72",PSLA Newstead Childcare (HO)
Nottinghamshire County Council,1111/1001,Adult Social Care and Health,ASCH,Premises Related,BAA,03/09/2018,06-10083,1196.28,ARC Property Services Partnership L
Nottinghamshire County Council,1111/1001,Adult Social Care and Health,ASCH,Premises Related,BAA,03/09/2018,06-10089,5188.66,ARC Property Services Partnership L
Nottinghamshire County Council,1111/1001,Adult Social Care and Health,ASCH,Premises Related,BAA,05/09/2018,06-11109,1492.5,Heating & Process Eng Serv Ltd
Nottinghamshire County Council,1111/1001,Adult Social Care and Health,ASCH,Premises Related,BAA,07/09/2018,06-11804,1355.56,ARC Property Services Partnership L
Nottinghamshire County Council,1111/1001,Adult Social Care and Health,ASCH,Premises Related,BAA,13/09/2018,06-12085,1515,TMM & Building Ltd
Nottinghamshire County Council,1111/1001,Adult Social Care and Health,ASCH,Premises Related,BAA,14/09/2018,06-12309,3786.32,ARC Property Services Partnership L
Nottinghamshire County Council,1111/1001,Adult Social Care and Health,ASCH,Premises Related,BAA,25/09/2018,06-13936,8543.85,ARC Property Services Partnership L
Nottinghamshire County Council,1111/1001,Adult Social Care and Health,ASCH,Premises Related,BAA,25/09/2018,06-13937,6006.5,ARC Property Services Partnership L
Nottinghamshire County Council,1111/1001,Adult Social Care and Health,ASCH,Premises Related,BAA,28/09/2018,06-17197,517.00,Technicare Ltd T/A Blythe Group
Nottinghamshire County Council,1111/1001,Adult Social Care and Health,ASCH,Premises Related,BAA,28/09/2018,06-17198,"1,053.75",Heating & Process Eng Serv Ltd
Nottinghamshire County Council,1111/1001,Adult Social Care and Health,ASCH,Transport Related,CAA,03/09/2018,06-10058,3961.08,Via East Midlands Ltd
Nottinghamshire County Council,1111/1001,Adult Social Care and Health,ASCH,Transport Related,CAA,03/09/2018,06-10066,3634.85,Via East Midlands Ltd
Nottinghamshire County Council,1111/1001,Adult Social Care and Health,ASCH,Transport Related,CAA,14/09/2018,06-12189,1257.49,Via East Midlands Ltd
Nottinghamshire County Council,1111/1001,Adult Social Care and Health,ASCH,Transport Related,CAA,14/09/2018,06-12194,"2,000.15",Via East Midlands Ltd
Nottinghamshire County Council,1111/1001,Adult Social Care and Health,ASCH,Transport Related,CAA,26/09/2018,06-14331,2013.19,Via East Midlands Ltd
Nottinghamshire County Council,1111/1001,Adult Social Care and Health,ASCH,Transport Related,CAA,26/09/2018,06-14336,"4,324.28",Via East Midlands Ltd
Nottinghamshire County Council,1111/1001,Adult Social Care and Health,ASCH,Transport Related,CBA,03/09/2018,06-10050,"5,383.50",Via East Midlands Ltd
Nottinghamshire County Council,1111/1001,Adult Social Care and Health,ASCH,Transport Related,CBA,11/09/2018,06-11830,2413.6,Johnson Bros Tours Ltd
Nottinghamshire County Council,1111/1001,Adult Social Care and Health,ASCH,Transport Related,CBA,11/09/2018,06-11841,"2,420.18",Vallances Coaches
Nottinghamshire County Council,1111/1001,Adult Social Care and Health,ASCH,Transport Related,CBA,11/09/2018,06-11847,"1,682.66",Aj Travel
Nottinghamshire County Council,1111/1001,Adult Social Care and Health,ASCH,Transport Related,CBA,14/09/2018,06-12185,"1,136.10",Via East Midlands Ltd
Nottinghamshire County Council,1111/1001,Adult Social Care and Health,ASCH,Transport Related,CBA,14/09/2018,06-12199,5460,Via East Midlands Ltd
Nottinghamshire County Council,1111/1001,Adult Social Care and Health,ASCH,Transport Related,CBA,18/09/2018,06-12370,1785.14,Community Transport for Town & Coun
Nottinghamshire County Council,1111/1001,Adult Social Care and Health,ASCH,Transport Related,CBA,18/09/2018,06-12371,2142.28,Community Transport for Town & Coun
Nottinghamshire County Council,1111/1001,Adult Social Care and Health,ASCH,Transport Related,CCA,13/09/2018,06-12090,2413.18,Arrow Specialised Transport Ltd
Nottinghamshire County Council,1111/1001,Adult Social Care and Health,ASCH,Transport Related,CCA,13/09/2018,06-12108,825,Abacus Cars
Nottinghamshire County Council,1111/1001,Adult Social Care and Health,ASCH,Transport Related,CCA,26/09/2018,06-14341,63.8,Via East Midlands Ltd
Nottinghamshire County Council,1111/1001,Adult Social Care and Health,ASCH,Transport Related,CDA,11/09/2018,06-11829,2444.2,Taxicover Uk Ltd
Nottinghamshire County Council,1111/1001,Adult Social Care and Health,ASCH,Transport Related,CDA,11/09/2018,06-11831,"3,755.92",Bridges Transport Ltd
Nottinghamshire County Council,1111/1001,Adult Social Care and Health,ASCH,Transport Related,CDA,11/09/2018,06-11832,950.00,Bridges Transport Ltd
Nottinghamshire County Council,1111/1001,Adult Social Care and Health,ASCH,Transport Related,CDA,11/09/2018,06-11833,1134.9,Bridges Transport Ltd
Nottinghamshire County Council,1111/1001,Adult Social Care and Health,ASCH,Transport Related,CDA,11/09/2018,06-11834,882.72,Bridges Transport Ltd
Nottinghamshire County Council,1111/1001,Adult Social Care and Health,ASCH,Transport Related,CDA,11/09/2018,06-11835,"3,352.36",Bridges Transport Ltd
Nottinghamshire County Council,1111/1001,Adult Social Care and Health,ASCH,Transport Related,CDA,11/09/2018,06-11836,"1,774.80",Bridges Transport Ltd
Nottinghamshire County Council,1111/1001,Adult Social Care and Health,ASCH,Transport Related,CDA,11/09/2018,06-11837,870,Fozcabs Newark Taxis
Nottinghamshire County Council,1111/1001,Adult Social Care and Health,ASCH,Transport Related,CDA,11/09/2018,06-11838,"1,009.89",Galaxy Cabs Ltd
Nottinghamshire County Council,1111/1001,Adult Social Care and Health,ASCH,Transport Related,CDA,11/09/2018,06-11839,2395.36,Hawkins Taxis & Transport
Nottinghamshire County Council,1111/1001,Adult Social Care and Health,ASCH,Transport Related,CDA,11/09/2018,06-11840,734.52,Shelleys Taxis Ltd
Nottinghamshire County Council,1111/1001,Adult Social Care and Health,ASCH,Transport Related,CDA,11/09/2018,06-11843,991.12,Abacus Cars
Nottinghamshire County Council,1111/1001,Adult Social Care and Health,ASCH,Transport Related,CDA,11/09/2018,06-11845,1732.8,Beechwood Taxis
Nottinghamshire County Council,1111/1001,Adult Social Care and Health,ASCH,Transport Related,CDA,11/09/2018,06-11848,525.20,Cable Cars Taxis Nottm Ltd
Nottinghamshire County Council,1111/1001,Adult Social Care and Health,ASCH,Transport Related,CDA,13/09/2018,06-12086,"1,014.60",F4Control Ltd (t/a First4care)
Nottinghamshire County Council,1111/1001,Adult Social Care and Health,ASCH,Transport Related,CDA,13/09/2018,06-12087,730.68,F4Control Ltd (t/a First4care)
Nottinghamshire County Council,1111/1001,Adult Social Care and Health,ASCH,Transport Related,CDA,13/09/2018,06-12088,880,Ace Of Mansfield Ltd
Nottinghamshire County Council,1111/1001,Adult Social Care and Health,ASCH,Transport Related,CDA,13/09/2018,06-12089,828.36,Ace Of Mansfield Ltd
Nottinghamshire County Council,1111/1001,Adult Social Care and Health,ASCH,Transport Related,CDA,13/09/2018,06-12091,"1,749.00",Arrow Specialised Transport Ltd
Nottinghamshire County Council,1111/1001,Adult Social Care and Health,ASCH,Transport Related,CDA,13/09/2018,06-12092,"2,533.08",Arrow Specialised Transport Ltd
Nottinghamshire County Council,1111/1001,Adult Social Care and Health,ASCH,Transport Related,CDA,13/09/2018,06-12093,1346.62,Fozcabs Newark Taxis
Nottinghamshire County Council,1111/1001,Adult Social Care and Health,ASCH,Transport Related,CDA,13/09/2018,06-12094,1340.4,Carlton Cars Ltd T/A Trent Cars
Nottinghamshire County Council,1111/1001,Adult Social Care and Health,ASCH,Transport Related,CDA,13/09/2018,06-12095,875.30,F4Control Ltd (t/a First4care)
Nottinghamshire County Council,1111/1001,Adult Social Care and Health,ASCH,Transport Related,CDA,13/09/2018,06-12096,"3,152.84",F4Control Ltd (t/a First4care)
Nottinghamshire County Council,1111/1001,Adult Social Care and Health,ASCH,Transport Related,CDA,13/09/2018,06-12097,"2,711.70",F4Control Ltd (t/a First4care)
Nottinghamshire County Council,1111/1001,Adult Social Care and Health,ASCH,Transport Related,CDA,13/09/2018,06-12099,2222,Abacus Cars
Nottinghamshire County Council,1111/1001,Adult Social Care and Health,ASCH,Transport Related,CDA,13/09/2018,06-12100,514.48,Abacus Cars
Nottinghamshire County Council,1111/1001,Adult Social Care and Health,ASCH,Transport Related,CDA,13/09/2018,06-12101,3501.08,Abacus Cars
Nottinghamshire County Council,1111/1001,Adult Social Care and Health,ASCH,Transport Related,CDA,13/09/2018,06-12102,686.16,Abacus Cars
Nottinghamshire County Council,1111/1001,Adult Social Care and Health,ASCH,Transport Related,CDA,13/09/2018,06-12103,1428,Abacus Cars
Nottinghamshire County Council,1111/1001,Adult Social Care and Health,ASCH,Transport Related,CDA,13/09/2018,06-12104,975.52,Abacus Cars
Nottinghamshire County Council,1111/1001,Adult Social Care and Health,ASCH,Transport Related,CDA,13/09/2018,06-12105,"1,040.57",Abacus Cars
Nottinghamshire County Council,1111/1001,Adult Social Care and Health,ASCH,Transport Related,CDA,13/09/2018,06-12106,1608.9,Abacus Cars
Nottinghamshire County Council,1111/1001,Adult Social Care and Health,ASCH,Transport Related,CDA,13/09/2018,06-12107,808,Abacus Cars
Nottinghamshire County Council,1111/1001,Adult Social Care and Health,ASCH,Transport Related,CDA,13/09/2018,06-12108,"2,475.00",Abacus Cars
Nottinghamshire County Council,1111/1001,Adult Social Care and Health,ASCH,Transport Related,CDA,13/09/2018,06-12111,711.00,Abacus Cars
Nottinghamshire County Council,1111/1001,Adult Social Care and Health,ASCH,Transport Related,CDA,13/09/2018,06-12127,"1,533.62",In Taxis
Nottinghamshire County Council,1111/1001,Adult Social Care and Health,ASCH,Transport Related,CDA,13/09/2018,06-12128,608.68,Shiny Sky Ltd T/A A2b Cars
Nottinghamshire County Council,1111/1001,Adult Social Care and Health,ASCH,Transport Related,CDA,13/09/2018,06-12129,585,Shiny Sky Ltd T/A A2b Cars
Nottinghamshire County Council,1111/1001,Adult Social Care and Health,ASCH,Transport Related,CDA,14/09/2018,06-12140,2180,Southside Cars
Nottinghamshire County Council,1111/1001,Adult Social Care and Health,ASCH,Transport Related,CDA,14/09/2018,06-12141,531.96,200 Cars Ltd
Nottinghamshire County Council,1111/1001,Adult Social Care and Health,ASCH,Transport Related,CDA,14/09/2018,06-12142,2105.44,Alpha Cars
Nottinghamshire County Council,1111/1001,Adult Social Care and Health,ASCH,Transport Related,CDA,14/09/2018,06-12143,"1,414.00",Alpha Cars
Nottinghamshire County Council,1111/1001,Adult Social Care and Health,ASCH,Transport Related,CDA,14/09/2018,06-12144,4265.58,BN Gibson Ltd
Nottinghamshire County Council,1111/1001,Adult Social Care and Health,ASCH,Transport Related,CDA,14/09/2018,06-12145,2714.6,BN Gibson Ltd
Nottinghamshire County Council,1111/1001,Adult Social Care and Health,ASCH,Transport Related,CDA,14/09/2018,06-12182,"1,447.00",AAA Cabs
Nottinghamshire County Council,1111/1001,Adult Social Care and Health,ASCH,Transport Related,CDA,14/09/2018,06-12183,"1,881.90",Nottingham Cars Ltd
Nottinghamshire County Council,1111/1001,Adult Social Care and Health,ASCH,Transport Related,CDA,18/09/2018,06-12362,665,D G Private Hire Ltd
Nottinghamshire County Council,1111/1001,Adult Social Care and Health,ASCH,Transport Related,CDA,18/09/2018,06-12363,612.00,D G Private Hire Ltd
Nottinghamshire County Council,1111/1001,Adult Social Care and Health,ASCH,Transport Related,CDA,18/09/2018,06-12364,1456.85,D G Private Hire Ltd
Nottinghamshire County Council,1111/1001,Adult Social Care and Health,ASCH,Transport Related,CDA,19/09/2018,06-13563,1056,200 Cars Ltd
Nottinghamshire County Council,1111/1001,Adult Social Care and Health,ASCH,Transport Related,CDA,19/09/2018,06-13564,845.4,Eastwood Cars (UK) Ltd
Nottinghamshire County Council,1111/1001,Adult Social Care and Health,ASCH,Transport Related,CDA,26/09/2018,06-14206,"1,256.70",Acorn Contracts
Nottinghamshire County Council,1111/1001,Adult Social Care and Health,ASCH,Transport Related,CDA,26/09/2018,06-14218,"3,148.89",Abacus Cars
Nottinghamshire County Council,1111/1001,Adult Social Care and Health,ASCH,Transport Related,CDA,26/09/2018,06-14225,969.6,Shiny Sky Ltd T/A A2b Cars
Nottinghamshire County Council,1111/1001,Adult Social Care and Health,ASCH,Transport Related,CDA,26/09/2018,06-14226,603.98,Ideal Cars (Private Hire) Ltd
Nottinghamshire County Council,1111/1001,Adult Social Care and Health,ASCH,Transport Related,CEA,14/09/2018,06-11815,540.55,Reed Employment Plc
Nottinghamshire County Council,1111/1001,Adult Social Care and Health,ASCH,Transport Related,CEA,14/09/2018,06-12185,6196.93,Via East Midlands Ltd
Nottinghamshire County Council,1111/1001,Adult Social Care and Health,ASCH,Transport Related,CEA,21/09/2018,06-13556,211.19,Reed Employment Plc
Nottinghamshire County Council,1111/1001,Adult Social Care and Health,ASCH,Third Party Payments,EBA,06/09/2018,06-11372,4986.6,Framework Housing Association
Nottinghamshire County Council,1111/1001,Adult Social Care and Health,ASCH,Third Party Payments,EGA,03/09/2018,06-10045,"104,234.29",Ruddington View (Voyage Ltd)
Nottinghamshire County Council,1111/1001,Adult Social Care and Health,ASCH,Third Party Payments,EGA,03/09/2018,06-10046,1070,Stoke House Nursing Home
Nottinghamshire County Council,1111/1001,Adult Social Care and Health,ASCH,Third Party Payments,EGA,03/09/2018,06-10047,978.00,Sycamores CC (Four Seasons)
Nottinghamshire County Council,1111/1001,Adult Social Care and Health,ASCH,Third Party Payments,EGA,03/09/2018,06-10048,"11,946.35",Sycamores CC (Four Seasons)
Nottinghamshire County Council,1111/1001,Adult Social Care and Health,ASCH,Third Party Payments,EGA,03/09/2018,06-10049,"11,311.43",Willow Tree House (My Care)
Nottinghamshire County Council,1111/1001,Adult Social Care and Health,ASCH,Third Party Payments,EGA,03/09/2018,06-10095,5943.04,Redcliffe House (Voyage)
Nottinghamshire County Council,1111/1001,Adult Social Care and Health,ASCH,Third Party Payments,EGA,03/09/2018,06-10096,2456,Rylands Residential Care Home
Nottinghamshire County Council,1111/1001,Adult Social Care and Health,ASCH,Third Party Payments,EGA,03/09/2018,06-10097,7120,Rotherwood Residential Home T/A Hel
Nottinghamshire County Council,1111/1001,Adult Social Care and Health,ASCH,Third Party Payments,EGA,03/09/2018,06-10098,"1,942.28",Rock House Residential Home
Nottinghamshire County Council,1111/1001,Adult Social Care and Health,ASCH,Third Party Payments,EGA,03/09/2018,06-10099,2800,Richmond House Residential Home Ltd
Nottinghamshire County Council,1111/1001,Adult Social Care and Health,ASCH,Third Party Payments,EGA,03/09/2018,06-10100,6653.28,The Red House (Voyage)
Nottinghamshire County Council,1111/1001,Adult Social Care and Health,ASCH,Third Party Payments,EGA,03/09/2018,06-10101,7976.24,Rose Keys Care Home
Nottinghamshire County Council,1111/1001,Adult Social Care and Health,ASCH,Third Party Payments,EGA,03/09/2018,06-10102,2016,Rose Farm Care Home
Nottinghamshire County Council,1111/1001,Adult Social Care and Health,ASCH,Third Party Payments,EGA,03/09/2018,06-10103,2016,Rose Farm Care Home
Nottinghamshire County Council,1111/1001,Adult Social Care and Health,ASCH,Third Party Payments,EGA,03/09/2018,06-10104,2016,Rose Farm Care Home
Nottinghamshire County Council,1111/1001,Adult Social Care and Health,ASCH,Third Party Payments,EGA,03/09/2018,06-10105,5447.96,Rose Keys Care Home
Nottinghamshire County Council,1111/1001,Adult Social Care and Health,ASCH,Third Party Payments,EGA,03/09/2018,06-10106,"2,456.00",Rylands Residential Care Home
Nottinghamshire County Council,1111/1001,Adult Social Care and Health,ASCH,Third Party Payments,EGA,03/09/2018,06-10107,2016,Rose Farm Care Home
Nottinghamshire County Council,1111/1001,Adult Social Care and Health,ASCH,Third Party Payments,EGA,03/09/2018,06-10108,2256,Red Roofs Rest Home - (Midlands Ltd
Nottinghamshire County Council,1111/1001,Adult Social Care and Health,ASCH,Third Party Payments,EGA,03/09/2018,06-10109,2496,Red Roofs Rest Home - (Midlands Ltd
Nottinghamshire County Council,1111/1001,Adult Social Care and Health,ASCH,Third Party Payments,EGA,03/09/2018,06-10110,2720,Red Rose N H (Red Homes)
Nottinghamshire County Council,1111/1001,Adult Social Care and Health,ASCH,Third Party Payments,EGA,03/09/2018,06-10111,5406,Rose Keys Care Home
Nottinghamshire County Council,1111/1001,Adult Social Care and Health,ASCH,Third Party Payments,EGA,03/09/2018,06-10112,"2,360.00",Radcliffe Manor House
Nottinghamshire County Council,1111/1001,Adult Social Care and Health,ASCH,Third Party Payments,EGA,03/09/2018,06-10113,6744.68,Rose Keys Care Home
Nottinghamshire County Council,1111/1001,Adult Social Care and Health,ASCH,Third Party Payments,EGA,03/09/2018,06-10114,"2,016.00",Red Oaks Care Community (Red Homes)
Nottinghamshire County Council,1111/1001,Adult Social Care and Health,ASCH,Third Party Payments,EGA,03/09/2018,06-10115,2504,Radcliffe Manor House
Nottinghamshire County Council,1111/1001,Adult Social Care and Health,ASCH,Third Party Payments,EGA,03/09/2018,06-10116,2260,Red Oaks Care Community (Red Homes)
Nottinghamshire County Council,1111/1001,Adult Social Care and Health,ASCH,Third Party Payments,EGA,03/09/2018,06-10117,2380,Red Rose N H (Red Homes)
Nottinghamshire County Council,1111/1001,Adult Social Care and Health,ASCH,Third Party Payments,EGA,03/09/2018,06-10118,2016,Rose Farm Care Home
Nottinghamshire County Council,1111/1001,Adult Social Care and Health,ASCH,Third Party Payments,EGA,03/09/2018,06-10119,4000,Royal Cambridge Home
Nottinghamshire County Council,1111/1001,Adult Social Care and Health,ASCH,Third Party Payments,EGA,03/09/2018,06-10120,2260,Red Oaks Care Community (Red Homes)
Nottinghamshire County Council,1111/1001,Adult Social Care and Health,ASCH,Third Party Payments,EGA,03/09/2018,06-10121,2016,Rose Farm Care Home
Nottinghamshire County Council,1111/1001,Adult Social Care and Health,ASCH,Third Party Payments,EGA,03/09/2018,06-10122,2260,Red Oaks Care Community (Red Homes)
Nottinghamshire County Council,1111/1001,Adult Social Care and Health,ASCH,Third Party Payments,EGA,03/09/2018,06-10123,6610.68,Rose Meadow Healthcare Ltd
Nottinghamshire County Council,1111/1001,Adult Social Care and Health,ASCH,Third Party Payments,EGA,03/09/2018,06-10124,"2,016.00",The Rookery
Nottinghamshire County Council,1111/1001,Adult Social Care and Health,ASCH,Third Party Payments,EGA,03/09/2018,06-10125,"1,875.72",Randolph Care Home (Burlington)
Nottinghamshire County Council,1111/1001,Adult Social Care and Health,ASCH,Third Party Payments,EGA,03/09/2018,06-10126,"2,260.00",Red Oaks Care Community (Red Homes)
Nottinghamshire County Council,1111/1001,Adult Social Care and Health,ASCH,Third Party Payments,EGA,03/09/2018,06-10127,"2,256.00",Red Roofs Rest Home - (Midlands Ltd
Nottinghamshire County Council,1111/1001,Adult Social Care and Health,ASCH,Third Party Payments,EGA,03/09/2018,06-10128,"2,256.00",Red Roofs Rest Home - (Midlands Ltd
Nottinghamshire County Council,1111/1001,Adult Social Care and Health,ASCH,Third Party Payments,EGA,03/09/2018,06-10129,1942.28,The Royal Care Home
Nottinghamshire County Council,1111/1001,Adult Social Care and Health,ASCH,Third Party Payments,EGA,03/09/2018,06-10130,2256,Rylands Residential Care Home
Nottinghamshire County Council,1111/1001,Adult Social Care and Health,ASCH,Third Party Payments,EGA,03/09/2018,06-10131,"5,821.56",Richmond Lodge (K-In-A) (Blue Sky)
Nottinghamshire County Council,1111/1001,Adult Social Care and Health,ASCH,Third Party Payments,EGA,03/09/2018,06-10132,2379.52,Red Oaks Care Community (Red Homes)
Nottinghamshire County Council,1111/1001,Adult Social Care and Health,ASCH,Third Party Payments,EGA,03/09/2018,06-10133,"2,456.00",Rylands Residential Care Home
Nottinghamshire County Council,1111/1001,Adult Social Care and Health,ASCH,Third Party Payments,EGA,03/09/2018,06-10134,2260,Red Oaks Care Community (Red Homes)
Nottinghamshire County Council,1111/1001,Adult Social Care and Health,ASCH,Third Party Payments,EGA,03/09/2018,06-10135,"2,016.00",The Rookery
Nottinghamshire County Council,1111/1001,Adult Social Care and Health,ASCH,Third Party Payments,EGA,03/09/2018,06-10136,2624,Red Roofs Rest Home - (Midlands Ltd
Nottinghamshire County Council,1111/1001,Adult Social Care and Health,ASCH,Third Party Payments,EGA,03/09/2018,06-10137,6537.8,Rose Keys Care Home
Nottinghamshire County Council,1111/1001,Adult Social Care and Health,ASCH,Third Party Payments,EGA,03/09/2018,06-10138,"6,091.96",The Rivers (Voyage)
Nottinghamshire County Council,1111/1001,Adult Social Care and Health,ASCH,Third Party Payments,EGA,03/09/2018,06-10139,4977.12,Rose Keys Care Home
Nottinghamshire County Council,1111/1001,Adult Social Care and Health,ASCH,Third Party Payments,EGA,03/09/2018,06-10140,"2,016.00",The Rookery
Nottinghamshire County Council,1111/1001,Adult Social Care and Health,ASCH,Third Party Payments,EGA,03/09/2018,06-10141,"2,016.00",The Rookery
Nottinghamshire County Council,1111/1001,Adult Social Care and Health,ASCH,Third Party Payments,EGA,03/09/2018,06-10142,"2,016.00",Red Oaks Care Community (Red Homes)
Nottinghamshire County Council,1111/1001,Adult Social Care and Health,ASCH,Third Party Payments,EGA,03/09/2018,06-10143,2016,Rose Farm Care Home
Nottinghamshire County Council,1111/1001,Adult Social Care and Health,ASCH,Third Party Payments,EGA,03/09/2018,06-10144,2016,Rose Farm Care Home
Nottinghamshire County Council,1111/1001,Adult Social Care and Health,ASCH,Third Party Payments,EGA,03/09/2018,06-10145,2256,Red Roofs Rest Home - (Midlands Ltd
Nottinghamshire County Council,1111/1001,Adult Social Care and Health,ASCH,Third Party Payments,EGA,03/09/2018,06-10146,2380,Red Rose N H (Red Homes)
Nottinghamshire County Council,1111/1001,Adult Social Care and Health,ASCH,Third Party Payments,EGA,03/09/2018,06-10147,2260,Red Oaks Care Community (Red Homes)
Nottinghamshire County Council,1111/1001,Adult Social Care and Health,ASCH,Third Party Payments,EGA,03/09/2018,06-10148,"6,582.20",Redcliffe House (Voyage)
Nottinghamshire County Council,1111/1001,Adult Social Care and Health,ASCH,Third Party Payments,EGA,03/09/2018,06-10149,5348.28,Redcliffe House (Voyage)
Nottinghamshire County Council,1111/1001,Adult Social Care and Health,ASCH,Third Party Payments,EGA,03/09/2018,06-10150,"4,333.76",Rose Meadow Healthcare Ltd
Nottinghamshire County Council,1111/1001,Adult Social Care and Health,ASCH,Third Party Payments,EGA,03/09/2018,06-10151,2016,Rose Farm Care Home
Nottinghamshire County Council,1111/1001,Adult Social Care and Health,ASCH,Third Party Payments,EGA,03/09/2018,06-10152,"2,380.00",Red Rose N H (Red Homes)
Nottinghamshire County Council,1111/1001,Adult Social Care and Health,ASCH,Third Party Payments,EGA,03/09/2018,06-10153,2336,Red Rose N H (Red Homes)
Nottinghamshire County Council,1111/1001,Adult Social Care and Health,ASCH,Third Party Payments,EGA,03/09/2018,06-10154,2420,Red Oaks Care Community (Red Homes)
Nottinghamshire County Council,1111/1001,Adult Social Care and Health,ASCH,Third Party Payments,EGA,03/09/2018,06-10155,2010.92,Rose Farm Care Home
Nottinghamshire County Council,1111/1001,Adult Social Care and Health,ASCH,Third Party Payments,EGA,03/09/2018,06-10156,2016,Red Oaks Care Community (Red Homes)
Nottinghamshire County Council,1111/1001,Adult Social Care and Health,ASCH,Third Party Payments,EGA,03/09/2018,06-10157,6726.96,Richmond Lodge (K-In-A) (Blue Sky)
Nottinghamshire County Council,1111/1001,Adult Social Care and Health,ASCH,Third Party Payments,EGA,03/09/2018,06-10158,2016,Rose Farm Care Home
Nottinghamshire County Council,1111/1001,Adult Social Care and Health,ASCH,Third Party Payments,EGA,03/09/2018,06-10159,5461,Rose Keys Care Home
Nottinghamshire County Council,1111/1001,Adult Social Care and Health,ASCH,Third Party Payments,EGA,03/09/2018,06-10160,7690.08,Ransdale House
Nottinghamshire County Council,1111/1001,Adult Social Care and Health,ASCH,Third Party Payments,EGA,03/09/2018,06-10161,2016,Rose Farm Care Home
Nottinghamshire County Council,1111/1001,Adult Social Care and Health,ASCH,Third Party Payments,EGA,03/09/2018,06-10162,2380,Red Rose N H (Red Homes)
Nottinghamshire County Council,1111/1001,Adult Social Care and Health,ASCH,Third Party Payments,EGA,03/09/2018,06-10163,2256,Rylands Residential Care Home
Nottinghamshire County Council,1111/1001,Adult Social Care and Health,ASCH,Third Party Payments,EGA,03/09/2018,06-10164,"2,016.00",The Rookery
Nottinghamshire County Council,1111/1001,Adult Social Care and Health,ASCH,Third Party Payments,EGA,03/09/2018,06-10165,"2,260.00",Red Oaks Care Community (Red Homes)
Nottinghamshire County Council,1111/1001,Adult Social Care and Health,ASCH,Third Party Payments,EGA,03/09/2018,06-10166,"2,560.00",Red Rose N H (Red Homes)
Nottinghamshire County Council,1111/1001,Adult Social Care and Health,ASCH,Third Party Payments,EGA,03/09/2018,06-10167,"2,336.00",Radcliffe Manor House
Nottinghamshire County Council,1111/1001,Adult Social Care and Health,ASCH,Third Party Payments,EGA,03/09/2018,06-10168,2016,Rose Farm Care Home
Nottinghamshire County Council,1111/1001,Adult Social Care and Health,ASCH,Third Party Payments,EGA,03/09/2018,06-10169,2260,Red Oaks Care Community (Red Homes)
Nottinghamshire County Council,1111/1001,Adult Social Care and Health,ASCH,Third Party Payments,EGA,03/09/2018,06-10170,2016,Rose Farm Care Home
Nottinghamshire County Council,1111/1001,Adult Social Care and Health,ASCH,Third Party Payments,EGA,03/09/2018,06-10171,2256,Rylands Residential Care Home
Nottinghamshire County Council,1111/1001,Adult Social Care and Health,ASCH,Third Party Payments,EGA,03/09/2018,06-10172,"2,155.52",The Royal Care Home
Nottinghamshire County Council,1111/1001,Adult Social Care and Health,ASCH,Third Party Payments,EGA,03/09/2018,06-10173,7183.8,The Rivers (Voyage)
Nottinghamshire County Council,1111/1001,Adult Social Care and Health,ASCH,Third Party Payments,EGA,03/09/2018,06-10174,"2,380.00",Red Rose N H (Red Homes)
Nottinghamshire County Council,1111/1001,Adult Social Care and Health,ASCH,Third Party Payments,EGA,03/09/2018,06-10175,"2,720.00",Red Rose N H (Red Homes)
Nottinghamshire County Council,1111/1001,Adult Social Care and Health,ASCH,Third Party Payments,EGA,03/09/2018,06-10176,"2,720.00",Red Rose N H (Red Homes)
Nottinghamshire County Council,1111/1001,Adult Social Care and Health,ASCH,Third Party Payments,EGA,03/09/2018,06-10177,5518.08,Rose Meadow Healthcare Ltd
Nottinghamshire County Council,1111/1001,Adult Social Care and Health,ASCH,Third Party Payments,EGA,03/09/2018,06-10178,13379.6,Richmond Lodge (K-In-A) (Blue Sky)
Nottinghamshire County Council,1111/1001,Adult Social Care and Health,ASCH,Third Party Payments,EGA,03/09/2018,06-10179,2260,Red Oaks Care Community (Red Homes)
Nottinghamshire County Council,1111/1001,Adult Social Care and Health,ASCH,Third Party Payments,EGA,03/09/2018,06-10180,2016,Rose Farm Care Home
Nottinghamshire County Council,1111/1001,Adult Social Care and Health,ASCH,Third Party Payments,EGA,03/09/2018,06-10181,"4,264.40",Rose Meadow Healthcare Ltd
Nottinghamshire County Council,1111/1001,Adult Social Care and Health,ASCH,Third Party Payments,EGA,03/09/2018,06-10182,2140,Red Rose N H (Red Homes)
Nottinghamshire County Council,1111/1001,Adult Social Care and Health,ASCH,Third Party Payments,EGA,03/09/2018,06-10183,807.5,Comfort Call Ltd
Nottinghamshire County Council,1111/1001,Adult Social Care and Health,ASCH,Third Party Payments,EGA,03/09/2018,06-10184,"2,508.00",Red Roofs Rest Home - (Midlands Ltd
Nottinghamshire County Council,1111/1001,Adult Social Care and Health,ASCH,Third Party Payments,EGA,03/09/2018,06-10185,"1,942.28",Rock House Residential Home
Nottinghamshire County Council,1111/1001,Adult Social Care and Health,ASCH,Third Party Payments,EGA,03/09/2018,06-10186,"2,296.00",Rose Farm Care Home
Nottinghamshire County Council,1111/1001,Adult Social Care and Health,ASCH,Third Party Payments,EGA,03/09/2018,06-10187,2456,Rylands Residential Care Home
Nottinghamshire County Council,1111/1001,Adult Social Care and Health,ASCH,Third Party Payments,EGA,03/09/2018,06-10188,"5,686.12",Rose Meadow Healthcare Ltd
Nottinghamshire County Council,1111/1001,Adult Social Care and Health,ASCH,Third Party Payments,EGA,03/09/2018,06-10189,531.63,Direct Health (uk) Ltd
Nottinghamshire County Council,1111/1001,Adult Social Care and Health,ASCH,Third Party Payments,EGA,03/09/2018,06-10190,864.00,The Rookery
Nottinghamshire County Council,1111/1001,Adult Social Care and Health,ASCH,Third Party Payments,EGA,03/09/2018,06-10191,"2,256.00",Red Roofs Rest Home - (Midlands Ltd
Nottinghamshire County Council,1111/1001,Adult Social Care and Health,ASCH,Third Party Payments,EGA,03/09/2018,06-10192,"2,256.00",Rylands Residential Care Home
Nottinghamshire County Council,1111/1001,Adult Social Care and Health,ASCH,Third Party Payments,EGA,03/09/2018,06-10193,"2,560.00",Red Rose N H (Red Homes)
Nottinghamshire County Council,1111/1001,Adult Social Care and Health,ASCH,Third Party Payments,EGA,03/09/2018,06-10194,"2,260.00",Red Oaks Care Community (Red Homes)
Nottinghamshire County Council,1111/1001,Adult Social Care and Health,ASCH,Third Party Payments,EGA,03/09/2018,06-10195,2380,Red Rose N H (Red Homes)
Nottinghamshire County Council,1111/1001,Adult Social Care and Health,ASCH,Third Party Payments,EGA,03/09/2018,06-10196,6857.4,Redcliffe House (Voyage)
Nottinghamshire County Council,1111/1001,Adult Social Care and Health,ASCH,Third Party Payments,EGA,03/09/2018,06-10197,2016,Red Oaks Care Community (Red Homes)
Nottinghamshire County Council,1111/1001,Adult Social Care and Health,ASCH,Third Party Payments,EGA,03/09/2018,06-10198,617.54,SPM Quality Care Ltd
Nottinghamshire County Council,1111/1001,Adult Social Care and Health,ASCH,Third Party Payments,EGA,03/09/2018,06-10199,"2,260.00",Red Oaks Care Community (Red Homes)
Nottinghamshire County Council,1111/1001,Adult Social Care and Health,ASCH,Third Party Payments,EGA,03/09/2018,06-10200,"1,816.00",Sherwood Grange Care Ltd
Nottinghamshire County Council,1111/1001,Adult Social Care and Health,ASCH,Third Party Payments,EGA,03/09/2018,06-10201,1816,Sherwood Grange Care Ltd
Nottinghamshire County Council,1111/1001,Adult Social Care and Health,ASCH,Third Party Payments,EGA,03/09/2018,06-10202,7363.6,Spring Bank Farm
Nottinghamshire County Council,1111/1001,Adult Social Care and Health,ASCH,Third Party Payments,EGA,03/09/2018,06-10203,2140,Shortwood House Rest Home
Nottinghamshire County Council,1111/1001,Adult Social Care and Health,ASCH,Third Party Payments,EGA,03/09/2018,06-10204,1816,South Collingham Hall (Broadoak)
Nottinghamshire County Council,1111/1001,Adult Social Care and Health,ASCH,Third Party Payments,EGA,03/09/2018,06-10205,1972,Sherwood Grange Care Ltd
Nottinghamshire County Council,1111/1001,Adult Social Care and Health,ASCH,Third Party Payments,EGA,03/09/2018,06-10206,2256,Southwell Court Care Home
Nottinghamshire County Council,1111/1001,Adult Social Care and Health,ASCH,Third Party Payments,EGA,03/09/2018,06-10207,2428,Spring Water Lod (HC One)
Nottinghamshire County Council,1111/1001,Adult Social Care and Health,ASCH,Third Party Payments,EGA,03/09/2018,06-10208,2190.12,Spring Water Lod (HC One)
Nottinghamshire County Council,1111/1001,Adult Social Care and Health,ASCH,Third Party Payments,EGA,03/09/2018,06-10209,2256,Southwell Court Care Home
Nottinghamshire County Council,1111/1001,Adult Social Care and Health,ASCH,Third Party Payments,EGA,03/09/2018,06-10210,2428,Spring Water Lod (HC One)
Nottinghamshire County Council,1111/1001,Adult Social Care and Health,ASCH,Third Party Payments,EGA,03/09/2018,06-10211,2260,Silverwood Care H (HC One)
Nottinghamshire County Council,1111/1001,Adult Social Care and Health,ASCH,Third Party Payments,EGA,03/09/2018,06-10212,1972,Sherwood Grange Care Ltd
Nottinghamshire County Council,1111/1001,Adult Social Care and Health,ASCH,Third Party Payments,EGA,03/09/2018,06-10213,2256,Southwell Court Care Home
Nottinghamshire County Council,1111/1001,Adult Social Care and Health,ASCH,Third Party Payments,EGA,03/09/2018,06-10214,2016,Silverwood Care H (HC One)
Nottinghamshire County Council,1111/1001,Adult Social Care and Health,ASCH,Third Party Payments,EGA,03/09/2018,06-10215,10438,Southwell Court Care Home
Nottinghamshire County Council,1111/1001,Adult Social Care and Health,ASCH,Third Party Payments,EGA,03/09/2018,06-10216,4686.57,Southwell Court Care Home
Nottinghamshire County Council,1111/1001,Adult Social Care and Health,ASCH,Third Party Payments,EGA,03/09/2018,06-10217,"1,816.00",South Collingham Hall (Broadoak)
Nottinghamshire County Council,1111/1001,Adult Social Care and Health,ASCH,Third Party Payments,EGA,03/09/2018,06-10218,2256,Southwell Court Care Home
Nottinghamshire County Council,1111/1001,Adult Social Care and Health,ASCH,Third Party Payments,EGA,03/09/2018,06-10219,2428,Spring Water Lod (HC One)
Nottinghamshire County Council,1111/1001,Adult Social Care and Health,ASCH,Third Party Payments,EGA,03/09/2018,06-10220,2260,Silverwood Care H (HC One)
Nottinghamshire County Council,1111/1001,Adult Social Care and Health,ASCH,Third Party Payments,EGA,03/09/2018,06-10221,2256,Southwell Court Care Home
Nottinghamshire County Council,1111/1001,Adult Social Care and Health,ASCH,Third Party Payments,EGA,03/09/2018,06-10222,1816,South Collingham Hall (Broadoak)
Nottinghamshire County Council,1111/1001,Adult Social Care and Health,ASCH,Third Party Payments,EGA,03/09/2018,06-10223,"8,343.92",Spring Bank Farm
Nottinghamshire County Council,1111/1001,Adult Social Care and Health,ASCH,Third Party Payments,EGA,03/09/2018,06-10224,2192,Spring Water Lod (HC One)
Nottinghamshire County Council,1111/1001,Adult Social Care and Health,ASCH,Third Party Payments,EGA,03/09/2018,06-10225,"1,972.00",Sherwood Grange Care Ltd
Nottinghamshire County Council,1111/1001,Adult Social Care and Health,ASCH,Third Party Payments,EGA,03/09/2018,06-10226,2456,Southwell Court Care Home
Nottinghamshire County Council,1111/1001,Adult Social Care and Health,ASCH,Third Party Payments,EGA,03/09/2018,06-10227,3298.04,Sandbourne House
Nottinghamshire County Council,1111/1001,Adult Social Care and Health,ASCH,Third Party Payments,EGA,03/09/2018,06-10228,2016,Silverwood Care H (HC One)
Nottinghamshire County Council,1111/1001,Adult Social Care and Health,ASCH,Third Party Payments,EGA,03/09/2018,06-10229,1816,South Collingham Hall (Broadoak)
Nottinghamshire County Council,1111/1001,Adult Social Care and Health,ASCH,Third Party Payments,EGA,03/09/2018,06-10230,2016,Silverwood Care H (HC One)
Nottinghamshire County Council,1111/1001,Adult Social Care and Health,ASCH,Third Party Payments,EGA,03/09/2018,06-10231,2260,Silverwood Care H (HC One)
Nottinghamshire County Council,1111/1001,Adult Social Care and Health,ASCH,Third Party Payments,EGA,03/09/2018,06-10232,2256,Southwell Court Care Home
Nottinghamshire County Council,1111/1001,Adult Social Care and Health,ASCH,Third Party Payments,EGA,03/09/2018,06-10233,1972,Sherwood Grange Care Ltd
Nottinghamshire County Council,1111/1001,Adult Social Care and Health,ASCH,Third Party Payments,EGA,03/09/2018,06-10234,2256,Southwell Court Care Home
Nottinghamshire County Council,1111/1001,Adult Social Care and Health,ASCH,Third Party Payments,EGA,03/09/2018,06-10235,"2,256.00",Southwell Court Care Home
Nottinghamshire County Council,1111/1001,Adult Social Care and Health,ASCH,Third Party Payments,EGA,03/09/2018,06-10236,"2,244.00",Scalford Court
Nottinghamshire County Council,1111/1001,Adult Social Care and Health,ASCH,Third Party Payments,EGA,03/09/2018,06-10237,"2,543.71",Southwell Court Care Home
Nottinghamshire County Council,1111/1001,Adult Social Care and Health,ASCH,Third Party Payments,EGA,03/09/2018,06-10238,"1,816.00",South Collingham Hall (Broadoak)
Nottinghamshire County Council,1111/1001,Adult Social Care and Health,ASCH,Third Party Payments,EGA,03/09/2018,06-10239,"2,192.00",Spring Water Lod (HC One)
Nottinghamshire County Council,1111/1001,Adult Social Care and Health,ASCH,Third Party Payments,EGA,03/09/2018,06-10240,10512.28,Sheepwalk House (Creative Care)
Nottinghamshire County Council,1111/1001,Adult Social Care and Health,ASCH,Third Party Payments,EGA,03/09/2018,06-10241,507.47,Direct Health (uk) Ltd
Nottinghamshire County Council,1111/1001,Adult Social Care and Health,ASCH,Third Party Payments,EGA,03/09/2018,06-10242,"1,816.00",South Collingham Hall (Broadoak)
Nottinghamshire County Council,1111/1001,Adult Social Care and Health,ASCH,Third Party Payments,EGA,03/09/2018,06-10243,2192,Spring Water Lod (HC One)
Nottinghamshire County Council,1111/1001,Adult Social Care and Health,ASCH,Third Party Payments,EGA,03/09/2018,06-10244,"3,420.86",Southwell Court Care Home
Nottinghamshire County Council,1111/1001,Adult Social Care and Health,ASCH,Third Party Payments,EGA,03/09/2018,06-10245,627.12,Leda Homecare Ltd
Nottinghamshire County Council,1111/1001,Adult Social Care and Health,ASCH,Third Party Payments,EGA,03/09/2018,06-10246,"2,428.00",Spring Water Lod (HC One)
Nottinghamshire County Council,1111/1001,Adult Social Care and Health,ASCH,Third Party Payments,EGA,03/09/2018,06-10247,2192,Spring Water Lod (HC One)
Nottinghamshire County Council,1111/1001,Adult Social Care and Health,ASCH,Third Party Payments,EGA,03/09/2018,06-10248,1972,Sherwood Grange Care Ltd
Nottinghamshire County Council,1111/1001,Adult Social Care and Health,ASCH,Third Party Payments,EGA,03/09/2018,06-10249,"2,222.04",Springfield Lodge
Nottinghamshire County Council,1111/1001,Adult Social Care and Health,ASCH,Third Party Payments,EGA,03/09/2018,06-10250,2256,Southwell Court Care Home
Nottinghamshire County Council,1111/1001,Adult Social Care and Health,ASCH,Third Party Payments,EGA,03/09/2018,06-10251,"2,260.00",Silverwood Care H (HC One)
Nottinghamshire County Council,1111/1001,Adult Social Care and Health,ASCH,Third Party Payments,EGA,03/09/2018,06-10252,"6,970.68",Robinia Care - Chaddesden (Voyage L
Nottinghamshire County Council,1111/1001,Adult Social Care and Health,ASCH,Third Party Payments,EGA,03/09/2018,06-10253,"1,816.00",South Collingham Hall (Broadoak)
Nottinghamshire County Council,1111/1001,Adult Social Care and Health,ASCH,Third Party Payments,EGA,03/09/2018,06-10254,2260,Silverwood Care H (HC One)
Nottinghamshire County Council,1111/1001,Adult Social Care and Health,ASCH,Third Party Payments,EGA,03/09/2018,06-10255,1972,Sherwood Grange Care Ltd
Nottinghamshire County Council,1111/1001,Adult Social Care and Health,ASCH,Third Party Payments,EGA,03/09/2018,06-10256,2256,Southwell Court Care Home
Nottinghamshire County Council,1111/1001,Adult Social Care and Health,ASCH,Third Party Payments,EGA,03/09/2018,06-10257,2456,Southwell Court Care Home
Nottinghamshire County Council,1111/1001,Adult Social Care and Health,ASCH,Third Party Payments,EGA,03/09/2018,06-10258,2192,Spring Water Lod (HC One)
Nottinghamshire County Council,1111/1001,Adult Social Care and Health,ASCH,Third Party Payments,EGA,03/09/2018,06-10259,508.73,Comfort Call Ltd
Nottinghamshire County Council,1111/1001,Adult Social Care and Health,ASCH,Third Party Payments,EGA,03/09/2018,06-10260,2260,Silverwood Care H (HC One)
Nottinghamshire County Council,1111/1001,Adult Social Care and Health,ASCH,Third Party Payments,EGA,03/09/2018,06-10261,"2,428.00",Spring Water Lod (HC One)
Nottinghamshire County Council,1111/1001,Adult Social Care and Health,ASCH,Third Party Payments,EGA,03/09/2018,06-10262,1816,South Collingham Hall (Broadoak)
Nottinghamshire County Council,1111/1001,Adult Social Care and Health,ASCH,Third Party Payments,EGA,03/09/2018,06-10263,"2,016.00",Silverwood Care H (HC One)
Nottinghamshire County Council,1111/1001,Adult Social Care and Health,ASCH,Third Party Payments,EGA,03/09/2018,06-10264,2192,Spring Water Lod (HC One)
Nottinghamshire County Council,1111/1001,Adult Social Care and Health,ASCH,Third Party Payments,EGA,03/09/2018,06-10265,2260,Silverwood Care H (HC One)
Nottinghamshire County Council,1111/1001,Adult Social Care and Health,ASCH,Third Party Payments,EGA,03/09/2018,06-10266,25227.43,The Spinnies (Creative Care Ltd)
Nottinghamshire County Council,1111/1001,Adult Social Care and Health,ASCH,Third Party Payments,EGA,03/09/2018,06-10267,2016,Silverwood Care H (HC One)
Nottinghamshire County Council,1111/1001,Adult Social Care and Health,ASCH,Third Party Payments,EGA,03/09/2018,06-10268,2222.04,Springfield Lodge
Nottinghamshire County Council,1111/1001,Adult Social Care and Health,ASCH,Third Party Payments,EGA,03/09/2018,06-10269,2016,Silverwood Care H (HC One)
Nottinghamshire County Council,1111/1001,Adult Social Care and Health,ASCH,Third Party Payments,EGA,03/09/2018,06-10270,749.12,Direct Health (uk) Ltd
Nottinghamshire County Council,1111/1001,Adult Social Care and Health,ASCH,Third Party Payments,EGA,03/09/2018,06-10271,2192,Spring Water Lod (HC One)
Nottinghamshire County Council,1111/1001,Adult Social Care and Health,ASCH,Third Party Payments,EGA,03/09/2018,06-10272,2016,Silverwood Care H (HC One)
Nottinghamshire County Council,1111/1001,Adult Social Care and Health,ASCH,Third Party Payments,EGA,03/09/2018,06-10273,1816,South Collingham Hall (Broadoak)
Nottinghamshire County Council,1111/1001,Adult Social Care and Health,ASCH,Third Party Payments,EGA,03/09/2018,06-10274,2016,Silverwood Care H (HC One)
Nottinghamshire County Council,1111/1001,Adult Social Care and Health,ASCH,Third Party Payments,EGA,03/09/2018,06-10275,"2,256.00",Southwell Court Care Home
Nottinghamshire County Council,1111/1001,Adult Social Care and Health,ASCH,Third Party Payments,EGA,03/09/2018,06-10276,"2,256.00",Southwell Court Care Home
Nottinghamshire County Council,1111/1001,Adult Social Care and Health,ASCH,Third Party Payments,EGA,03/09/2018,06-10277,"1,972.00",Sherwood Grange Care Ltd
Nottinghamshire County Council,1111/1001,Adult Social Care and Health,ASCH,Third Party Payments,EGA,03/09/2018,06-10278,"2,260.00",Silverwood Care H (HC One)
Nottinghamshire County Council,1111/1001,Adult Social Care and Health,ASCH,Third Party Payments,EGA,03/09/2018,06-10279,2414,Springfield House Care Home
Nottinghamshire County Council,1111/1001,Adult Social Care and Health,ASCH,Third Party Payments,EGA,03/09/2018,06-10280,1816,South Collingham Hall (Broadoak)
Nottinghamshire County Council,1111/1001,Adult Social Care and Health,ASCH,Third Party Payments,EGA,03/09/2018,06-10281,2140,Shortwood House Rest Home
Nottinghamshire County Council,1111/1001,Adult Social Care and Health,ASCH,Third Party Payments,EGA,03/09/2018,06-10282,2240,Shortwood House Rest Home
Nottinghamshire County Council,1111/1001,Adult Social Care and Health,ASCH,Third Party Payments,EGA,03/09/2018,06-10283,"10,208.24",Sheepwalk House (Creative Care)
Nottinghamshire County Council,1111/1001,Adult Social Care and Health,ASCH,Third Party Payments,EGA,03/09/2018,06-10284,2192,Spring Water Lod (HC One)
Nottinghamshire County Council,1111/1001,Adult Social Care and Health,ASCH,Third Party Payments,EGA,03/09/2018,06-10285,588.24,Caremark (Gedling & Rushcliffe)
Nottinghamshire County Council,1111/1001,Adult Social Care and Health,ASCH,Third Party Payments,EGA,03/09/2018,06-10286,"2,260.00",Silverwood Care H (HC One)
Nottinghamshire County Council,1111/1001,Adult Social Care and Health,ASCH,Third Party Payments,EGA,03/09/2018,06-10287,"1,816.00",South Collingham Hall (Broadoak)
Nottinghamshire County Council,1111/1001,Adult Social Care and Health,ASCH,Third Party Payments,EGA,03/09/2018,06-10288,508.73,Comfort Call Ltd
Nottinghamshire County Council,1111/1001,Adult Social Care and Health,ASCH,Third Party Payments,EGA,03/09/2018,06-10289,2096,Silverwood Care H (HC One)
Nottinghamshire County Council,1111/1001,Adult Social Care and Health,ASCH,Third Party Payments,EGA,03/09/2018,06-10290,1816,Sherwood Grange Care Ltd
Nottinghamshire County Council,1111/1001,Adult Social Care and Health,ASCH,Third Party Payments,EGA,03/09/2018,06-10291,2456,Southwell Court Care Home
Nottinghamshire County Council,1111/1001,Adult Social Care and Health,ASCH,Third Party Payments,EGA,03/09/2018,06-10292,"2,192.00",Spring Water Lod (HC One)
Nottinghamshire County Council,1111/1001,Adult Social Care and Health,ASCH,Third Party Payments,EGA,03/09/2018,06-10293,2016,Silverwood Care H (HC One)
Nottinghamshire County Council,1111/1001,Adult Social Care and Health,ASCH,Third Party Payments,EGA,03/09/2018,06-10294,1816,South Collingham Hall (Broadoak)
Nottinghamshire County Council,1111/1001,Adult Social Care and Health,ASCH,Third Party Payments,EGA,03/09/2018,06-10295,"1,816.00",South Collingham Hall (Broadoak)
Nottinghamshire County Council,1111/1001,Adult Social Care and Health,ASCH,Third Party Payments,EGA,03/09/2018,06-10296,"1,972.00",Sherwood Grange Care Ltd
Nottinghamshire County Council,1111/1001,Adult Social Care and Health,ASCH,Third Party Payments,EGA,03/09/2018,06-10297,"2,256.00",Southwell Court Care Home
Nottinghamshire County Council,1111/1001,Adult Social Care and Health,ASCH,Third Party Payments,EGA,03/09/2018,06-10298,1972,Sherwood Grange Care Ltd
Nottinghamshire County Council,1111/1001,Adult Social Care and Health,ASCH,Third Party Payments,EGA,03/09/2018,06-10299,"1,816.00",South Collingham Hall (Broadoak)
Nottinghamshire County Council,1111/1001,Adult Social Care and Health,ASCH,Third Party Payments,EGA,03/09/2018,06-10300,7756.48,Robinia Care - Chaddesden (Voyage L
Nottinghamshire County Council,1111/1001,Adult Social Care and Health,ASCH,Third Party Payments,EGA,03/09/2018,06-10301,"2,192.00",Spring Water Lod (HC One)
Nottinghamshire County Council,1111/1001,Adult Social Care and Health,ASCH,Third Party Payments,EGA,03/09/2018,06-10302,"2,260.00",Silverwood Care H (HC One)
Nottinghamshire County Council,1111/1001,Adult Social Care and Health,ASCH,Third Party Payments,EGA,03/09/2018,06-10303,"1,943.20",Scalford Court
Nottinghamshire County Council,1111/1001,Adult Social Care and Health,ASCH,Third Party Payments,EGA,03/09/2018,06-10304,"2,192.00",Spring Water Lod (HC One)
Nottinghamshire County Council,1111/1001,Adult Social Care and Health,ASCH,Third Party Payments,EGA,03/09/2018,06-10305,"2,428.00",Spring Water Lod (HC One)
Nottinghamshire County Council,1111/1001,Adult Social Care and Health,ASCH,Third Party Payments,EGA,03/09/2018,06-10306,1972,Sherwood Grange Care Ltd
Nottinghamshire County Council,1111/1001,Adult Social Care and Health,ASCH,Third Party Payments,EGA,03/09/2018,06-10307,2256,Southwell Court Care Home
Nottinghamshire County Council,1111/1001,Adult Social Care and Health,ASCH,Third Party Payments,EGA,03/09/2018,06-10308,2016,Silverwood Care H (HC One)
Nottinghamshire County Council,1111/1001,Adult Social Care and Health,ASCH,Third Party Payments,EGA,03/09/2018,06-10309,"1,972.00",Sherwood Grange Care Ltd
Nottinghamshire County Council,1111/1001,Adult Social Care and Health,ASCH,Third Party Payments,EGA,03/09/2018,06-10310,"2,256.00",Southwell Court Care Home
Nottinghamshire County Council,1111/1001,Adult Social Care and Health,ASCH,Third Party Payments,EGA,03/09/2018,06-10311,"16,619.86",Scope Threshold Service
Nottinghamshire County Council,1111/1001,Adult Social Care and Health,ASCH,Third Party Payments,EGA,03/09/2018,06-10312,2428,Spring Water Lod (HC One)
Nottinghamshire County Council,1111/1001,Adult Social Care and Health,ASCH,Third Party Payments,EGA,03/09/2018,06-10313,2016,Silverwood Care H (HC One)
Nottinghamshire County Council,1111/1001,Adult Social Care and Health,ASCH,Third Party Payments,EGA,03/09/2018,06-10314,1816,South Collingham Hall (Broadoak)
Nottinghamshire County Council,1111/1001,Adult Social Care and Health,ASCH,Third Party Payments,EGA,03/09/2018,06-10315,508.73,Comfort Call Ltd
Nottinghamshire County Council,1111/1001,Adult Social Care and Health,ASCH,Third Party Payments,EGA,03/09/2018,06-10316,2016,Silverwood Care H (HC One)
Nottinghamshire County Council,1111/1001,Adult Social Care and Health,ASCH,Third Party Payments,EGA,03/09/2018,06-10317,2192,Spring Water Lod (HC One)
Nottinghamshire County Council,1111/1001,Adult Social Care and Health,ASCH,Third Party Payments,EGA,03/09/2018,06-10318,2318.6,Sherwood Grange Care Ltd
Nottinghamshire County Council,1111/1001,Adult Social Care and Health,ASCH,Third Party Payments,EGA,03/09/2018,06-10319,2013.12,Silverwood Care H (HC One)
Nottinghamshire County Council,1111/1001,Adult Social Care and Health,ASCH,Third Party Payments,EGA,03/09/2018,06-10320,2016,Silverwood Care H (HC One)
Nottinghamshire County Council,1111/1001,Adult Social Care and Health,ASCH,Third Party Payments,EGA,03/09/2018,06-10321,2256,Southwell Court Care Home
Nottinghamshire County Council,1111/1001,Adult Social Care and Health,ASCH,Third Party Payments,EGA,03/09/2018,06-10322,2140,Shortwood House Rest Home
Nottinghamshire County Council,1111/1001,Adult Social Care and Health,ASCH,Third Party Payments,EGA,03/09/2018,06-10323,1816,St Marys Nursing Home (Broadoak)
Nottinghamshire County Council,1111/1001,Adult Social Care and Health,ASCH,Third Party Payments,EGA,03/09/2018,06-10324,2016,Red Firs Care Home T/A Strawberry F
Nottinghamshire County Council,1111/1001,Adult Social Care and Health,ASCH,Third Party Payments,EGA,03/09/2018,06-10325,"2,380.00",Sycamores CC (Four Seasons)
Nottinghamshire County Council,1111/1001,Adult Social Care and Health,ASCH,Third Party Payments,EGA,03/09/2018,06-10326,507.47,Direct Health (uk) Ltd
Nottinghamshire County Council,1111/1001,Adult Social Care and Health,ASCH,Third Party Payments,EGA,03/09/2018,06-10327,2380,Sycamores CC (Four Seasons)
Nottinghamshire County Council,1111/1001,Adult Social Care and Health,ASCH,Third Party Payments,EGA,03/09/2018,06-10328,"2,016.00",Stoneyford C (HC One)
Nottinghamshire County Council,1111/1001,Adult Social Care and Health,ASCH,Third Party Payments,EGA,03/09/2018,06-10329,"2,256.00",Sutton Court Care Home (Ashmere)
Nottinghamshire County Council,1111/1001,Adult Social Care and Health,ASCH,Third Party Payments,EGA,03/09/2018,06-10330,507.47,Direct Health (uk) Ltd
Nottinghamshire County Council,1111/1001,Adult Social Care and Health,ASCH,Third Party Payments,EGA,03/09/2018,06-10331,2360,Sutton Court Care Home (Ashmere)
Nottinghamshire County Council,1111/1001,Adult Social Care and Health,ASCH,Third Party Payments,EGA,03/09/2018,06-10332,"2,256.00",Sutton Manor (Ashmere)
Nottinghamshire County Council,1111/1001,Adult Social Care and Health,ASCH,Third Party Payments,EGA,03/09/2018,06-10333,2256,Sutton Manor (Ashmere)
Nottinghamshire County Council,1111/1001,Adult Social Care and Health,ASCH,Third Party Payments,EGA,03/09/2018,06-10334,1816,St Marys Nursing Home (Broadoak)
Nottinghamshire County Council,1111/1001,Adult Social Care and Health,ASCH,Third Party Payments,EGA,03/09/2018,06-10335,"4,800.00",Chengun Care Homes Ltd
Nottinghamshire County Council,1111/1001,Adult Social Care and Health,ASCH,Third Party Payments,EGA,03/09/2018,06-10336,"2,380.00",Stoke House Nursing Home
Nottinghamshire County Council,1111/1001,Adult Social Care and Health,ASCH,Third Party Payments,EGA,03/09/2018,06-10337,2140,Sycamores CC (Four Seasons)
Nottinghamshire County Council,1111/1001,Adult Social Care and Health,ASCH,Third Party Payments,EGA,03/09/2018,06-10338,"2,256.00",Sutton Manor (Ashmere)
Nottinghamshire County Council,1111/1001,Adult Social Care and Health,ASCH,Third Party Payments,EGA,03/09/2018,06-10339,2420,St Peters Residential Home
Nottinghamshire County Council,1111/1001,Adult Social Care and Health,ASCH,Third Party Payments,EGA,03/09/2018,06-10340,2140,Sycamores CC (Four Seasons)
Nottinghamshire County Council,1111/1001,Adult Social Care and Health,ASCH,Third Party Payments,EGA,03/09/2018,06-10341,2016,Red Firs Care Home T/A Strawberry F
Nottinghamshire County Council,1111/1001,Adult Social Care and Health,ASCH,Third Party Payments,EGA,03/09/2018,06-10342,"2,456.00",Sutton Lodge Nursing Home (Ashmere)
Nottinghamshire County Council,1111/1001,Adult Social Care and Health,ASCH,Third Party Payments,EGA,03/09/2018,06-10343,"2,140.00",Stoke House Nursing Home
Nottinghamshire County Council,1111/1001,Adult Social Care and Health,ASCH,Third Party Payments,EGA,03/09/2018,06-10344,2016,Stoneyford C (HC One)
Nottinghamshire County Council,1111/1001,Adult Social Care and Health,ASCH,Third Party Payments,EGA,03/09/2018,06-10345,2016,Red Firs Care Home T/A Strawberry F
Nottinghamshire County Council,1111/1001,Adult Social Care and Health,ASCH,Third Party Payments,EGA,03/09/2018,06-10346,"2,456.00",Sutton Lodge Nursing Home (Ashmere)
Nottinghamshire County Council,1111/1001,Adult Social Care and Health,ASCH,Third Party Payments,EGA,03/09/2018,06-10347,2880,Red Firs Care Home T/A Strawberry F
Nottinghamshire County Council,1111/1001,Adult Social Care and Health,ASCH,Third Party Payments,EGA,03/09/2018,06-10348,1816,St Marys Nursing Home (Broadoak)
Nottinghamshire County Council,1111/1001,Adult Social Care and Health,ASCH,Third Party Payments,EGA,03/09/2018,06-10349,"2,016.00",Red Firs Care Home T/A Strawberry F
Nottinghamshire County Council,1111/1001,Adult Social Care and Health,ASCH,Third Party Payments,EGA,03/09/2018,06-10350,2016,Red Firs Care Home T/A Strawberry F
Nottinghamshire County Council,1111/1001,Adult Social Care and Health,ASCH,Third Party Payments,EGA,03/09/2018,06-10351,2016,Red Firs Care Home T/A Strawberry F
Nottinghamshire County Council,1111/1001,Adult Social Care and Health,ASCH,Third Party Payments,EGA,03/09/2018,06-10352,2036,Red Firs Care Home T/A Strawberry F
Nottinghamshire County Council,1111/1001,Adult Social Care and Health,ASCH,Third Party Payments,EGA,03/09/2018,06-10353,2256,Sutton Court Care Home (Ashmere)
Nottinghamshire County Council,1111/1001,Adult Social Care and Health,ASCH,Third Party Payments,EGA,03/09/2018,06-10354,"2,380.00",Sycamores CC (Four Seasons)
Nottinghamshire County Council,1111/1001,Adult Social Care and Health,ASCH,Third Party Payments,EGA,03/09/2018,06-10355,2092.16,Stanton Hall Nursing Home (MPS)
Nottinghamshire County Council,1111/1001,Adult Social Care and Health,ASCH,Third Party Payments,EGA,03/09/2018,06-10356,"2,256.00",Sutton Court Care Home (Ashmere)
Nottinghamshire County Council,1111/1001,Adult Social Care and Health,ASCH,Third Party Payments,EGA,03/09/2018,06-10357,2456,Sutton Lodge Nursing Home (Ashmere)
Nottinghamshire County Council,1111/1001,Adult Social Care and Health,ASCH,Third Party Payments,EGA,03/09/2018,06-10358,508.73,Comfort Call Ltd
Nottinghamshire County Council,1111/1001,Adult Social Care and Health,ASCH,Third Party Payments,EGA,03/09/2018,06-10359,2256,Sutton Manor (Ashmere)
Nottinghamshire County Council,1111/1001,Adult Social Care and Health,ASCH,Third Party Payments,EGA,03/09/2018,06-10360,878.00,Direct Health (uk) Ltd
Nottinghamshire County Council,1111/1001,Adult Social Care and Health,ASCH,Third Party Payments,EGA,03/09/2018,06-10361,1816,St Marys Nursing Home (Broadoak)
Nottinghamshire County Council,1111/1001,Adult Social Care and Health,ASCH,Third Party Payments,EGA,03/09/2018,06-10362,2016,Red Firs Care Home T/A Strawberry F
Nottinghamshire County Council,1111/1001,Adult Social Care and Health,ASCH,Third Party Payments,EGA,03/09/2018,06-10363,"1,932.00",Summerfield Rest Home
Nottinghamshire County Council,1111/1001,Adult Social Care and Health,ASCH,Third Party Payments,EGA,03/09/2018,06-10364,"2,256.00",Sutton Manor (Ashmere)
Nottinghamshire County Council,1111/1001,Adult Social Care and Health,ASCH,Third Party Payments,EGA,03/09/2018,06-10365,2140,Stoke House Nursing Home
